Workbook

Sheet CISAMES (hidden)
A1: INSTITUTO JALISCIENSE DE SALUD MENTAL | I1: INSTITUTO JALISCIENSE DE SALUD MENTAL | R1: INSTITUTO JALISCIENSE DE SALUD MENTAL
A2: SUBDIRECCION DE ADMINISTRACION E INNOVACION | H2: =2124+1754+1958+1383+3247+2018+2410+1878+1490 -> 18262 | I2: SUBDIRECCION DE ADMINISTRACION E INNOVACION | R2: SUBDIRECCION DE ADMINISTRACION E INNOVACION
A3: DEPARTAMENTO DE INNOVACION Y CALIDAD | I3: DEPARTAMENTO DE INNOVACION Y CALIDAD | R3: DEPARTAMENTO DE INNOVACION Y CALIDAD
A4: MORBILIDAD PSIQUIATRIA Y PSICOLOGIA DE SALUD MENTAL | I4: MORBILIDAD PSIQUIATRIA DE SALUD MENTAL | R4: MORBILIDAD PSICOLOGIA DE SALUD MENTAL
A5: CISAMES | I5: CISAMES | R5: CISAMES
A6: JUNIO DE 2016 | I6: JUNIO DE 2016 | R6: JUNIO DE 2016
A9: NUMERO | B9: DESCRIPCION | C9: CODIGO | D9: MASCULINO | E9: FEMENINO | F9: TOTAL | G9: % | I9: NUMERO | J9: DESCRIPCION | K9: CODIGO | L9: MASCULINO | M9: FEMENINO | N9: TOTAL | P9: % | R9: NUMERO | S9: DESCRIPCION | T9: CODIGO | U9: MASCULINO | V9: FEMENINO | W9: TOTAL | X9: %
A10: 1 | B10: =VLOOKUP(C10,'CIE-X'!B:C,2,0) -> Perturbacion de la actividad y de la atencion | C10: F900 | D10: 1786 | E10: 457 | F10: 2243 | G10: =F10/$F$302*100 -> 14.13180444 | I10: 1 | J10: =VLOOKUP(K10,'CIE-X'!B:C,2,0) -> Trastorno de ansiedad generalizada | K10: F411 | L10: 456 | M10: 636 | N10: 1092 | O10: =N10/$N$302*100 -> 13.15979754 | P10: =N10/$F$302*100 -> 6.880040323 | R10: 1 | S10: =VLOOKUP(T10,'CIE-X'!B:C,2,0) -> Perturbacion de la actividad y de la atencion | T10: F900 | U10: 1074 | V10: 316 | W10: 1390 | X10: =W10/$F$302*100 -> 8.757560484
A11: 2 | B11: =VLOOKUP(C11,'CIE-X'!B:C,2,0) -> Trastorno de ansiedad generalizada | C11: F411 | D11: 774 | E11: 1273 | F11: 2047 | G11: 12.8969254 | I11: 2 | J11: =VLOOKUP(K11,'CIE-X'!B:C,2,0) -> Perturbacion de la actividad y de la atencion | K11: F900 | L11: 712 | M11: 141 | N11: 853 | O11: 10.27958544 | P11: 5.374243952 | R11: 2 | S11: =VLOOKUP(T11,'CIE-X'!B:C,2,0) -> Trastornos de adaptacion | T11: F432 | U11: 388 | V11: 575 | W11: 963 | X11: 6.067288306
A12: 3 | B12: =VLOOKUP(C12,'CIE-X'!B:C,2,0) -> Trastornos de adaptacion | C12: F432 | D12: 472 | E12: 758 | F12: 1230 | G12: 7.749495968 | I12: 3 | J12: =VLOOKUP(K12,'CIE-X'!B:C,2,0) -> Esquizofrenia paranoide | K12: F200 | L12: 345 | M12: 204 | N12: 549 | O12: 6.616052061 | P12: 3.458921371 | R12: 3 | S12: =VLOOKUP(T12,'CIE-X'!B:C,2,0) -> Trastorno de ansiedad generalizada | T12: F411 | U12: 318 | V12: 637 | W12: 955 | X12: 6.016885081
A13: 4 | B13: =VLOOKUP(C13,'CIE-X'!B:C,2,0) -> Episodio depresivo leve | C13: F320 | D13: 290 | E13: 727 | F13: 1017 | G13: 6.407510081 | I13: 4 | J13: =VLOOKUP(K13,'CIE-X'!B:C,2,0) -> Trastornos hipercineticos | K13: F90 | L13: 408 | M13: 90 | N13: 498 | O13: 6.001446132 | P13: 3.137600806 | R13: 4 | S13: =VLOOKUP(T13,'CIE-X'!B:C,2,0) -> Episodio depresivo leve | T13: F320 | U13: 194 | V13: 468 | W13: 662 | X13: 4.170866935
A14: 5 | B14: =VLOOKUP(C14,'CIE-X'!B:C,2,0) -> Episodio depresivo moderado | C14: F321 | D14: 246 | E14: 590 | F14: 836 | G14: 5.267137097 | I14: 5 | J14: =VLOOKUP(K14,'CIE-X'!B:C,2,0) -> Trastorno depresivo recurrente | K14: F33 | L14: 85 | M14: 390 | N14: 475 | O14: 5.724270909 | P14: 2.992691532 | R14: 5 | S14: =VLOOKUP(T14,'CIE-X'!B:C,2,0) -> Episodio depresivo moderado | T14: F321 | U14: 181 | V14: 405 | W14: 586 | X14: 3.69203629
A15: 6 | B15: =VLOOKUP(C15,'CIE-X'!B:C,2,0) -> Trastorno depresivo recurrente, episodio moderado presente | C15: F331 | D15: 112 | E15: 664 | F15: 776 | G15: 4.889112903 | I15: 6 | J15: =VLOOKUP(K15,'CIE-X'!B:C,2,0) -> Esquizofrenia | K15: F20 | L15: 311 | M15: 162 | N15: 473 | O15: 5.700168715 | P15: 2.980090726 | R15: 6 | S15: =VLOOKUP(T15,'CIE-X'!B:C,2,0) -> Trastorno depresivo recurrente, episodio moderado presente | T15: F331 | U15: 49 | V15: 382 | W15: 431 | X15: 2.71547379
A16: 7 | B16: =VLOOKUP(C16,'CIE-X'!B:C,2,0) -> Episodio depresivo | C16: F32 | D16: 173 | E16: 555 | F16: 728 | G16: 4.586693548 | I16: 7 | J16: =VLOOKUP(K16,'CIE-X'!B:C,2,0) -> Episodio depresivo | K16: F32 | L16: 107 | M16: 303 | N16: 410 | O16: 4.940949626 | P16: 2.583165323 | R16: 7 | S16: =VLOOKUP(T16,'CIE-X'!B:C,2,0) -> Sintomas y signos que involucran el estado emocional | T16: R45 | U16: 161 | V16: 190 | W16: 351 | X16: 2.211441532
A17: 8 | B17: =VLOOKUP(C17,'CIE-X'!B:C,2,0) -> Trastornos hipercineticos | C17: F90 | D17: 574 | E17: 132 | F17: 706 | G17: 4.448084677 | I17: 8 | J17: =VLOOKUP(K17,'CIE-X'!B:C,2,0) -> Episodio depresivo leve | K17: F320 | L17: 96 | M17: 259 | N17: 355 | O17: 4.278139311 | P17: 2.236643145 | R17: 8 | S17: =VLOOKUP(T17,'CIE-X'!B:C,2,0) -> Episodio depresivo | T17: F32 | U17: 66 | V17: 252 | W17: 318 | X17: 2.003528226
A18: 9 | B18: =VLOOKUP(C18,'CIE-X'!B:C,2,0) -> Trastorno depresivo recurrente | C18: F33 | D18: 114 | E18: 524 | F18: 638 | G18: 4.019657258 | I18: 9 | J18: =VLOOKUP(K18,'CIE-X'!B:C,2,0) -> Trastorno depresivo recurrente, episodio moderado presente | K18: F331 | L18: 63 | M18: 282 | N18: 345 | O18: 4.157628344 | P18: 2.173639113 | R18: 9 | S18: =VLOOKUP(T18,'CIE-X'!B:C,2,0) -> Trastorno depresivo recurrente, episodio leve presente | T18: F330 | U18: 49 | V18: 222 | W18: 271 | X18: 1.707409274
A19: 10 | B19: =VLOOKUP(C19,'CIE-X'!B:C,2,0) -> Esquizofrenia paranoide | C19: F200 | D19: 402 | E19: 231 | F19: 633 | G19: 3.988155242 | I19: 10 | J19: =VLOOKUP(K19,'CIE-X'!B:C,2,0) -> Trastornos de adaptacion | K19: F432 | L19: 84 | M19: 183 | N19: 267 | O19: 3.217642805 | P19: 1.682207661 | R19: 10 | S19: =VLOOKUP(T19,'CIE-X'!B:C,2,0) -> Trastorno de panico [ansiedad paroxistica episodica] | T19: F410 | U19: 77 | V19: 134 | W19: 211 | X19: 1.329385081
A20: 11 | B20: =VLOOKUP(C20,'CIE-X'!B:C,2,0) -> Sintomas y signos que involucran el estado emocional | C20: R45 | D20: 283 | E20: 274 | F20: 557 | G20: 3.509324597 | I20: 11 | J20: =VLOOKUP(K20,'CIE-X'!B:C,2,0) -> Episodio depresivo moderado | K20: F321 | L20: 65 | M20: 185 | N20: 250 | O20: 3.012774162 | P20: 1.575100806 | R20: 11 | S20: =VLOOKUP(T20,'CIE-X'!B:C,2,0) -> Trastornos hipercineticos | T20: F90 | U20: 166 | V20: 42 | W20: 208 | X20: 1.310483871
A21: 12 | B21: =VLOOKUP(C21,'CIE-X'!B:C,2,0) -> Esquizofrenia | C21: F20 | D21: 328 | E21: 169 | F21: 497 | G21: 3.131300403 | I21: 12 | J21: =VLOOKUP(K21,'CIE-X'!B:C,2,0) -> Trastorno de panico [ansiedad paroxistica episodica] | K21: F410 | L21: 122 | M21: 114 | N21: 236 | O21: 2.844058809 | P21: 1.486895161 | R21: 12 | S21: =VLOOKUP(T21,'CIE-X'!B:C,2,0) -> Trastorno depresivo recurrente | T21: F33 | U21: 29 | V21: 134 | W21: 163 | X21: 1.026965726
A22: 13 | B22: =VLOOKUP(C22,'CIE-X'!B:C,2,0) -> Trastorno de panico [ansiedad paroxistica episodica] | C22: F410 | D22: 199 | E22: 248 | F22: 447 | G22: 2.816280242 | I22: 13 | J22: =VLOOKUP(K22,'CIE-X'!B:C,2,0) -> Epilepsia | K22: G40 | L22: 120 | M22: 110 | N22: 230 | O22: 2.771752229 | P22: 1.449092742 | R22: 13 | S22: =VLOOKUP(T22,'CIE-X'!B:C,2,0) -> Trastorno de estres postraumatico | T22: F431 | U22: 27 | V22: 60 | W22: 87 | X22: 0.5481350806
A23: 14 | B23: =VLOOKUP(C23,'CIE-X'!B:C,2,0) -> Trastorno depresivo recurrente, episodio leve presente | C23: F330 | D23: 70 | E23: 325 | F23: 395 | G23: 2.488659274 | I23: 14 | J23: =VLOOKUP(K23,'CIE-X'!B:C,2,0) -> Sintomas y signos que involucran el estado emocional | K23: R45 | L23: 122 | M23: 84 | N23: 206 | O23: 2.48252591 | P23: 1.297883065 | R23: 14 | S23: =VLOOKUP(T23,'CIE-X'!B:C,2,0) -> Esquizofrenia paranoide | T23: F200 | U23: 57 | V23: 27 | W23: 84 | X23: 0.529233871
A24: 15 | B24: =VLOOKUP(C24,'CIE-X'!B:C,2,0) -> Epilepsia | C24: G40 | D24: 144 | E24: 123 | F24: 267 | G24: 1.682207661 | I24: 15 | J24: =VLOOKUP(K24,'CIE-X'!B:C,2,0) -> Trastorno depresivo recurrente actualmente en remision | K24: F334 | L24: 28 | M24: 159 | N24: 187 | O24: 2.253555074 | P24: 1.178175403 | R24: 15 | S24: =VLOOKUP(T24,'CIE-X'!B:C,2,0) -> Distimia | T24: F341 | U24: 24 | V24: 51 | W24: 75 | X24: 0.4725302419
A25: 16 | B25: =VLOOKUP(C25,'CIE-X'!B:C,2,0) -> Trastorno depresivo recurrente actualmente en remision | C25: F334 | D25: 36 | E25: 225 | F25: 261 | G25: 1.644405242 | I25: 16 | J25: =VLOOKUP(K25,'CIE-X'!B:C,2,0) -> Trastorno depresivo recurrente, episodio depresivo grave presente sin sintomas psicoticos | K25: F332 | L25: 20 | M25: 105 | N25: 125 | O25: 1.506387081 | P25: 0.7875504032 | R25: 16 | S25: =VLOOKUP(T25,'CIE-X'!B:C,2,0) -> Trastorno depresivo recurrente actualmente en remision | T25: F334 | U25: 8 | V25: 66 | W25: 74 | X25: 0.4662298387
A26: 17 | B26: =VLOOKUP(C26,'CIE-X'!B:C,2,0) -> Trastorno depresivo recurrente, episodio depresivo grave presente sin sintomas psicoticos | C26: F332 | D26: 33 | E26: 164 | F26: 197 | G26: 1.241179435 | I26: 17 | J26: =VLOOKUP(K26,'CIE-X'!B:C,2,0) -> Trastorno depresivo recurrente, episodio leve presente | K26: F330 | L26: 21 | M26: 103 | N26: 124 | O26: 1.494335985 | P26: 0.78125 | R26: 17 | S26: =VLOOKUP(T26,'CIE-X'!B:C,2,0) -> Trastorno depresivo recurrente, episodio depresivo grave presente sin sintomas psicoticos | T26: F332 | U26: 13 | V26: 59 | W26: 72 | X26: 0.4536290323
A27: 18 | B27: =VLOOKUP(C27,'CIE-X'!B:C,2,0) -> Trastorno afectivo bipolar, episodio hipomaniaco presente | C27: F310 | D27: 59 | E27: 93 | F27: 152 | G27: 0.9576612903 | I27: 18 | J27: =VLOOKUP(K27,'CIE-X'!B:C,2,0) -> Esquizofrenia indiferenciada | K27: F203 | L27: 71 | M27: 52 | N27: 123 | O27: 1.482284888 | P27: 0.7749495968 | R27: 18 | S27: =VLOOKUP(T27,'CIE-X'!B:C,2,0) -> Episodio depresivo grave sin sintomas psicoticos | T27: F322 | U27: 8 | V27: 53 | W27: 61 | X27: 0.3843245968
A28: 19 | B28: =VLOOKUP(C28,'CIE-X'!B:C,2,0) -> Trastorno de estres postraumatico | C28: F431 | D28: 48 | E28: 97 | F28: 145 | G28: 0.9135584677 | I28: 19 | J28: =VLOOKUP(K28,'CIE-X'!B:C,2,0) -> Trastorno afectivo bipolar | K28: F31 | L28: 43 | M28: 70 | N28: 113 | O28: 1.361773921 | P28: 0.7119455645 | R28: 19 | S28: =VLOOKUP(T28,'CIE-X'!B:C,2,0) -> Trastorno mixto de ansiedad y depresion | T28: F412 | U28: 11 | V28: 37 | W28: 48 | X28: 0.3024193548
A29: 20 | B29: =VLOOKUP(C29,'CIE-X'!B:C,2,0) -> Distimia | C29: F341 | D29: 47 | E29: 97 | F29: 144 | G29: 0.9072580645 | I29: 20 | J29: =VLOOKUP(K29,'CIE-X'!B:C,2,0) -> Trastorno afectivo bipolar, episodio hipomaniaco presente | K29: F310 | L29: 45 | M29: 68 | N29: 113 | O29: 1.361773921 | P29: 0.7119455645 | R29: 20 | S29: =VLOOKUP(T29,'CIE-X'!B:C,2,0) -> Trastorno afectivo bipolar, episodio hipomaniaco presente | T29: F310 | U29: 14 | V29: 25 | W29: 39 | X29: 0.2457157258
A30: 21 | B30: =VLOOKUP(C30,'CIE-X'!B:C,2,0) -> Trastorno afectivo bipolar | C30: F31 | D30: 49 | E30: 86 | F30: 135 | G30: 0.8505544355 | I30: 21 | J30: =VLOOKUP(K30,'CIE-X'!B:C,2,0) -> Psicosis de origen no organico, no especificada | K30: F29X | L30: 71 | M30: 28 | N30: 99 | O30: 1.193058568 | P30: 0.6237399194 | R30: 21 | S30: =VLOOKUP(T30,'CIE-X'!B:C,2,0) -> Epilepsia | T30: G40 | U30: 24 | V30: 13 | W30: 37 | X30: 0.2331149194
A31: 22 | B31: =VLOOKUP(C31,'CIE-X'!B:C,2,0) -> Esquizofrenia indiferenciada | C31: F203 | D31: 75 | E31: 53 | F31: 128 | G31: 0.8064516129 | I31: 22 | J31: =VLOOKUP(K31,'CIE-X'!B:C,2,0) -> Trastorno afectivo bipolar, actualmente en remision | K31: F317 | L31: 32 | M31: 67 | N31: 99 | O31: 1.193058568 | P31: 0.6237399194 | R31: 22 | S31: =VLOOKUP(T31,'CIE-X'!B:C,2,0) -> Trastorno de la personalidad emocionalmente inestable | T31: F603 | U31: 0 | V31: 29 | W31: 29 | X31: 0.1827116935
A32: 23 | B32: =VLOOKUP(C32,'CIE-X'!B:C,2,0) -> Psicosis de origen no organico, no especificada | C32: F29X | D32: 84 | E32: 35 | F32: 119 | G32: 0.7497479839 | I32: 23 | J32: =VLOOKUP(K32,'CIE-X'!B:C,2,0) -> Epilepsia y sindromes epilepticos idiopaticos generalizados | K32: G403 | L32: 35 | M32: 36 | N32: 71 | O32: 0.8556278621 | P32: 0.447328629 | R32: 23 | S32: =VLOOKUP(T32,'CIE-X'!B:C,2,0) -> Esquizofrenia | T32: F20 | U32: 17 | V32: 7 | W32: 24 | X32: 0.1512096774
A33: 24 | B33: =VLOOKUP(C33,'CIE-X'!B:C,2,0) -> Episodio depresivo grave sin sintomas psicoticos | C33: F322 | D33: 27 | E33: 92 | F33: 119 | G33: 0.7497479839 | I33: 24 | J33: =VLOOKUP(K33,'CIE-X'!B:C,2,0) -> Distimia | K33: F341 | L33: 23 | M33: 46 | N33: 69 | O33: 0.8315256688 | P33: 0.4347278226 | R33: 24 | S33: =VLOOKUP(T33,'CIE-X'!B:C,2,0) -> Trastorno afectivo bipolar | T33: F31 | U33: 6 | V33: 16 | W33: 22 | X33: 0.138608871
A34: 25 | B34: =VLOOKUP(C34,'CIE-X'!B:C,2,0) -> Trastorno afectivo bipolar, actualmente en remision | C34: F317 | D34: 36 | E34: 79 | F34: 115 | G34: 0.724546371 | I34: 25 | J34: =VLOOKUP(K34,'CIE-X'!B:C,2,0) -> Trastorno de estres postraumatico | K34: F431 | L34: 21 | M34: 37 | N34: 58 | O34: 0.6989636057 | P34: 0.3654233871 | R34: 25 | S34: =VLOOKUP(T34,'CIE-X'!B:C,2,0) -> Psicosis de origen no organico, no especificada | T34: F29X | U34: 13 | V34: 7 | W34: 20 | X34: 0.1260080645
A35: 26 | B35: =VLOOKUP(C35,'CIE-X'!B:C,2,0) -> Epilepsia y sindromes epilepticos idiopaticos generalizados | C35: G403 | D35: 38 | E35: 41 | F35: 79 | G35: 0.4977318548 | I35: 26 | J35: =VLOOKUP(K35,'CIE-X'!B:C,2,0) -> Episodio depresivo grave sin sintomas psicoticos | K35: F322 | L35: 19 | M35: 39 | N35: 58 | O35: 0.6989636057 | P35: 0.3654233871 | R35: 26 | S35: =VLOOKUP(T35,'CIE-X'!B:C,2,0) -> Otros trastornos de ansiedad | T35: F41 | U35: 13 | V35: 6 | W35: 19 | X35: 0.1197076613
A36: 27 | B36: =VLOOKUP(C36,'CIE-X'!B:C,2,0) -> Trastorno mixto de ansiedad y depresion | C36: F412 | D36: 18 | E36: 53 | F36: 71 | G36: 0.447328629 | I36: 27 | J36: =VLOOKUP(K36,'CIE-X'!B:C,2,0) -> Otros trastornos de ansiedad | K36: F41 | L36: 28 | M36: 21 | N36: 49 | O36: 0.5905037358 | P36: 0.3087197581 | R36: 27 | S36: =VLOOKUP(T36,'CIE-X'!B:C,2,0) -> Otros trastornos depresivos recurrentes | T36: F338 | U36: 3 | V36: 16 | W36: 19 | X36: 0.1197076613
A37: 28 | B37: =VLOOKUP(C37,'CIE-X'!B:C,2,0) -> Otros trastornos de ansiedad | C37: F41 | D37: 41 | E37: 27 | F37: 68 | G37: 0.4284274194 | I37: 28 | J37: =VLOOKUP(K37,'CIE-X'!B:C,2,0) -> Otros trastornos hipercineticos | K37: F908 | L37: 39 | M37: 7 | N37: 46 | O37: 0.5543504459 | P37: 0.2898185484 | R37: 28 | S37: =VLOOKUP(T37,'CIE-X'!B:C,2,0) ->  | T37: F99 | U37: 13 | V37: 6 | W37: 19 | X37: 0.1197076613
A38: 29 | B38: =VLOOKUP(C38,'CIE-X'!B:C,2,0) -> Autismo atipico | C38: F841 | D38: 48 | E38: 11 | F38: 59 | G38: 0.3717237903 | I38: 29 | J38: =VLOOKUP(K38,'CIE-X'!B:C,2,0) -> Autismo atipico | K38: F841 | L38: 37 | M38: 9 | N38: 46 | O38: 0.5543504459 | P38: 0.2898185484 | R38: 29 | S38: =VLOOKUP(T38,'CIE-X'!B:C,2,0) -> Episodio depresivo grave con sintomas psicoticos | T38: F323 | U38: 5 | V38: 13 | W38: 18 | X38: 0.1134072581
A39: 30 | B39: =VLOOKUP(C39,'CIE-X'!B:C,2,0) -> Otros trastornos hipercineticos | C39: F908 | D39: 47 | E39: 10 | F39: 57 | G39: 0.3591229839 | I39: 30 | J39: =VLOOKUP(K39,'CIE-X'!B:C,2,0) -> Trastorno del humor [afectivos] persistentes | K39: F34 | L39: 8 | M39: 37 | N39: 45 | O39: 0.5422993492 | P39: 0.2835181452 | R39: 30 | S39: =VLOOKUP(T39,'CIE-X'!B:C,2,0) -> Trastorno afectivo bipolar, actualmente en remision | T39: F317 | U39: 4 | V39: 12 | W39: 16 | X39: 0.1008064516
A40: 31 | B40: =VLOOKUP(C40,'CIE-X'!B:C,2,0) -> Trastorno del humor [afectivos] persistentes | C40: F34 | D40: 9 | E40: 43 | F40: 52 | G40: 0.3276209677 | I40: 31 | J40: =VLOOKUP(K40,'CIE-X'!B:C,2,0) -> Esquizofrenia residual | K40: F205 | L40: 26 | M40: 17 | N40: 43 | O40: 0.5181971559 | P40: 0.2709173387 | R40: 31 | S40: =VLOOKUP(T40,'CIE-X'!B:C,2,0) -> Observacion por sospecha de trastorno mental y del comportamiento | T40: Z032 | U40: 9 | V40: 7 | W40: 16 | X40: 0.1008064516
A41: 32 | B41: =VLOOKUP(C41,'CIE-X'!B:C,2,0) -> Esquizofrenia residual | C41: F205 | D41: 27 | E41: 17 | F41: 44 | G41: 0.2772177419 | I41: 32 | J41: =VLOOKUP(K41,'CIE-X'!B:C,2,0) ->  | K41: R45X | L41: 18 | M41: 18 | N41: 36 | O41: 0.4338394794 | P41: 0.2268145161 | R41: 32 | S41: =VLOOKUP(T41,'CIE-X'!B:C,2,0) -> Trastorno depresivo recurrente, episodio depresivo grave presente, con sintomas psicoticos | T41: F333 | U41: 2 | V41: 12 | W41: 14 | X41: 0.08820564516
A42: 33 | B42: =VLOOKUP(C42,'CIE-X'!B:C,2,0) -> Trastorno de la personalidad emocionalmente inestable | C42: F603 | D42: 2 | E42: 41 | F42: 43 | G42: 0.2709173387 | I42: 33 | J42: =VLOOKUP(K42,'CIE-X'!B:C,2,0) -> Trastorno esquizotipico | K42: F21X | L42: 13 | M42: 15 | N42: 28 | O42: 0.3374307062 | P42: 0.1764112903 | R42: 33 | S42: =VLOOKUP(T42,'CIE-X'!B:C,2,0) -> Sindrome de Asperger | T42: F845 | U42: 7 | V42: 6 | W42: 13 | X42: 0.08190524194
A43: 34 | B43: =VLOOKUP(C43,'CIE-X'!B:C,2,0) -> Otros trastornos depresivos recurrentes | C43: F338 | D43: 6 | E43: 36 | F43: 42 | G43: 0.2646169355 | I43: 34 | J43: =VLOOKUP(K43,'CIE-X'!B:C,2,0) -> Trastorno mixto de ansiedad y depresion | K43: F412 | L43: 7 | M43: 16 | N43: 23 | O43: 0.2771752229 | P43: 0.1449092742 | R43: 34 | S43: =VLOOKUP(T43,'CIE-X'!B:C,2,0) -> Autismo atipico | T43: F841 | U43: 11 | V43: 2 | W43: 13 | X43: 0.08190524194
A44: 35 | B44: =VLOOKUP(C44,'CIE-X'!B:C,2,0) ->  | C44: R45X | D44: 19 | E44: 18 | F44: 37 | G44: 0.2331149194 | I44: 35 | J44: =VLOOKUP(K44,'CIE-X'!B:C,2,0) ->  | K44: F29 | L44: 13 | M44: 10 | N44: 23 | O44: 0.2771752229 | P44: 0.1449092742 | R44: 35 | S44: =VLOOKUP(T44,'CIE-X'!B:C,2,0) -> Ciclotimia | T44: F340 | U44: 1 | V44: 12 | W44: 13 | X44: 0.08190524194
A45: 36 | B45: =VLOOKUP(C45,'CIE-X'!B:C,2,0) -> Trastorno depresivo recurrente, episodio depresivo grave presente, con sintomas psicoticos | C45: F333 | D45: 7 | E45: 29 | F45: 36 | G45: 0.2268145161 | I45: 36 | J45: =VLOOKUP(K45,'CIE-X'!B:C,2,0) -> Otros trastornos depresivos recurrentes | K45: F338 | L45: 3 | M45: 20 | N45: 23 | O45: 0.2771752229 | P45: 0.1449092742 | R45: 36 | S45: =VLOOKUP(T45,'CIE-X'!B:C,2,0) -> Anorexia nerviosa | T45: F500 | U45: 0 | V45: 12 | W45: 12 | X45: 0.07560483871
A46: 37 | B46: =VLOOKUP(C46,'CIE-X'!B:C,2,0) -> Episodio depresivo grave con sintomas psicoticos | C46: F323 | D46: 7 | E46: 29 | F46: 36 | G46: 0.2268145161 | I46: 37 | J46: =VLOOKUP(K46,'CIE-X'!B:C,2,0) -> Trastorno depresivo recurrente, episodio depresivo grave presente, con sintomas psicoticos | K46: F333 | L46: 5 | M46: 17 | N46: 22 | O46: 0.2651241263 | P46: 0.138608871 | R46: 37 | S46: =VLOOKUP(T46,'CIE-X'!B:C,2,0) -> Otros trastornos hipercineticos | T46: F908 | U46: 8 | V46: 3 | W46: 11 | X46: 0.06930443548
A47: 38 | B47: =VLOOKUP(C47,'CIE-X'!B:C,2,0) -> Trastorno esquizotipico | C47: F21X | D47: 14 | E47: 18 | F47: 32 | G47: 0.2016129032 | I47: 38 | J47: =VLOOKUP(K47,'CIE-X'!B:C,2,0) -> Retraso mental leve | K47: F70 | L47: 5 | M47: 16 | N47: 21 | O47: 0.2530730296 | P47: 0.1323084677 | R47: 38 | S47: =VLOOKUP(T47,'CIE-X'!B:C,2,0) -> Trastorno afectivo bipolar, episodio depresivo presente leve o moderado | T47: F313 | U47: 7 | V47: 4 | W47: 11 | X47: 0.06930443548
A48: 39 | B48: =VLOOKUP(C48,'CIE-X'!B:C,2,0) ->  | C48: F29 | D48: 14 | E48: 12 | F48: 26 | G48: 0.1638104839 | I48: 39 | J48: =VLOOKUP(K48,'CIE-X'!B:C,2,0) -> Enfermedad de Parkinson | K48: G20X | L48: 12 | M48: 6 | N48: 18 | O48: 0.2169197397 | P48: 0.1134072581 | R48: 39 | S48: =VLOOKUP(T48,'CIE-X'!B:C,2,0) -> Epilepsia y sindromes epilepticos idiopaticos generalizados | T48: G403 | U48: 3 | V48: 5 | W48: 8 | X48: 0.05040322581
A49: 40 | B49: =VLOOKUP(C49,'CIE-X'!B:C,2,0) -> Autismo en la niñez | C49: F840 | D49: 21 | E49: 5 | F49: 26 | G49: 0.1638104839 | I49: 40 | J49: =VLOOKUP(K49,'CIE-X'!B:C,2,0) -> Autismo en la niñez | K49: F840 | L49: 15 | M49: 3 | N49: 18 | O49: 0.2169197397 | P49: 0.1134072581 | R49: 40 | S49: =VLOOKUP(T49,'CIE-X'!B:C,2,0) -> Autismo en la niñez | T49: F840 | U49: 6 | V49: 2 | W49: 8 | X49: 0.05040322581
A50: 41 | B50: =VLOOKUP(C50,'CIE-X'!B:C,2,0) -> Ciclotimia | C50: F340 | D50: 6 | E50: 19 | F50: 25 | G50: 0.1575100806 | I50: 41 | J50: =VLOOKUP(K50,'CIE-X'!B:C,2,0) -> Episodio depresivo grave con sintomas psicoticos | K50: F323 | L50: 2 | M50: 16 | N50: 18 | O50: 0.2169197397 | P50: 0.1134072581 | R50: 41 | S50: =VLOOKUP(T50,'CIE-X'!B:C,2,0) -> Enuresis no organica | T50: F980 | U50: 7 | V50: 1 | W50: 8 | X50: 0.05040322581
A51: 42 | B51: =VLOOKUP(C51,'CIE-X'!B:C,2,0) -> Retraso mental leve | C51: F70 | D51: 6 | E51: 17 | F51: 23 | G51: 0.1449092742 | I51: 42 | J51: =VLOOKUP(K51,'CIE-X'!B:C,2,0) -> Trastornos generalizados del desarrollo | K51: F84 | L51: 13 | M51: 4 | N51: 17 | O51: 0.204868643 | P51: 0.1071068548 | R51: 42 | S51: =VLOOKUP(T51,'CIE-X'!B:C,2,0) -> Trastorno del humor [afectivos] persistentes | T51: F34 | U51: 1 | V51: 6 | W51: 7 | X51: 0.04410282258
A52: 43 | B52: =VLOOKUP(C52,'CIE-X'!B:C,2,0) -> Trastorno afectivo bipolar, episodio depresivo grave presente sin sintomas psicoticos | C52: F314 | D52: 1 | E52: 21 | F52: 22 | G52: 0.138608871 | I52: 43 | J52: =VLOOKUP(K52,'CIE-X'!B:C,2,0) -> Hiperactividad | K52: R463 | L52: 12 | M52: 3 | N52: 15 | O52: 0.1807664497 | P52: 0.09450604839 | R52: 43 | S52: =VLOOKUP(T52,'CIE-X'!B:C,2,0) -> Reaccion al estres agudo | T52: F430 | U52: 4 | V52: 3 | W52: 7 | X52: 0.04410282258
A53: 44 | B53: =VLOOKUP(C53,'CIE-X'!B:C,2,0) ->  | C53: F99 | D53: 13 | E53: 8 | F53: 21 | G53: 0.1323084677 | I53: 44 | J53: =VLOOKUP(K53,'CIE-X'!B:C,2,0) -> Esquizofrenia catatonica | K53: F202 | L53: 11 | M53: 4 | N53: 15 | O53: 0.1807664497 | P53: 0.09450604839 | R53: 44 | S53: =VLOOKUP(T53,'CIE-X'!B:C,2,0) -> Trastorno afectivo bipolar, episodio depresivo grave presente sin sintomas psicoticos | T53: F314 | U53: 1 | V53: 6 | W53: 7 | X53: 0.04410282258
A54: 45 | B54: =VLOOKUP(C54,'CIE-X'!B:C,2,0) -> Trastornos generalizados del desarrollo | C54: F84 | D54: 15 | E54: 4 | F54: 19 | G54: 0.1197076613 | I54: 45 | J54: =VLOOKUP(K54,'CIE-X'!B:C,2,0) -> Trastorno afectivo bipolar, episodio depresivo grave presente sin sintomas psicoticos | K54: F314 | L54: 0 | M54: 15 | N54: 15 | O54: 0.1807664497 | P54: 0.09450604839 | R54: 45 | S54: =VLOOKUP(T54,'CIE-X'!B:C,2,0) -> Otros trastornos obsesivo-compulsivos | T54: F428 | U54: 1 | V54: 5 | W54: 6 | X54: 0.03780241935
A55: 46 | B55: =VLOOKUP(C55,'CIE-X'!B:C,2,0) -> Enfermedad de Parkinson | C55: G20X | D55: 13 | E55: 6 | F55: 19 | G55: 0.1197076613 | I55: 46 | J55: =VLOOKUP(K55,'CIE-X'!B:C,2,0) -> Trastorno de la personalidad emocionalmente inestable | K55: F603 | L55: 2 | M55: 12 | N55: 14 | O55: 0.1687153531 | P55: 0.08820564516 | R55: 46 | S55: =VLOOKUP(T55,'CIE-X'!B:C,2,0) -> Predominio de actos compulsivos [rituales obsesivos] | T55: F421 | U55: 0 | V55: 6 | W55: 6 | X55: 0.03780241935
A56: 47 | B56: =VLOOKUP(C56,'CIE-X'!B:C,2,0) -> Trastorno afectivo bipolar, episodio depresivo presente leve o moderado | C56: F313 | D56: 10 | E56: 9 | F56: 19 | G56: 0.1197076613 | I56: 47 | J56: =VLOOKUP(K56,'CIE-X'!B:C,2,0) -> Esquizofrenia hebefrenica | K56: F201 | L56: 9 | M56: 5 | N56: 14 | O56: 0.1687153531 | P56: 0.08820564516 | R56: 47 | S56: =VLOOKUP(T56,'CIE-X'!B:C,2,0) -> Trastorno opositor desafiante | T56: F913 | U56: 5 | V56: 1 | W56: 6 | X56: 0.03780241935
A57: 48 | B57: =VLOOKUP(C57,'CIE-X'!B:C,2,0) -> Hiperactividad | C57: R463 | D57: 15 | E57: 3 | F57: 18 | G57: 0.1134072581 | I57: 48 | J57: =VLOOKUP(K57,'CIE-X'!B:C,2,0) -> Trastorno afectivo bipolar, episodio maniaco presente sin sintomas psicoticos | K57: F311 | L57: 6 | M57: 7 | N57: 13 | O57: 0.1566642564 | P57: 0.08190524194 | R57: 48 | S57: =VLOOKUP(T57,'CIE-X'!B:C,2,0) -> Trastorno esquizoafectivo de tipo depresivo | T57: F251 | U57: 0 | V57: 6 | W57: 6 | X57: 0.03780241935
A58: 49 | B58: =VLOOKUP(C58,'CIE-X'!B:C,2,0) -> Observacion por sospecha de trastorno mental y del comportamiento | C58: Z032 | D58: 9 | E58: 7 | F58: 16 | G58: 0.1008064516 | I58: 49 | J58: =VLOOKUP(K58,'CIE-X'!B:C,2,0) -> Ciclotimia | K58: F340 | L58: 5 | M58: 7 | N58: 12 | O58: 0.1446131598 | P58: 0.07560483871 | R58: 49 | S58: =VLOOKUP(T58,'CIE-X'!B:C,2,0) -> Trastorno afectivo bipolar, episodio maniaco presente con sintomas psicoticos | T58: F312 | U58: 4 | V58: 2 | W58: 6 | X58: 0.03780241935
A59: 50 | B59: =VLOOKUP(C59,'CIE-X'!B:C,2,0) -> Sindrome de Asperger | C59: F845 | D59: 8 | E59: 7 | F59: 15 | G59: 0.09450604839 | I59: 50 | J59: =VLOOKUP(K59,'CIE-X'!B:C,2,0) -> Otras epilepsias y sindromes epilepticos generalizados | K59: G404 | L59: 7 | M59: 3 | N59: 10 | O59: 0.1205109665 | P59: 0.06300403226 | R59: 50 | S59: =VLOOKUP(T59,'CIE-X'!B:C,2,0) -> Trastornos esquizoafectivos | T59: F25 | U59: 0 | V59: 5 | W59: 5 | X59: 0.03150201613
A60: 51 | B60: =VLOOKUP(C60,'CIE-X'!B:C,2,0) -> Esquizofrenia catatonica | C60: F202 | D60: 11 | E60: 4 | F60: 15 | G60: 0.09450604839 | I60: 51 | J60: =VLOOKUP(K60,'CIE-X'!B:C,2,0) -> Trastorno afectivo bipolar, episodio maniaco presente con sintomas psicoticos | K60: F312 | L60: 6 | M60: 3 | N60: 9 | O60: 0.1084598698 | P60: 0.05670362903 | R60: 51 | S60: =VLOOKUP(T60,'CIE-X'!B:C,2,0) -> Esquizofrenia indiferenciada | T60: F203 | U60: 4 | V60: 1 | W60: 5 | X60: 0.03150201613
A61: 52 | B61: =VLOOKUP(C61,'CIE-X'!B:C,2,0) -> Trastorno afectivo bipolar, episodio maniaco presente con sintomas psicoticos | C61: F312 | D61: 10 | E61: 5 | F61: 15 | G61: 0.09450604839 | I61: 52 | J61: =VLOOKUP(K61,'CIE-X'!B:C,2,0) -> Epilepsia y sindromes epilepticos sintomaticos relacionados con localizaciones (focales)(parciales) y con ataques parciales complejos | K61: G402 | L61: 3 | M61: 5 | N61: 8 | O61: 0.0964087732 | P61: 0.05040322581 | R61: 52 | S61: =VLOOKUP(T61,'CIE-X'!B:C,2,0) -> Reaccion al estres grave, no especificada | T61: F439 | U61: 2 | V61: 3 | W61: 5 | X61: 0.03150201613
A62: 53 | B62: =VLOOKUP(C62,'CIE-X'!B:C,2,0) -> Esquizofrenia hebefrenica | C62: F201 | D62: 9 | E62: 5 | F62: 14 | G62: 0.08820564516 | I62: 53 | J62: =VLOOKUP(K62,'CIE-X'!B:C,2,0) ->  | K62: G20 | L62: 4 | M62: 4 | N62: 8 | O62: 0.0964087732 | P62: 0.05040322581 | R62: 53 | S62: =VLOOKUP(T62,'CIE-X'!B:C,2,0) -> Trastorno esquizotipico | T62: F21X | U62: 1 | V62: 3 | W62: 4 | X62: 0.0252016129
A63: 54 | B63: =VLOOKUP(C63,'CIE-X'!B:C,2,0) -> Trastorno afectivo bipolar, episodio maniaco presente sin sintomas psicoticos | C63: F311 | D63: 6 | E63: 8 | F63: 14 | G63: 0.08820564516 | I63: 54 | J63: =VLOOKUP(K63,'CIE-X'!B:C,2,0) -> Trastorno afectivo bipolar, episodio depresivo presente leve o moderado | K63: F313 | L63: 3 | M63: 5 | N63: 8 | O63: 0.0964087732 | P63: 0.05040322581 | R63: 54 | S63: =VLOOKUP(T63,'CIE-X'!B:C,2,0) -> Trastornos mentales y del comportamiento debidos al uso de multiples drogas y al uso de otras sustancias psicoactivas, trastorno psicotico residual y de comienzo tardio | T63: F197 | U63: 2 | V63: 2 | W63: 4 | X63: 0.0252016129
A64: 55 | B64: =VLOOKUP(C64,'CIE-X'!B:C,2,0) -> Anorexia nerviosa | C64: F500 | D64: 0 | E64: 13 | F64: 13 | G64: 0.08190524194 | I64: 55 | J64: =VLOOKUP(K64,'CIE-X'!B:C,2,0) -> Esquizofrenia simple | K64: F206 | L64: 5 | M64: 2 | N64: 7 | O64: 0.08435767655 | P64: 0.04410282258 | R64: 55 | S64: =VLOOKUP(T64,'CIE-X'!B:C,2,0) -> Otros problemas especificados relacionados con el grupo primario de apoyo | T64: Z638 | U64: 1 | V64: 3 | W64: 4 | X64: 0.0252016129
A65: 56 | B65: =VLOOKUP(C65,'CIE-X'!B:C,2,0) -> Otras epilepsias y sindromes epilepticos generalizados | C65: G404 | D65: 8 | E65: 3 | F65: 11 | G65: 0.06930443548 | I65: 56 | J65: =VLOOKUP(K65,'CIE-X'!B:C,2,0) -> Retraso mental, no especificado | K65: F79 | L65: 7 | M65: 0 | N65: 7 | O65: 0.08435767655 | P65: 0.04410282258 | R65: 56 | S65: =VLOOKUP(T65,'CIE-X'!B:C,2,0) -> Otros trastornos de ansiedad mixtos | T65: F413 | U65: 3 | V65: 1 | W65: 4 | X65: 0.0252016129
A66: 57 | B66: =VLOOKUP(C66,'CIE-X'!B:C,2,0) -> Epilepsia y sindromes epilepticos sintomaticos relacionados con localizaciones (focales)(parciales) y con ataques parciales complejos | C66: G402 | D66: 4 | E66: 7 | F66: 11 | G66: 0.06930443548 | I66: 57 | J66: =VLOOKUP(K66,'CIE-X'!B:C,2,0) -> Retraso mental moderado | K66: F71 | L66: 5 | M66: 1 | N66: 6 | O66: 0.0723065799 | P66: 0.03780241935 | R66: 57 | S66: =VLOOKUP(T66,'CIE-X'!B:C,2,0) -> Trastorno afectivo bipolar, episodio depresivo grave presente con sintomas psicoticos | T66: F315 | U66: 2 | V66: 2 | W66: 4 | X66: 0.0252016129
A67: 58 | B67: =VLOOKUP(C67,'CIE-X'!B:C,2,0) -> Trastornos esquizoafectivos | C67: F25 | D67: 2 | E67: 8 | F67: 10 | G67: 0.06300403226 | I67: 58 | J67: =VLOOKUP(K67,'CIE-X'!B:C,2,0) -> Delirio, no inducido por alcohol o por otras sustancias psicoactivas | K67: F05 | L67: 2 | M67: 4 | N67: 6 | O67: 0.0723065799 | P67: 0.03780241935 | R67: 58 | S67: =VLOOKUP(T67,'CIE-X'!B:C,2,0) ->  | T67: F29 | U67: 1 | V67: 2 | W67: 3 | X67: 0.01890120968
A68: 59 | B68: =VLOOKUP(C68,'CIE-X'!B:C,2,0) -> Trastorno opositor desafiante | C68: F913 | D68: 8 | E68: 2 | F68: 10 | G68: 0.06300403226 | I68: 59 | J68: =VLOOKUP(K68,'CIE-X'!B:C,2,0) -> Otros trastornos mentales especificados debidos a lesion y disfuncion cerebral y a enfermedad fisica | K68: F068 | L68: 5 | M68: 1 | N68: 6 | O68: 0.0723065799 | P68: 0.03780241935 | R68: 59 | S68: =VLOOKUP(T68,'CIE-X'!B:C,2,0) -> Otros trastornos emocionales y del comportamiento que aparecen habitualmente en la niñez y en la adolescencia | T68: F98 | U68: 0 | V68: 3 | W68: 3 | X68: 0.01890120968
A69: 60 | B69: =VLOOKUP(C69,'CIE-X'!B:C,2,0) -> Trastorno esquizoafectivo de tipo depresivo | C69: F251 | D69: 0 | E69: 10 | F69: 10 | G69: 0.06300403226 | I69: 60 | J69: =VLOOKUP(K69,'CIE-X'!B:C,2,0) -> Trastornos esquizoafectivos | K69: F25 | L69: 2 | M69: 3 | N69: 5 | O69: 0.06025548325 | P69: 0.03150201613 | R69: 60 | S69: =VLOOKUP(T69,'CIE-X'!B:C,2,0) -> Hiperactividad | T69: R463 | U69: 3 | V69: 0 | W69: 3 | X69: 0.01890120968
A70: 61 | B70: =VLOOKUP(C70,'CIE-X'!B:C,2,0) -> Trastornos mentales y del comportamiento debidos al uso de multiples drogas y al uso de otras sustancias psicoactivas, trastorno psicotico residual y de comienzo tardio | C70: F197 | D70: 7 | E70: 2 | F70: 9 | G70: 0.05670362903 | I70: 61 | J70: =VLOOKUP(K70,'CIE-X'!B:C,2,0) -> Trastornos fobicos de ansiedad | K70: F40 | L70: 3 | M70: 2 | N70: 5 | O70: 0.06025548325 | P70: 0.03150201613 | R70: 61 | S70: =VLOOKUP(T70,'CIE-X'!B:C,2,0) -> Epilepsia y sindromes epilepticos sintomaticos relacionados con localizaciones (focales)(parciales) y con ataques parciales complejos | T70: G402 | U70: 1 | V70: 2 | W70: 3 | X70: 0.01890120968
A71: 62 | B71: =VLOOKUP(C71,'CIE-X'!B:C,2,0) ->  | C71: G20 | D71: 5 | E71: 4 | F71: 9 | G71: 0.05670362903 | I71: 62 | J71: =VLOOKUP(K71,'CIE-X'!B:C,2,0) -> Trastornos mentales y del comportamiento debidos al uso de multiples drogas y al uso de otras sustancias psicoactivas, trastorno psicotico residual y de comienzo tardio | K71: F197 | L71: 5 | M71: 0 | N71: 5 | O71: 0.06025548325 | P71: 0.03150201613 | R71: 62 | S71: =VLOOKUP(T71,'CIE-X'!B:C,2,0) ->  | T71: F324 | U71: 1 | V71: 2 | W71: 3 | X71: 0.01890120968
A72: 63 | B72: =VLOOKUP(C72,'CIE-X'!B:C,2,0) -> Otros trastornos obsesivo-compulsivos | C72: F428 | D72: 3 | E72: 5 | F72: 8 | G72: 0.05040322581 | I72: 63 | J72: =VLOOKUP(K72,'CIE-X'!B:C,2,0) -> Demencia vascular mixta, cortical y subcortical | K72: F013 | L72: 0 | M72: 5 | N72: 5 | O72: 0.06025548325 | P72: 0.03150201613 | R72: 63 | S72: =VLOOKUP(T72,'CIE-X'!B:C,2,0) -> Epilepsia y sindromes epilepticos idiopaticos relacionados con localizaciones (focales)(parciales) y con ataques de inicio localizado | T72: G400 | U72: 1 | V72: 2 | W72: 3 | X72: 0.01890120968
A73: 64 | B73: =VLOOKUP(C73,'CIE-X'!B:C,2,0) -> Predominio de actos compulsivos [rituales obsesivos] | C73: F421 | D73: 0 | E73: 8 | F73: 8 | G73: 0.05040322581 | I73: 64 | J73: =VLOOKUP(K73,'CIE-X'!B:C,2,0) -> Trastornos mentales y del comportamiento debidos al uso de multiples drogas y al uso de otras sustancias psicoactivas, trastorno psicotico | K73: F195 | L73: 5 | M73: 0 | N73: 5 | O73: 0.06025548325 | P73: 0.03150201613 | R73: 64 | S73: =VLOOKUP(T73,'CIE-X'!B:C,2,0) -> Trastornos del humor [afectivos], organicos | T73: F063 | U73: 0 | V73: 3 | W73: 3 | X73: 0.01890120968
A74: 65 | B74: =VLOOKUP(C74,'CIE-X'!B:C,2,0) -> Trastornos del humor [afectivos], organicos | C74: F063 | D74: 0 | E74: 8 | F74: 8 | G74: =F74/$F$302*100 -> 0.05040322581 | I74: 65 | J74: =VLOOKUP(K74,'CIE-X'!B:C,2,0) -> Esquizofrenia, no especificada | K74: F209 | L74: 5 | M74: 0 | N74: 5 | O74: =N74/$N$302*100 -> 0.06025548325 | P74: =N74/$F$302*100 -> 0.03150201613 | R74: 65 | S74: =VLOOKUP(T74,'CIE-X'!B:C,2,0) -> Trastorno de somatizacion | T74: F450 | U74: 0 | V74: 3 | W74: 3 | X74: =W74/$F$302*100 -> 0.01890120968
A75: 66 | B75: =VLOOKUP(C75,'CIE-X'!B:C,2,0) -> Reaccion al estres agudo | C75: F430 | D75: 5 | E75: 3 | F75: 8 | G75: 0.05040322581 | I75: 66 | J75: =VLOOKUP(K75,'CIE-X'!B:C,2,0) -> Trastornos del humor [afectivos], organicos | K75: F063 | L75: 0 | M75: 5 | N75: 5 | O75: 0.06025548325 | P75: 0.03150201613 | R75: 66 | S75: =VLOOKUP(T75,'CIE-X'!B:C,2,0) -> Trastornos mentales y del comportamiento debidos al uso de otros estimilantes, incluida la cafeina | T75: F15 | U75: 3 | V75: 0 | W75: 3 | X75: 0.01890120968
A76: 67 | B76: =VLOOKUP(C76,'CIE-X'!B:C,2,0) -> Enuresis no organica | C76: F980 | D76: 7 | E76: 1 | F76: 8 | G76: 0.05040322581 | I76: 67 | J76: =VLOOKUP(K76,'CIE-X'!B:C,2,0) -> Trastorno esquizoafectivo de tipo mixto | K76: F252 | L76: 3 | M76: 2 | N76: 5 | O76: 0.06025548325 | P76: 0.03150201613 | R76: 67 | S76: =VLOOKUP(T76,'CIE-X'!B:C,2,0) -> Encopresis no organica | T76: F981 | U76: 2 | V76: 1 | W76: 3 | X76: 0.01890120968
A77: 68 | B77: =VLOOKUP(C77,'CIE-X'!B:C,2,0) -> Retraso mental, no especificado | C77: F79 | D77: 8 | E77: 0 | F77: 8 | G77: 0.05040322581 | I77: 68 | J77: =VLOOKUP(K77,'CIE-X'!B:C,2,0) -> Trastorno opositor desafiante | K77: F913 | L77: 3 | M77: 1 | N77: 4 | O77: 0.0482043866 | P77: 0.0252016129 | R77: 68 | S77: =VLOOKUP(T77,'CIE-X'!B:C,2,0) ->  | T77: F463 | U77: 1 | V77: 1 | W77: 2 | X77: 0.01260080645
A78: 69 | B78: =VLOOKUP(C78,'CIE-X'!B:C,2,0) -> Esquizofrenia simple | C78: F206 | D78: 5 | E78: 2 | F78: 7 | G78: 0.04410282258 | I78: 69 | J78: =VLOOKUP(K78,'CIE-X'!B:C,2,0) -> Trastorno esquizoafectivo de tipo depresivo | K78: F251 | L78: 0 | M78: 4 | N78: 4 | O78: 0.0482043866 | P78: 0.0252016129 | R78: 69 | S78: =VLOOKUP(T78,'CIE-X'!B:C,2,0) -> Trastornos generalizados del desarrollo | T78: F84 | U78: 2 | V78: 0 | W78: 2 | X78: 0.01260080645
A79: 70 | B79: =VLOOKUP(C79,'CIE-X'!B:C,2,0) -> Retraso mental moderado | C79: F71 | D79: 5 | E79: 2 | F79: 7 | G79: 0.04410282258 | I79: 70 | J79: =VLOOKUP(K79,'CIE-X'!B:C,2,0) -> Trastorno afectivo bipolar, episodio mixto presente | K79: F316 | L79: 1 | M79: 3 | N79: 4 | O79: 0.0482043866 | P79: 0.0252016129 | R79: 70 | S79: =VLOOKUP(T79,'CIE-X'!B:C,2,0) -> Trastorno obsesivo-compulsivo | T79: F42 | U79: 1 | V79: 1 | W79: 2 | X79: 0.01260080645
A80: 71 | B80: =VLOOKUP(C80,'CIE-X'!B:C,2,0) -> Epilepsia y sindromes epilepticos idiopaticos relacionados con localizaciones (focales)(parciales) y con ataques de inicio localizado | C80: G400 | D80: 4 | E80: 2 | F80: 6 | G80: 0.03780241935 | I80: 71 | J80: =VLOOKUP(K80,'CIE-X'!B:C,2,0) -> Reaccion al estres grave y trastornos de adaptacion | K80: F43 | L80: 1 | M80: 3 | N80: 4 | O80: 0.0482043866 | P80: 0.0252016129 | R80: 71 | S80: =VLOOKUP(T80,'CIE-X'!B:C,2,0) -> Actos e ideas obsesivas mixtos | T80: F422 | U80: 0 | V80: 2 | W80: 2 | X80: 0.01260080645
A81: 72 | B81: =VLOOKUP(C81,'CIE-X'!B:C,2,0) -> Trastorno de somatizacion | C81: F450 | D81: 0 | E81: 6 | F81: 6 | G81: 0.03780241935 | I81: 72 | J81: =VLOOKUP(K81,'CIE-X'!B:C,2,0) -> Trastorno esquizoafectivo de tipo maniaco | K81: F250 | L81: 1 | M81: 2 | N81: 3 | O81: 0.03615328995 | P81: 0.01890120968 | R81: 72 | S81: =VLOOKUP(T81,'CIE-X'!B:C,2,0) -> Retraso mental leve | T81: F70 | U81: 1 | V81: 1 | W81: 2 | X81: 0.01260080645
A82: 73 | B82: =VLOOKUP(C82,'CIE-X'!B:C,2,0) -> Reaccion al estres grave, no especificada | C82: F439 | D82: 3 | E82: 3 | F82: 6 | G82: 0.03780241935 | I82: 73 | J82: =VLOOKUP(K82,'CIE-X'!B:C,2,0) -> Epilepsia y sindromes epilepticos sintomaticos relacionados con localizaciones (focales)(parciales) y con ataques parciales simples | K82: G401 | L82: 1 | M82: 2 | N82: 3 | O82: 0.03615328995 | P82: 0.01890120968 | R82: 73 | S82: =VLOOKUP(T82,'CIE-X'!B:C,2,0) -> Otros trastornos psicoticos de origen no organico | T82: F28X | U82: 0 | V82: 2 | W82: 2 | X82: 0.01260080645
A83: 74 | B83: =VLOOKUP(C83,'CIE-X'!B:C,2,0) -> Delirio, no inducido por alcohol o por otras sustancias psicoactivas | C83: F05 | D83: 2 | E83: 4 | F83: 6 | G83: 0.03780241935 | I83: 74 | J83: =VLOOKUP(K83,'CIE-X'!B:C,2,0) -> Epilepsia y sindromes epilepticos idiopaticos relacionados con localizaciones (focales)(parciales) y con ataques de inicio localizado | K83: G400 | L83: 3 | M83: 0 | N83: 3 | O83: 0.03615328995 | P83: 0.01890120968 | R83: 74 | S83: =VLOOKUP(T83,'CIE-X'!B:C,2,0) -> Trastorno especifico de la pronunciacion | T83: F800 | U83: 0 | V83: 2 | W83: 2 | X83: 0.01260080645
A84: 75 | B84: =VLOOKUP(C84,'CIE-X'!B:C,2,0) -> Otros trastornos mentales especificados debidos a lesion y disfuncion cerebral y a enfermedad fisica | C84: F068 | D84: 5 | E84: 1 | F84: 6 | G84: 0.03780241935 | I84: 75 | J84: =VLOOKUP(K84,'CIE-X'!B:C,2,0) -> Trastorno de somatizacion | K84: F450 | L84: 0 | M84: 3 | N84: 3 | O84: 0.03615328995 | P84: 0.01890120968 | R84: 75 | S84: =VLOOKUP(T84,'CIE-X'!B:C,2,0) -> Bulimia nerviosa atipica | T84: F503 | U84: 0 | V84: 2 | W84: 2 | X84: 0.01260080645
A85: 76 | B85: =VLOOKUP(C85,'CIE-X'!B:C,2,0) -> Trastornos fobicos de ansiedad | C85: F40 | D85: 3 | E85: 2 | F85: 5 | G85: 0.03150201613 | I85: 76 | J85: =VLOOKUP(K85,'CIE-X'!B:C,2,0) -> Trastornos especificos de la personalidad | K85: F60 | L85: 0 | M85: 3 | N85: 3 | O85: 0.03615328995 | P85: 0.01890120968 | R85: 76 | S85: =VLOOKUP(T85,'CIE-X'!B:C,2,0) -> Fobias especificas (aisladas) | T85: F402 | U85: 0 | V85: 2 | W85: 2 | X85: 0.01260080645
A86: 77 | B86: =VLOOKUP(C86,'CIE-X'!B:C,2,0) -> Demencia vascular mixta, cortical y subcortical | C86: F013 | D86: 0 | E86: 5 | F86: 5 | G86: 0.03150201613 | I86: 77 | J86: =VLOOKUP(K86,'CIE-X'!B:C,2,0) ->  | K86: F290 | L86: 2 | M86: 1 | N86: 3 | O86: 0.03615328995 | P86: 0.01890120968 | R86: 77 | S86: =VLOOKUP(T86,'CIE-X'!B:C,2,0) -> Trastornos mentales y del comportamiento debidos al uso de alcohol | T86: F10 | U86: 1 | V86: 0 | W86: 1 | X86: 0.006300403226
A87: 78 | B87: =VLOOKUP(C87,'CIE-X'!B:C,2,0) -> Trastornos mentales y del comportamiento debidos al uso de multiples drogas y al uso de otras sustancias psicoactivas, trastorno psicotico | C87: F195 | D87: 5 | E87: 0 | F87: 5 | G87: 0.03150201613 | I87: 78 | J87: =VLOOKUP(K87,'CIE-X'!B:C,2,0) -> Retraso mental, no especificado, deterioro del comportamiento de grado no especificado | K87: F799 | L87: 3 | M87: 0 | N87: 3 | O87: 0.03615328995 | P87: 0.01890120968 | R87: 78 | S87: =VLOOKUP(T87,'CIE-X'!B:C,2,0) -> Trastorno de la personalidad dependiente | T87: F607 | U87: 0 | V87: 1 | W87: 1 | X87: 0.006300403226
A88: 79 | B88: =VLOOKUP(C88,'CIE-X'!B:C,2,0) -> Otros trastornos de ansiedad mixtos | C88: F413 | D88: 4 | E88: 1 | F88: 5 | G88: 0.03150201613 | I88: 79 | J88: =VLOOKUP(K88,'CIE-X'!B:C,2,0) -> Trastornos especificos del desarrollo del habla y del lenguaje | K88: F80 | L88: 2 | M88: 1 | N88: 3 | O88: 0.03615328995 | P88: 0.01890120968 | R88: 79 | S88: =VLOOKUP(T88,'CIE-X'!B:C,2,0) -> Cambio perdurable de la personalidad consecutivo a una enfermedad psiquiatrica | T88: F621 | U88: 1 | V88: 0 | W88: 1 | X88: 0.006300403226
A89: 80 | B89: =VLOOKUP(C89,'CIE-X'!B:C,2,0) -> Esquizofrenia, no especificada | C89: F209 | D89: 5 | E89: 0 | F89: 5 | G89: 0.03150201613 | I89: 80 | J89: =VLOOKUP(K89,'CIE-X'!B:C,2,0) -> Trastornos de la conducta | K89: F91 | L89: 2 | M89: 1 | N89: 3 | O89: 0.03615328995 | P89: 0.01890120968 | R89: 80 | S89: =VLOOKUP(T89,'CIE-X'!B:C,2,0) ->  | T89: R45X | U89: 1 | V89: 0 | W89: 1 | X89: 0.006300403226
A90: 81 | B90: =VLOOKUP(C90,'CIE-X'!B:C,2,0) -> Reaccion al estres grave y trastornos de adaptacion | C90: F43 | D90: 2 | E90: 3 | F90: 5 | G90: 0.03150201613 | I90: 81 | J90: =VLOOKUP(K90,'CIE-X'!B:C,2,0) -> Trastornos del sistema nervioso autonomo | K90: G90 | L90: 2 | M90: 0 | N90: 2 | O90: 0.0241021933 | P90: 0.01260080645 | R90: 81 | S90: =VLOOKUP(T90,'CIE-X'!B:C,2,0) ->  | T90: F4321 | U90: 0 | V90: 1 | W90: 1 | X90: 0.006300403226
A91: 82 | B91: =VLOOKUP(C91,'CIE-X'!B:C,2,0) -> Trastorno esquizoafectivo de tipo mixto | C91: F252 | D91: 3 | E91: 2 | F91: 5 | G91: 0.03150201613 | I91: 82 | J91: =VLOOKUP(K91,'CIE-X'!B:C,2,0) -> Otros trastornos obsesivo-compulsivos | K91: F428 | L91: 2 | M91: 0 | N91: 2 | O91: 0.0241021933 | P91: 0.01260080645 | R91: 82 | S91: =VLOOKUP(T91,'CIE-X'!B:C,2,0) ->  | T91: F3311 | U91: 1 | V91: 0 | W91: 1 | X91: 0.006300403226
A92: 83 | B92: =VLOOKUP(C92,'CIE-X'!B:C,2,0) -> Actos e ideas obsesivas mixtos | C92: F422 | D92: 1 | E92: 3 | F92: 4 | G92: 0.0252016129 | I92: 83 | J92: =VLOOKUP(K92,'CIE-X'!B:C,2,0) -> Trastornos mentales y del comportamiento debidos al uso de alcohol | K92: F10 | L92: 1 | M92: 1 | N92: 2 | O92: 0.0241021933 | P92: 0.01260080645 | R92: 83 | S92: =VLOOKUP(T92,'CIE-X'!B:C,2,0) -> Esquizofrenia residual | T92: F205 | U92: 1 | V92: 0 | W92: 1 | X92: 0.006300403226
A93: 84 | B93: =VLOOKUP(C93,'CIE-X'!B:C,2,0) ->  | C93: F324 | D93: 1 | E93: 3 | F93: 4 | G93: 0.0252016129 | I93: 84 | J93: =VLOOKUP(K93,'CIE-X'!B:C,2,0) -> Sindrome de Asperger | K93: F845 | L93: 1 | M93: 1 | N93: 2 | O93: 0.0241021933 | P93: 0.01260080645 | R93: 84 | S93: =VLOOKUP(T93,'CIE-X'!B:C,2,0) -> Otras epilepsias y sindromes epilepticos generalizados | T93: G404 | U93: 1 | V93: 0 | W93: 1 | X93: 0.006300403226
A94: 85 | B94: =VLOOKUP(C94,'CIE-X'!B:C,2,0) -> Otros problemas especificados relacionados con el grupo primario de apoyo | C94: Z638 | D94: 1 | E94: 3 | F94: 4 | G94: 0.0252016129 | I94: 85 | J94: =VLOOKUP(K94,'CIE-X'!B:C,2,0) -> Predominio de actos compulsivos [rituales obsesivos] | K94: F421 | L94: 0 | M94: 2 | N94: 2 | O94: 0.0241021933 | P94: 0.01260080645 | R94: 85 | S94: =VLOOKUP(T94,'CIE-X'!B:C,2,0) ->  | T94: G334 | U94: 1 | V94: 0 | W94: 1 | X94: 0.006300403226
A95: 86 | B95: =VLOOKUP(C95,'CIE-X'!B:C,2,0) -> Trastorno afectivo bipolar, episodio mixto presente | C95: F316 | D95: 1 | E95: 3 | F95: 4 | G95: 0.0252016129 | I95: 86 | J95: =VLOOKUP(K95,'CIE-X'!B:C,2,0) -> Actos e ideas obsesivas mixtos | K95: F422 | L95: 1 | M95: 1 | N95: 2 | O95: 0.0241021933 | P95: 0.01260080645 | R95: 86 | S95: =VLOOKUP(T95,'CIE-X'!B:C,2,0) -> Enfermedad de Parkinson | T95: G20X | U95: 1 | V95: 0 | W95: 1 | X95: 0.006300403226
A96: 87 | B96: =VLOOKUP(C96,'CIE-X'!B:C,2,0) -> Trastorno afectivo bipolar, episodio depresivo grave presente con sintomas psicoticos | C96: F315 | D96: 2 | E96: 2 | F96: 4 | G96: 0.0252016129 | I96: 87 | J96: =VLOOKUP(K96,'CIE-X'!B:C,2,0) ->  | K96: F3311 | L96: 0 | M96: 2 | N96: 2 | O96: 0.0241021933 | P96: 0.01260080645 | R96: 87 | S96: =VLOOKUP(T96,'CIE-X'!B:C,2,0) -> Demencia en la enfermedad de alzheimer | T96: F00 | U96: 0 | V96: 1 | W96: 1 | X96: 0.006300403226
A97: 88 | B97: =VLOOKUP(C97,'CIE-X'!B:C,2,0) -> Trastornos mentales y del comportamiento debidos al uso de otros estimilantes, incluida la cafeina | C97: F15 | D97: 4 | E97: 0 | F97: 4 | G97: 0.0252016129 | I97: 88 | J97: =VLOOKUP(K97,'CIE-X'!B:C,2,0) -> Trastornos mentales y del comportamiento debidos al uso de multiples drogas y al uso de otras sustancias psicoactivas, otros trastornos mentales y del comportamiento | K97: F198 | L97: 2 | M97: 0 | N97: 2 | O97: 0.0241021933 | P97: 0.01260080645 | R97: 88 | S97: =VLOOKUP(T97,'CIE-X'!B:C,2,0) ->  | T97: F4325 | U97: 1 | V97: 0 | W97: 1 | X97: 0.006300403226
A98: 89 | B98: =VLOOKUP(C98,'CIE-X'!B:C,2,0) -> Otros trastornos emocionales y del comportamiento que aparecen habitualmente en la niñez y en la adolescencia | C98: F98 | D98: 0 | E98: 3 | F98: 3 | G98: 0.01890120968 | I98: 89 | J98: =VLOOKUP(K98,'CIE-X'!B:C,2,0) ->  | K98: G40X | L98: 1 | M98: 1 | N98: 2 | O98: 0.0241021933 | P98: 0.01260080645 | R98: 89 | S98: =VLOOKUP(T98,'CIE-X'!B:C,2,0) -> Trastorno afectivo bipolar, episodio maniaco presente sin sintomas psicoticos | T98: F311 | U98: 0 | V98: 1 | W98: 1 | X98: 0.006300403226
A99: 90 | B99: =VLOOKUP(C99,'CIE-X'!B:C,2,0) -> Trastornos mentales y del comportamiento debidos al uso de alcohol | C99: F10 | D99: 2 | E99: 1 | F99: 3 | G99: 0.01890120968 | I99: 90 | J99: =VLOOKUP(K99,'CIE-X'!B:C,2,0) -> Epilepsia, tipo no especificado | K99: G409 | L99: 0 | M99: 2 | N99: 2 | O99: 0.0241021933 | P99: 0.01260080645 | R99: 90 | S99: =VLOOKUP(T99,'CIE-X'!B:C,2,0) -> Retraso mental leve, deterioro del comportamiento nulo o minimo | T99: F700 | U99: 0 | V99: 1 | W99: 1 | X99: 0.006300403226
A100: 91 | B100: =VLOOKUP(C100,'CIE-X'!B:C,2,0) -> Trastorno esquizoafectivo de tipo maniaco | C100: F250 | D100: 1 | E100: 2 | F100: 3 | G100: 0.01890120968 | I100: 91 | J100: =VLOOKUP(K100,'CIE-X'!B:C,2,0) -> Otras epilepsias | K100: G408 | L100: 2 | M100: 0 | N100: 2 | O100: 0.0241021933 | P100: 0.01260080645 | R100: 91 | S100: =VLOOKUP(T100,'CIE-X'!B:C,2,0) -> Desorientacion no especificada | T100: R410 | U100: 0 | V100: 1 | W100: 1 | X100: 0.006300403226
A101: 92 | B101: =VLOOKUP(C101,'CIE-X'!B:C,2,0) ->  | C101: F3311 | D101: 1 | E101: 2 | F101: 3 | G101: 0.01890120968 | I101: 92 | J101: =VLOOKUP(K101,'CIE-X'!B:C,2,0) -> Retraso mental grave | K101: F72 | L101: 1 | M101: 1 | N101: 2 | O101: 0.0241021933 | P101: 0.01260080645 | R101: 92 | S101: =VLOOKUP(T101,'CIE-X'!B:C,2,0) ->  | T101: F414 | U101: 0 | V101: 1 | W101: 1 | X101: 0.006300403226
A102: 93 | B102: =VLOOKUP(C102,'CIE-X'!B:C,2,0) -> Epilepsia y sindromes epilepticos sintomaticos relacionados con localizaciones (focales)(parciales) y con ataques parciales simples | C102: G401 | D102: 1 | E102: 2 | F102: 3 | G102: 0.01890120968 | I102: 93 | J102: =VLOOKUP(K102,'CIE-X'!B:C,2,0) -> Otras esquizofrenias | K102: F208 | L102: 2 | M102: 0 | N102: 2 | O102: 0.0241021933 | P102: 0.01260080645 | R102: 93 | S102: =VLOOKUP(T102,'CIE-X'!B:C,2,0) ->  | T102: F434 | U102: 0 | V102: 1 | W102: 1 | X102: 0.006300403226
A103: 94 | B103: =VLOOKUP(C103,'CIE-X'!B:C,2,0) -> Trastornos mentales y del comportamiento debidos al uso de multiples drogas y al uso de otras sustancias psicoactivas | C103: F19 | D103: 3 | E103: 0 | F103: 3 | G103: 0.01890120968 | I103: 94 | J103: =VLOOKUP(K103,'CIE-X'!B:C,2,0) -> Trastornos mentales y del comportamiento debidos al uso de multiples drogas y al uso de otras sustancias psicoactivas | K103: F19 | L103: 2 | M103: 0 | N103: 2 | O103: 0.0241021933 | P103: 0.01260080645 | R103: 94 | S103: =VLOOKUP(T103,'CIE-X'!B:C,2,0) -> Otros trastornos de ansiedad especificados | T103: F418 | U103: 1 | V103: 0 | W103: 1 | X103: 0.006300403226
A104: 95 | B104: =VLOOKUP(C104,'CIE-X'!B:C,2,0) -> Trastorno especifico de la pronunciacion | C104: F800 | D104: 0 | E104: 3 | F104: 3 | G104: 0.01890120968 | I104: 95 | J104: =VLOOKUP(K104,'CIE-X'!B:C,2,0) -> Trastornos mentales y del comportamiento debidos al uso de alcohol, trastorno psicotico | K104: F105 | L104: 2 | M104: 0 | N104: 2 | O104: 0.0241021933 | P104: 0.01260080645 | R104: 95 | S104: =VLOOKUP(T104,'CIE-X'!B:C,2,0) -> Trastornos de la ingestion de alimentos | T104: F50 | U104: 0 | V104: 1 | W104: 1 | X104: 0.006300403226
A105: 96 | B105: =VLOOKUP(C105,'CIE-X'!B:C,2,0) -> Trastornos especificos de la personalidad | C105: F60 | D105: 0 | E105: 3 | F105: 3 | G105: 0.01890120968 | I105: 96 | J105: =VLOOKUP(K105,'CIE-X'!B:C,2,0) -> Otros problemas relacionados con el grupo primario de apoyo, inclusive circunstancias familiares | K105: Z63 | L105: 2 | M105: 0 | N105: 2 | O105: 0.0241021933 | P105: 0.01260080645 | R105: 96 | S105: =VLOOKUP(T105,'CIE-X'!B:C,2,0) -> Trastorno hipercinetico de la conducta | T105: F901 | U105: 1 | V105: 0 | W105: 1 | X105: 0.006300403226
A106: 97 | B106: =VLOOKUP(C106,'CIE-X'!B:C,2,0) ->  | C106: F290 | D106: 2 | E106: 1 | F106: 3 | G106: 0.01890120968 | I106: 97 | J106: =VLOOKUP(K106,'CIE-X'!B:C,2,0) ->  | K106: F99 | L106: 0 | M106: 2 | N106: 2 | O106: 0.0241021933 | P106: 0.01260080645 | R106: 97 | S106: =VLOOKUP(T106,'CIE-X'!B:C,2,0) ->  | T106: F900 | U106: 1 | V106: 0 | W106: 1 | X106: 0.006300403226
A107: 98 | B107: =VLOOKUP(C107,'CIE-X'!B:C,2,0) -> Encopresis no organica | C107: F981 | D107: 2 | E107: 1 | F107: 3 | G107: 0.01890120968 | I107: 98 | J107: =VLOOKUP(K107,'CIE-X'!B:C,2,0) ->  | K107: F423 | L107: 1 | M107: 1 | N107: 2 | O107: 0.0241021933 | P107: 0.01260080645 | R107: 98 | S107: =VLOOKUP(T107,'CIE-X'!B:C,2,0) -> Trastorno de la personalidad, organico | T107: F070 | U107: 0 | V107: 1 | W107: 1 | X107: 0.006300403226
A108: 99 | B108: =VLOOKUP(C108,'CIE-X'!B:C,2,0) -> Retraso mental, no especificado, deterioro del comportamiento de grado no especificado | C108: F799 | D108: 3 | E108: 0 | F108: 3 | G108: 0.01890120968 | I108: 99 | J108: =VLOOKUP(K108,'CIE-X'!B:C,2,0) -> Trastornos somatomorfos | K108: F45 | L108: 1 | M108: 0 | N108: 1 | O108: 0.01205109665 | P108: 0.006300403226 | R108: 99 | S108: =VLOOKUP(T108,'CIE-X'!B:C,2,0) ->  | T108: G20 | U108: 1 | V108: 0 | W108: 1 | X108: 0.006300403226
A109: 100 | B109: =VLOOKUP(C109,'CIE-X'!B:C,2,0) -> Trastornos especificos del desarrollo del habla y del lenguaje | C109: F80 | D109: 2 | E109: 1 | F109: 3 | G109: 0.01890120968 | I109: 100 | J109: =VLOOKUP(K109,'CIE-X'!B:C,2,0) -> Trastornos del comportamiento social de comienzo especifico en la niñez y en la adolescencia | K109: F94 | L109: 0 | M109: 1 | N109: 1 | O109: 0.01205109665 | P109: 0.006300403226 | R109: 100 | S109: =VLOOKUP(T109,'CIE-X'!B:C,2,0) ->  | T109: F41.1 | U109: 0 | V109: 1 | W109: 1 | X109: 0.006300403226
A110: 101 | B110: =VLOOKUP(C110,'CIE-X'!B:C,2,0) -> Trastornos de la conducta | C110: F91 | D110: 2 | E110: 1 | F110: 3 | G110: 0.01890120968 | I110: 101 | J110: =VLOOKUP(K110,'CIE-X'!B:C,2,0) -> Tumor de comportamiento incierto o desconocido de la pelvis renal | K110: D411 | L110: 0 | M110: 1 | N110: 1 | O110: 0.01205109665 | P110: 0.006300403226 | R110: 101 | S110: =VLOOKUP(T110,'CIE-X'!B:C,2,0) -> Reaccion al estres grave y trastornos de adaptacion | T110: F43 | U110: 1 | V110: 0 | W110: 1 | X110: 0.006300403226
A111: 102 | B111: =VLOOKUP(C111,'CIE-X'!B:C,2,0) ->  | C111: F463 | D111: 1 | E111: 1 | F111: 2 | G111: 0.01260080645 | I111: 102 | J111: =VLOOKUP(K111,'CIE-X'!B:C,2,0) -> Falta del desarrollo fisiologico normal esperado | K111: R62 | L111: 1 | M111: 0 | N111: 1 | O111: 0.01205109665 | P111: 0.006300403226 | R111: 102 | S111: =VLOOKUP(T111,'CIE-X'!B:C,2,0) ->  | T111: FG20 | U111: 1 | V111: 0 | W111: 1 | X111: 0.006300403226
A112: 103 | B112: =VLOOKUP(C112,'CIE-X'!B:C,2,0) -> Trastornos del sistema nervioso autonomo | C112: G90 | D112: 2 | E112: 0 | F112: 2 | G112: 0.01260080645 | I112: 103 | J112: =VLOOKUP(K112,'CIE-X'!B:C,2,0) -> Hepatitis alcoholica | K112: K701 | L112: 1 | M112: 0 | N112: 1 | O112: 0.01205109665 | P112: 0.006300403226 | R112: 103 | S112: =VLOOKUP(T112,'CIE-X'!B:C,2,0) -> Trastorno delirante [esquizofreniforme], organico | T112: F062 | U112: 0 | V112: 1 | W112: 1 | X112: 0.006300403226
A113: 104 | B113: =VLOOKUP(C113,'CIE-X'!B:C,2,0) -> Trastorno obsesivo-compulsivo | C113: F42 | D113: 1 | E113: 1 | F113: 2 | G113: 0.01260080645 | I113: 104 | J113: =VLOOKUP(K113,'CIE-X'!B:C,2,0) ->  | K113: F324 | L113: 0 | M113: 1 | N113: 1 | O113: 0.01205109665 | P113: 0.006300403226 | R113: 104 | S113: =VLOOKUP(T113,'CIE-X'!B:C,2,0) -> Trastornos mentales y del comportamiento debidos al uso de multiples drogas y al uso de otras sustancias psicoactivas | T113: F19 | U113: 1 | V113: 0 | W113: 1 | X113: 0.006300403226
A114: 105 | B114: =VLOOKUP(C114,'CIE-X'!B:C,2,0) -> Trastornos mentales y del comportamiento debidos al uso de multiples drogas y al uso de otras sustancias psicoactivas, otros trastornos mentales y del comportamiento | C114: F198 | D114: 2 | E114: 0 | F114: 2 | G114: 0.01260080645 | I114: 105 | J114: =VLOOKUP(K114,'CIE-X'!B:C,2,0) -> Trastornos mentales y del comportamiento debidos al uso de multiples drogas y al uso de otras sustancias psicoactivas, sindrome de dependendencia | K114: F192 | L114: 1 | M114: 0 | N114: 1 | O114: 0.01205109665 | P114: 0.006300403226 | R114: 105 | S114: =VLOOKUP(T114,'CIE-X'!B:C,2,0) ->  | T114: F321 | U114: 0 | V114: 1 | W114: 1 | X114: 0.006300403226
A115: 106 | B115: =VLOOKUP(C115,'CIE-X'!B:C,2,0) ->  | C115: G40X | D115: 1 | E115: 1 | F115: 2 | G115: 0.01260080645 | I115: 106 | J115: =VLOOKUP(K115,'CIE-X'!B:C,2,0) -> Demencia en la enfermedad de alzheimer | K115: F00 | L115: 1 | M115: 0 | N115: 1 | O115: 0.01205109665 | P115: 0.006300403226 | R115: 106 | S115: =VLOOKUP(T115,'CIE-X'!B:C,2,0) -> Otros trastornos emocionales y del comportamiento que aparecen habitualmente en la niñez y en la adolescencia | T115: F988 | U115: 0 | V115: 1 | W115: 1 | X115: 0.006300403226
A116: 107 | B116: =VLOOKUP(C116,'CIE-X'!B:C,2,0) -> Demencia en la enfermedad de alzheimer | C116: F00 | D116: 1 | E116: 1 | F116: 2 | G116: 0.01260080645 | I116: 107 | J116: =VLOOKUP(K116,'CIE-X'!B:C,2,0) -> Demencia vascular, no especificada | K116: F019 | L116: 0 | M116: 1 | N116: 1 | O116: 0.01205109665 | P116: 0.006300403226 | R116: 107 | S116: =VLOOKUP(T116,'CIE-X'!B:C,2,0) -> Retraso mental moderado | T116: F71 | U116: 0 | V116: 1 | W116: 1 | X116: 0.006300403226
A117: 108 | B117: =VLOOKUP(C117,'CIE-X'!B:C,2,0) -> Epilepsia, tipo no especificado | C117: G409 | D117: 0 | E117: 2 | F117: 2 | G117: 0.01260080645 | I117: 108 | J117: =VLOOKUP(K117,'CIE-X'!B:C,2,0) -> Otros trastornos de ansiedad mixtos | K117: F413 | L117: 1 | M117: 0 | N117: 1 | O117: 0.01205109665 | P117: 0.006300403226 | R117: 108 | S117: =VLOOKUP(T117,'CIE-X'!B:C,2,0) -> Trastornos mentales y del comportamiento leves, asociados con el puerperio, no clasificados en otra parte | T117: F530 | U117: 0 | V117: 1 | W117: 1 | X117: 0.006300403226
A118: 109 | B118: =VLOOKUP(C118,'CIE-X'!B:C,2,0) -> Otras epilepsias | C118: G408 | D118: 2 | E118: 0 | F118: 2 | G118: 0.01260080645 | I118: 109 | J118: =VLOOKUP(K118,'CIE-X'!B:C,2,0) -> Anorexia nerviosa | K118: F500 | L118: 0 | M118: 1 | N118: 1 | O118: 0.01205109665 | P118: 0.006300403226 | R118: 109 | S118: =VLOOKUP(T118,'CIE-X'!B:C,2,0) -> Trastornos no especificados, emocionales y del comportamiento, que aparecen habitualmente en la niñez y en la adolescencia | T118: F989 | U118: 0 | V118: 1 | W118: 1 | X118: 0.006300403226
A119: 110 | B119: =VLOOKUP(C119,'CIE-X'!B:C,2,0) -> Trastornos de la ingestion de alimentos | C119: F50 | D119: 0 | E119: 2 | F119: 2 | G119: 0.01260080645 | I119: 110 | J119: =VLOOKUP(K119,'CIE-X'!B:C,2,0) -> Migraña | K119: G43 | L119: 0 | M119: 1 | N119: 1 | O119: 0.01205109665 | P119: 0.006300403226 | R119: 110 | S119: =VLOOKUP(T119,'CIE-X'!B:C,2,0) -> Retraso mental, no especificado | T119: F79 | U119: 1 | V119: 0 | W119: 1 | X119: 0.006300403226
A120: 111 | B120: =VLOOKUP(C120,'CIE-X'!B:C,2,0) -> Retraso mental grave | C120: F72 | D120: 1 | E120: 1 | F120: 2 | G120: 0.01260080645 | I120: 111 | J120: =VLOOKUP(K120,'CIE-X'!B:C,2,0) -> Retraso mental moderado, deterioro del comportamiento nulo o minimo | K120: F710 | L120: 1 | M120: 0 | N120: 1 | O120: 0.01205109665 | P120: 0.006300403226 | R120: 111 | S120: =VLOOKUP(T120,'CIE-X'!B:C,2,0) -> Fobias sociales | T120: F401 | U120: 0 | V120: 1 | W120: 1 | X120: 0.006300403226
A121: 112 | B121: =VLOOKUP(C121,'CIE-X'!B:C,2,0) -> Otras esquizofrenias | C121: F208 | D121: 2 | E121: 0 | F121: 2 | G121: 0.01260080645 | I121: 112 | J121: =VLOOKUP(K121,'CIE-X'!B:C,2,0) -> Trastornos de la ingestion de alimentos | K121: F50 | L121: 0 | M121: 1 | N121: 1 | O121: 0.01205109665 | P121: 0.006300403226 | R121: 112 | S121: =VLOOKUP(T121,'CIE-X'!B:C,2,0) -> Demencia , no especificada | T121: F03X | U121: 1 | V121: 0 | W121: 1 | X121: 0.006300403226
A122: 113 | B122: =VLOOKUP(C122,'CIE-X'!B:C,2,0) -> Trastorno delirante [esquizofreniforme], organico | C122: F062 | D122: 1 | E122: 1 | F122: 2 | G122: 0.01260080645 | I122: 113 | J122: =VLOOKUP(K122,'CIE-X'!B:C,2,0) ->  | K122: G40 | L122: 1 | M122: 0 | N122: 1 | O122: 0.01205109665 | P122: 0.006300403226 | R122: 113 | S122: =VLOOKUP(T122,'CIE-X'!B:C,2,0) ->  | T122: F41.0 | U122: 1 | V122: 0 | W122: 1 | X122: 0.006300403226
A123: 114 | B123: =VLOOKUP(C123,'CIE-X'!B:C,2,0) -> Otros trastornos psicoticos de origen no organico | C123: F28X | D123: 0 | E123: 2 | F123: 2 | G123: 0.01260080645 | I123: 114 | J123: =VLOOKUP(K123,'CIE-X'!B:C,2,0) -> Trastorno hipercinetico, no especificado | K123: F909 | L123: 1 | M123: 0 | N123: 1 | O123: 0.01205109665 | P123: 0.006300403226 | R123: 114 | S123: =VLOOKUP(T123,'CIE-X'!B:C,2,0) ->  | T123: F43.2 | U123: 0 | V123: 1 | W123: 1 | X123: 0.006300403226
A124: 115 | B124: =VLOOKUP(C124,'CIE-X'!B:C,2,0) -> Trastornos mentales y del comportamiento debidos al uso de alcohol, trastorno psicotico | C124: F105 | D124: 2 | E124: 0 | F124: 2 | G124: 0.01260080645 | I124: 115 | J124: =VLOOKUP(K124,'CIE-X'!B:C,2,0) -> Otros trastornos mentales debidos a lesion y disfu | K124: F06 | L124: 1 | M124: 0 | N124: 1 | O124: 0.01205109665 | P124: 0.006300403226 | R124: 115 | S124: =VLOOKUP(T124,'CIE-X'!B:C,2,0) -> Trastornos mixtos de la conducta y de las emociones | T124: F92 | U124: 1 | V124: 0 | W124: 1 | X124: 0.006300403226
A125: 116 | B125: =VLOOKUP(C125,'CIE-X'!B:C,2,0) -> Bulimia nerviosa atipica | C125: F503 | D125: 0 | E125: 2 | F125: 2 | G125: 0.01260080645 | I125: 116 | J125: =VLOOKUP(K125,'CIE-X'!B:C,2,0) -> Reaccion al estres agudo | K125: F430 | L125: 1 | M125: 0 | N125: 1 | O125: 0.01205109665 | P125: 0.006300403226 | R125: 116 | S125: =VLOOKUP(T125,'CIE-X'!B:C,2,0) -> Trastornos psicoticos agudos y transitorios | T125: F23 | U125: 0 | V125: 1 | W125: 1 | X125: 0.006300403226
A126: 117 | B126: =VLOOKUP(C126,'CIE-X'!B:C,2,0) -> Trastornos mentales y del comportamiento leves, asociados con el puerperio, no clasificados en otra parte | C126: F530 | D126: 0 | E126: 2 | F126: 2 | G126: 0.01260080645 | I126: 117 | J126: =VLOOKUP(K126,'CIE-X'!B:C,2,0) -> Trastorno delirante [esquizofreniforme], organico | K126: F062 | L126: 1 | M126: 0 | N126: 1 | O126: 0.01205109665 | P126: 0.006300403226 | R126: 117 | S126: =VLOOKUP(T126,'CIE-X'!B:C,2,0) ->  | T126: F345 | U126: 1 | V126: 0 | W126: 1 | X126: 0.006300403226
A127: 118 | B127: =VLOOKUP(C127,'CIE-X'!B:C,2,0) -> Otros problemas relacionados con el grupo primario de apoyo, inclusive circunstancias familiares | C127: Z63 | D127: 2 | E127: 0 | F127: 2 | G127: 0.01260080645 | I127: 118 | J127: =VLOOKUP(K127,'CIE-X'!B:C,2,0) -> Trastornos delirante persistente, no especificado | K127: F229 | L127: 0 | M127: 1 | N127: 1 | O127: 0.01205109665 | P127: 0.006300403226 | R127: 118 | S127: =VLOOKUP(T127,'CIE-X'!B:C,2,0) -> Trastornos del sistema nervioso autonomo | T127: G90 | U127: 0 | V127: 0 | W127: 0 | X127: 0
A128: 119 | B128: =VLOOKUP(C128,'CIE-X'!B:C,2,0) -> Fobias especificas (aisladas) | C128: F402 | D128: 0 | E128: 2 | F128: 2 | G128: 0.01260080645 | I128: 119 | J128: =VLOOKUP(K128,'CIE-X'!B:C,2,0) -> Trastornos mentales y del comportamiento debidos al uso de otros estimilantes, incluida la cafeina | K128: F15 | L128: 1 | M128: 0 | N128: 1 | O128: 0.01205109665 | P128: 0.006300403226 | R128: 119 | S128: =VLOOKUP(T128,'CIE-X'!B:C,2,0) -> Trastornos somatomorfos | T128: F45 | U128: 0 | V128: 0 | W128: 0 | X128: 0
A129: 120 | B129: =VLOOKUP(C129,'CIE-X'!B:C,2,0) ->  | C129: F423 | D129: 1 | E129: 1 | F129: 2 | G129: 0.01260080645 | I129: 120 | J129: =VLOOKUP(K129,'CIE-X'!B:C,2,0) -> Trastorno somatomorfo indiferenciado | K129: F451 | L129: 0 | M129: 1 | N129: 1 | O129: 0.01205109665 | P129: 0.006300403226 | R129: 120 | S129: =VLOOKUP(T129,'CIE-X'!B:C,2,0) -> Trastornos del comportamiento social de comienzo especifico en la niñez y en la adolescencia | T129: F94 | U129: 0 | V129: 0 | W129: 0 | X129: 0
A130: 121 | B130: =VLOOKUP(C130,'CIE-X'!B:C,2,0) -> Trastornos somatomorfos | C130: F45 | D130: 1 | E130: 0 | F130: 1 | G130: 0.006300403226 | I130: 121 | J130: =VLOOKUP(K130,'CIE-X'!B:C,2,0) -> Trastorno especifico de la pronunciacion | K130: F800 | L130: 0 | M130: 1 | N130: 1 | O130: 0.01205109665 | P130: 0.006300403226 | R130: 121 | S130: =VLOOKUP(T130,'CIE-X'!B:C,2,0) -> Tumor de comportamiento incierto o desconocido de la pelvis renal | T130: D411 | U130: 0 | V130: 0 | W130: 0 | X130: 0
A131: 122 | B131: =VLOOKUP(C131,'CIE-X'!B:C,2,0) -> Trastornos del comportamiento social de comienzo especifico en la niñez y en la adolescencia | C131: F94 | D131: 0 | E131: 1 | F131: 1 | G131: 0.006300403226 | I131: 122 | J131: =VLOOKUP(K131,'CIE-X'!B:C,2,0) -> Trastornos mentales y del comportamiento debidos al uso de alcohol, estado de abstinencia | K131: F103 | L131: 1 | M131: 0 | N131: 1 | O131: 0.01205109665 | P131: 0.006300403226 | R131: 122 | S131: =VLOOKUP(T131,'CIE-X'!B:C,2,0) -> Falta del desarrollo fisiologico normal esperado | T131: R62 | U131: 0 | V131: 0 | W131: 0 | X131: 0
A132: 123 | B132: =VLOOKUP(C132,'CIE-X'!B:C,2,0) -> Tumor de comportamiento incierto o desconocido de la pelvis renal | C132: D411 | D132: 0 | E132: 1 | F132: 1 | G132: 0.006300403226 | I132: 123 | J132: =VLOOKUP(K132,'CIE-X'!B:C,2,0) -> Trastorno delirante | K132: F220 | L132: 1 | M132: 0 | N132: 1 | O132: 0.01205109665 | P132: 0.006300403226 | R132: 123 | S132: =VLOOKUP(T132,'CIE-X'!B:C,2,0) -> Trastorno esquizoafectivo de tipo maniaco | T132: F250 | U132: 0 | V132: 0 | W132: 0 | X132: 0
A133: 124 | B133: =VLOOKUP(C133,'CIE-X'!B:C,2,0) -> Falta del desarrollo fisiologico normal esperado | C133: R62 | D133: 1 | E133: 0 | F133: 1 | G133: 0.006300403226 | I133: 124 | J133: =VLOOKUP(K133,'CIE-X'!B:C,2,0) -> Trastornos mentales y del comportamiento debidos al uso de alcohol, otros trastornos mentales y del comportamiento | K133: F108 | L133: 1 | M133: 0 | N133: 1 | O133: 0.01205109665 | P133: 0.006300403226 | R133: 124 | S133: =VLOOKUP(T133,'CIE-X'!B:C,2,0) ->  | T133: (en blanco) | U133: 0 | V133: 0 | W133: 0 | X133: 0
A134: 125 | B134: =VLOOKUP(C134,'CIE-X'!B:C,2,0) -> Trastorno de la personalidad dependiente | C134: F607 | D134: 0 | E134: 1 | F134: 1 | G134: 0.006300403226 | I134: 125 | J134: =VLOOKUP(K134,'CIE-X'!B:C,2,0) -> Sindrome de la muerte subita infantil | K134: R95 | L134: 0 | M134: 1 | N134: 1 | O134: 0.01205109665 | P134: 0.006300403226 | R134: 125 | S134: =VLOOKUP(T134,'CIE-X'!B:C,2,0) -> Trastornos fobicos de ansiedad | T134: F40 | U134: 0 | V134: 0 | W134: 0 | X134: 0
A135: 126 | B135: =VLOOKUP(C135,'CIE-X'!B:C,2,0) -> Cambio perdurable de la personalidad consecutivo a una enfermedad psiquiatrica | C135: F621 | D135: 1 | E135: 0 | F135: 1 | G135: 0.006300403226 | I135: 126 | J135: =VLOOKUP(K135,'CIE-X'!B:C,2,0) -> Insomnio no organico | K135: F510 | L135: 1 | M135: 0 | N135: 1 | O135: 0.01205109665 | P135: 0.006300403226 | R135: 126 | S135: =VLOOKUP(T135,'CIE-X'!B:C,2,0) ->  | U135: 0 | V135: 0 | W135: 0 | X135: 0
A136: 127 | B136: =VLOOKUP(C136,'CIE-X'!B:C,2,0) ->  | C136: F4321 | D136: 0 | E136: 1 | F136: 1 | G136: 0.006300403226 | I136: 127 | J136: =VLOOKUP(K136,'CIE-X'!B:C,2,0) -> Trastornos mentales y del comportamiento leves, asociados con el puerperio, no clasificados en otra parte | K136: F530 | L136: 0 | M136: 1 | N136: 1 | O136: 0.01205109665 | P136: 0.006300403226 | R136: 127 | S136: =VLOOKUP(T136,'CIE-X'!B:C,2,0) -> Esquizofrenia hebefrenica | T136: F201 | U136: 0 | V136: 0 | W136: 0 | X136: 0
A137: 128 | B137: =VLOOKUP(C137,'CIE-X'!B:C,2,0) ->  | C137: G334 | D137: 1 | E137: 0 | F137: 1 | G137: 0.006300403226 | I137: 128 | J137: =VLOOKUP(K137,'CIE-X'!B:C,2,0) -> Reaccion al estres grave, no especificada | K137: F439 | L137: 1 | M137: 0 | N137: 1 | O137: 0.01205109665 | P137: 0.006300403226 | R137: 128 | S137: =VLOOKUP(T137,'CIE-X'!B:C,2,0) -> Trastornos mentales y del comportamiento debidos al uso de multiples drogas y al uso de otras sustancias psicoactivas, otros trastornos mentales y del comportamiento | T137: F198 | U137: 0 | V137: 0 | W137: 0 | X137: 0
A138: 129 | B138: =VLOOKUP(C138,'CIE-X'!B:C,2,0) -> Hepatitis alcoholica | C138: K701 | D138: 1 | E138: 0 | F138: 1 | G138: =F138/$F$302*100 -> 0.006300403226 | I138: 129 | J138: =VLOOKUP(K138,'CIE-X'!B:C,2,0) -> Sindrome de despersonalizacion y desvinculacion de la realidad | K138: F481 | L138: 1 | M138: 0 | N138: 1 | O138: =N138/$N$302*100 -> 0.01205109665 | P138: =N138/$F$302*100 -> 0.006300403226 | R138: 129 | S138: =VLOOKUP(T138,'CIE-X'!B:C,2,0) -> Hepatitis alcoholica | T138: K701 | U138: 0 | V138: 0 | W138: 0 | X138: =W138/$F$302*100 -> 0
A139: 130 | B139: =VLOOKUP(C139,'CIE-X'!B:C,2,0) -> Trastornos mentales y del comportamiento debidos al uso de multiples drogas y al uso de otras sustancias psicoactivas, sindrome de dependendencia | C139: F192 | D139: 1 | E139: 0 | F139: 1 | G139: 0.006300403226 | I139: 130 | J139: =VLOOKUP(K139,'CIE-X'!B:C,2,0) -> Delirio no superpuesto a un cuadro de demencia, asi descrito | K139: F050 | L139: 1 | M139: 0 | N139: 1 | O139: 0.01205109665 | P139: 0.006300403226 | R139: 130 | S139: =VLOOKUP(T139,'CIE-X'!B:C,2,0) -> Demencia vascular mixta, cortical y subcortical | T139: F013 | U139: 0 | V139: 0 | W139: 0 | X139: 0
A140: 131 | B140: =VLOOKUP(C140,'CIE-X'!B:C,2,0) ->  | C140: F4325 | D140: 1 | E140: 0 | F140: 1 | G140: 0.006300403226 | I140: 131 | J140: =VLOOKUP(K140,'CIE-X'!B:C,2,0) -> Convulsiones, no clasificadas en otra parte | K140: R56 | L140: 0 | M140: 1 | N140: 1 | O140: 0.01205109665 | P140: 0.006300403226 | R140: 131 | S140: =VLOOKUP(T140,'CIE-X'!B:C,2,0) ->  | T140: G40X | U140: 0 | V140: 0 | W140: 0 | X140: 0
A141: 132 | B141: =VLOOKUP(C141,'CIE-X'!B:C,2,0) -> Demencia vascular, no especificada | C141: F019 | D141: 0 | E141: 1 | F141: 1 | G141: 0.006300403226 | I141: 132 | J141: =VLOOKUP(K141,'CIE-X'!B:C,2,0) -> Trastorno generalizado del desarrollo no especificado | K141: F849 | L141: 1 | M141: 0 | N141: 1 | O141: 0.01205109665 | P141: 0.006300403226 | R141: 132 | S141: =VLOOKUP(T141,'CIE-X'!B:C,2,0) -> Trastornos mentales y del comportamiento debidos al uso de multiples drogas y al uso de otras sustancias psicoactivas, trastorno psicotico | T141: F195 | U141: 0 | V141: 0 | W141: 0 | X141: 0
A142: 133 | B142: =VLOOKUP(C142,'CIE-X'!B:C,2,0) -> Retraso mental leve, deterioro del comportamiento nulo o minimo | C142: F700 | D142: 0 | E142: 1 | F142: 1 | G142: 0.006300403226 | I142: 133 | J142: =VLOOKUP(K142,'CIE-X'!B:C,2,0) -> Trastornos delirantes persistentes | K142: F22 | L142: 1 | M142: 0 | N142: 1 | O142: 0.01205109665 | P142: 0.006300403226 | R142: 133 | S142: =VLOOKUP(T142,'CIE-X'!B:C,2,0) -> Trastornos mentales y del comportamiento debidos al uso de multiples drogas y al uso de otras sustancias psicoactivas, sindrome de dependendencia | T142: F192 | U142: 0 | V142: 0 | W142: 0 | X142: 0
A143: 134 | B143: =VLOOKUP(C143,'CIE-X'!B:C,2,0) -> Desorientacion no especificada | C143: R410 | D143: 0 | E143: 1 | F143: 1 | G143: 0.006300403226 | I143: 134 | J143: =VLOOKUP(K143,'CIE-X'!B:C,2,0) -> Trastornos mentales y del comportamiento debidos al uso de otros estimulantes, incluida la cafeina, sindrome de dependencia | K143: F152 | L143: 1 | M143: 0 | N143: 1 | O143: 0.01205109665 | P143: 0.006300403226 | R143: 134 | S143: =VLOOKUP(T143,'CIE-X'!B:C,2,0) -> Esquizofrenia simple | T143: F206 | U143: 0 | V143: 0 | W143: 0 | X143: 0
A144: 135 | B144: =VLOOKUP(C144,'CIE-X'!B:C,2,0) ->  | C144: F414 | D144: 0 | E144: 1 | F144: 1 | G144: 0.006300403226 | I144: 135 | J144: =VLOOKUP(K144,'CIE-X'!B:C,2,0) -> Agorafobia | K144: F400 | L144: 1 | M144: 0 | N144: 1 | O144: 0.01205109665 | P144: 0.006300403226 | R144: 135 | S144: =VLOOKUP(T144,'CIE-X'!B:C,2,0) -> Epilepsia y sindromes epilepticos sintomaticos relacionados con localizaciones (focales)(parciales) y con ataques parciales simples | T144: G401 | U144: 0 | V144: 0 | W144: 0 | X144: 0
A145: 136 | B145: =VLOOKUP(C145,'CIE-X'!B:C,2,0) ->  | C145: F434 | D145: 0 | E145: 1 | F145: 1 | G145: 0.006300403226 | I145: 136 | J145: =VLOOKUP(K145,'CIE-X'!B:C,2,0) -> Trastornos especificos del desarrollo de las habilidades escolares | K145: F81 | L145: 1 | M145: 0 | N145: 1 | O145: 0.01205109665 | P145: 0.006300403226 | R145: 136 | S145: =VLOOKUP(T145,'CIE-X'!B:C,2,0) -> Epilepsia, tipo no especificado | T145: G409 | U145: 0 | V145: 0 | W145: 0 | X145: 0
A146: 137 | B146: =VLOOKUP(C146,'CIE-X'!B:C,2,0) -> Migraña | C146: G43 | D146: 0 | E146: 1 | F146: 1 | G146: 0.006300403226 | I146: 137 | J146: =VLOOKUP(K146,'CIE-X'!B:C,2,0) -> Demencia en otras enfermedades especificadas clasificadas en otra parte | K146: F028 | L146: 0 | M146: 1 | N146: 1 | O146: 0.01205109665 | P146: 0.006300403226 | R146: 137 | S146: =VLOOKUP(T146,'CIE-X'!B:C,2,0) -> Esquizofrenia catatonica | T146: F202 | U146: 0 | V146: 0 | W146: 0 | X146: 0
A147: 138 | B147: =VLOOKUP(C147,'CIE-X'!B:C,2,0) -> Otros trastornos de ansiedad especificados | C147: F418 | D147: 1 | E147: 0 | F147: 1 | G147: 0.006300403226 | I147: 138 | J147: =VLOOKUP(K147,'CIE-X'!B:C,2,0) -> Retraso mental leve, deterioro del comportamiento de grado no especificado | K147: F709 | L147: 1 | M147: 0 | N147: 1 | O147: 0.01205109665 | P147: 0.006300403226 | R147: 138 | S147: =VLOOKUP(T147,'CIE-X'!B:C,2,0) -> Demencia vascular, no especificada | T147: F019 | U147: 0 | V147: 0 | W147: 0 | X147: 0
A148: 139 | B148: =VLOOKUP(C148,'CIE-X'!B:C,2,0) -> Retraso mental moderado, deterioro del comportamiento nulo o minimo | C148: F710 | D148: 1 | E148: 0 | F148: 1 | G148: 0.006300403226 | I148: 139 | J148: =VLOOKUP(K148,'CIE-X'!B:C,2,0) -> Trastorno de la personalidad, no especificado | K148: F609 | L148: 1 | M148: 0 | N148: 1 | O148: 0.01205109665 | P148: 0.006300403226 | R148: 139 | S148: =VLOOKUP(T148,'CIE-X'!B:C,2,0) -> Otras epilepsias | T148: G408 | U148: 0 | V148: 0 | W148: 0 | X148: 0
A149: 140 | B149: =VLOOKUP(C149,'CIE-X'!B:C,2,0) ->  | C149: G40 | D149: 1 | E149: 0 | F149: 1 | G149: 0.006300403226 | I149: 140 | J149: =VLOOKUP(K149,'CIE-X'!B:C,2,0) -> Demencia en la enfermedad de Huntington | K149: F022 | L149: 0 | M149: 1 | N149: 1 | O149: 0.01205109665 | P149: 0.006300403226 | R149: 140 | S149: =VLOOKUP(T149,'CIE-X'!B:C,2,0) -> Migraña | T149: G43 | U149: 0 | V149: 0 | W149: 0 | X149: 0
A150: 141 | B150: =VLOOKUP(C150,'CIE-X'!B:C,2,0) -> Trastorno hipercinetico de la conducta | C150: F901 | D150: 1 | E150: 0 | F150: 1 | G150: 0.006300403226 | I150: 141 | J150: =VLOOKUP(K150,'CIE-X'!B:C,2,0) -> Nerviosismo | K150: R450 | L150: 0 | M150: 1 | N150: 1 | O150: 0.01205109665 | P150: 0.006300403226 | R150: 141 | S150: =VLOOKUP(T150,'CIE-X'!B:C,2,0) -> Retraso mental moderado, deterioro del comportamiento nulo o minimo | T150: F710 | U150: 0 | V150: 0 | W150: 0 | X150: 0
A151: 142 | B151: =VLOOKUP(C151,'CIE-X'!B:C,2,0) ->  | C151: F900 | D151: 1 | E151: 0 | F151: 1 | G151: 0.006300403226 | I151: 142 | J151: =VLOOKUP(K151,'CIE-X'!B:C,2,0) -> Trastorno especifico del desarrollo de la funcion motriz | K151: F82X | L151: 1 | M151: 0 | N151: 1 | O151: 0.01205109665 | P151: 0.006300403226 | R151: 142 | S151: =VLOOKUP(T151,'CIE-X'!B:C,2,0) -> Esquizofrenia, no especificada | T151: F209 | U151: 0 | V151: 0 | W151: 0 | X151: 0
A152: 143 | B152: =VLOOKUP(C152,'CIE-X'!B:C,2,0) -> Trastorno de la personalidad, organico | C152: F070 | D152: 0 | E152: 1 | F152: 1 | G152: 0.006300403226 | I152: 143 | J152: =VLOOKUP(K152,'CIE-X'!B:C,2,0) -> Trastorno de la conducta sociable | K152: F912 | L152: 1 | M152: 0 | N152: 1 | O152: 0.01205109665 | P152: 0.006300403226 | R152: 143 | S152: =VLOOKUP(T152,'CIE-X'!B:C,2,0) -> Retraso mental grave | T152: F72 | U152: 0 | V152: 0 | W152: 0 | X152: 0
A153: 144 | B153: =VLOOKUP(C153,'CIE-X'!B:C,2,0) -> Trastorno hipercinetico, no especificado | C153: F909 | D153: 1 | E153: 0 | F153: 1 | G153: 0.006300403226 | I153: 144 | J153: =VLOOKUP(K153,'CIE-X'!B:C,2,0) -> Demencia en la enfermedad de Pick | K153: F020 | L153: 1 | M153: 0 | N153: 1 | O153: 0.01205109665 | P153: 0.006300403226 | R153: 144 | S153: =VLOOKUP(T153,'CIE-X'!B:C,2,0) ->  | T153: G40 | U153: 0 | V153: 0 | W153: 0 | X153: 0
A154: 145 | B154: =VLOOKUP(C154,'CIE-X'!B:C,2,0) -> Otros trastornos mentales debidos a lesion y disfu | C154: F06 | D154: 1 | E154: 0 | F154: 1 | G154: 0.006300403226 | I154: 145 | J154: =VLOOKUP(K154,'CIE-X'!B:C,2,0) -> Predominio de pensamientos o rumiaciones obsesivas | K154: F420 | L154: 1 | M154: 0 | N154: 1 | O154: 0.01205109665 | P154: 0.006300403226 | R154: 145 | S154: =VLOOKUP(T154,'CIE-X'!B:C,2,0) -> Trastorno afectivo bipolar, episodio mixto presente | T154: F316 | U154: 0 | V154: 0 | W154: 0 | X154: 0
A155: 146 | B155: =VLOOKUP(C155,'CIE-X'!B:C,2,0) ->  | C155: F41.1 | D155: 0 | E155: 1 | F155: 1 | G155: 0.006300403226 | I155: 146 | J155: =VLOOKUP(K155,'CIE-X'!B:C,2,0) -> Distonia | K155: G24 | L155: 1 | M155: 0 | N155: 1 | O155: 0.01205109665 | P155: 0.006300403226 | R155: 146 | S155: =VLOOKUP(T155,'CIE-X'!B:C,2,0) -> Otras esquizofrenias | T155: F208 | U155: 0 | V155: 0 | W155: 0 | X155: 0
A156: 147 | B156: =VLOOKUP(C156,'CIE-X'!B:C,2,0) ->  | C156: FG20 | D156: 1 | E156: 0 | F156: 1 | G156: 0.006300403226 | I156: 147 | J156: =VLOOKUP(K156,'CIE-X'!B:C,2,0) -> Enfermedad cerebrovascular, no especificada | K156: I679 | L156: 1 | M156: 0 | N156: 1 | O156: 0.01205109665 | P156: 0.006300403226 | R156: 147 | S156: =VLOOKUP(T156,'CIE-X'!B:C,2,0) -> Trastorno hipercinetico, no especificado | T156: F909 | U156: 0 | V156: 0 | W156: 0 | X156: 0
A157: 148 | B157: =VLOOKUP(C157,'CIE-X'!B:C,2,0) -> Trastornos delirante persistente, no especificado | C157: F229 | D157: 0 | E157: 1 | F157: 1 | G157: 0.006300403226 | I157: 148 | J157: =VLOOKUP(K157,'CIE-X'!B:C,2,0) -> Trastorno paranoide de la personalidad | K157: F600 | L157: 0 | M157: 1 | N157: 1 | O157: 0.01205109665 | P157: 0.006300403226 | R157: 148 | S157: =VLOOKUP(T157,'CIE-X'!B:C,2,0) -> Otros trastornos mentales debidos a lesion y disfu | T157: F06 | U157: 0 | V157: 0 | W157: 0 | X157: 0
A158: 149 | B158: =VLOOKUP(C158,'CIE-X'!B:C,2,0) -> Trastorno somatomorfo indiferenciado | C158: F451 | D158: 0 | E158: 1 | F158: 1 | G158: 0.006300403226 | I158: 149 | J158: =VLOOKUP(K158,'CIE-X'!B:C,2,0) ->  | K158: F21 | L158: 1 | M158: 0 | N158: 1 | O158: 0.01205109665 | P158: 0.006300403226 | R158: 149 | S158: =VLOOKUP(T158,'CIE-X'!B:C,2,0) -> Trastornos mentales y del comportamiento debidos al uso de alcohol, trastorno psicotico | T158: F105 | U158: 0 | V158: 0 | W158: 0 | X158: 0
A159: 150 | B159: =VLOOKUP(C159,'CIE-X'!B:C,2,0) -> Trastornos mentales y del comportamiento debidos al uso de alcohol, estado de abstinencia | C159: F103 | D159: 1 | E159: 0 | F159: 1 | G159: 0.006300403226 | I159: 150 | J159: =VLOOKUP(K159,'CIE-X'!B:C,2,0) -> Otros trastornos del humor [afectivos] | K159: F38 | L159: 0 | M159: 1 | N159: 1 | O159: 0.01205109665 | P159: 0.006300403226 | R159: 150 | S159: =VLOOKUP(T159,'CIE-X'!B:C,2,0) -> Trastornos delirante persistente, no especificado | T159: F229 | U159: 0 | V159: 0 | W159: 0 | X159: 0
A160: 151 | B160: =VLOOKUP(C160,'CIE-X'!B:C,2,0) ->  | C160: F321 | D160: 0 | E160: 1 | F160: 1 | G160: 0.006300403226 | I160: 151 | J160: =VLOOKUP(K160,'CIE-X'!B:C,2,0) ->  | K160: F463 | L160: 0 | M160: 0 | N160: 0 | O160: 0 | P160: 0 | R160: 151 | S160: =VLOOKUP(T160,'CIE-X'!B:C,2,0) -> Trastorno somatomorfo indiferenciado | T160: F451 | U160: 0 | V160: 0 | W160: 0 | X160: 0
A161: 152 | B161: =VLOOKUP(C161,'CIE-X'!B:C,2,0) -> Trastorno delirante | C161: F220 | D161: 1 | E161: 0 | F161: 1 | G161: 0.006300403226 | I161: 152 | J161: =VLOOKUP(K161,'CIE-X'!B:C,2,0) -> Otros trastornos emocionales y del comportamiento que aparecen habitualmente en la niñez y en la adolescencia | K161: F98 | L161: 0 | M161: 0 | N161: 0 | O161: 0 | P161: 0 | R161: 152 | S161: =VLOOKUP(T161,'CIE-X'!B:C,2,0) -> Trastorno esquizoafectivo de tipo mixto | T161: F252 | U161: 0 | V161: 0 | W161: 0 | X161: 0
A162: 153 | B162: =VLOOKUP(C162,'CIE-X'!B:C,2,0) -> Trastornos mentales y del comportamiento debidos al uso de alcohol, otros trastornos mentales y del comportamiento | C162: F108 | D162: 1 | E162: 0 | F162: 1 | G162: 0.006300403226 | I162: 153 | J162: =VLOOKUP(K162,'CIE-X'!B:C,2,0) -> Trastorno de la personalidad dependiente | K162: F607 | L162: 0 | M162: 0 | N162: 0 | O162: 0 | P162: 0 | R162: 153 | S162: =VLOOKUP(T162,'CIE-X'!B:C,2,0) -> Trastornos mentales y del comportamiento debidos al uso de alcohol, estado de abstinencia | T162: F103 | U162: 0 | V162: 0 | W162: 0 | X162: 0
A163: 154 | B163: =VLOOKUP(C163,'CIE-X'!B:C,2,0) -> Sindrome de la muerte subita infantil | C163: R95 | D163: 0 | E163: 1 | F163: 1 | G163: 0.006300403226 | I163: 154 | J163: =VLOOKUP(K163,'CIE-X'!B:C,2,0) -> Cambio perdurable de la personalidad consecutivo a una enfermedad psiquiatrica | K163: F621 | L163: 0 | M163: 0 | N163: 0 | O163: 0 | P163: 0 | R163: 154 | S163: =VLOOKUP(T163,'CIE-X'!B:C,2,0) -> Trastornos especificos de la personalidad | T163: F60 | U163: 0 | V163: 0 | W163: 0 | X163: 0
A164: 155 | B164: =VLOOKUP(C164,'CIE-X'!B:C,2,0) -> Otros trastornos emocionales y del comportamiento que aparecen habitualmente en la niñez y en la adolescencia | C164: F988 | D164: 0 | E164: 1 | F164: 1 | G164: 0.006300403226 | I164: 155 | J164: =VLOOKUP(K164,'CIE-X'!B:C,2,0) ->  | K164: (en blanco) | L164: 0 | M164: 0 | N164: 0 | O164: 0 | P164: 0 | R164: 155 | S164: =VLOOKUP(T164,'CIE-X'!B:C,2,0) ->  | T164: F290 | U164: 0 | V164: 0 | W164: 0 | X164: 0
A165: 156 | B165: =VLOOKUP(C165,'CIE-X'!B:C,2,0) -> Insomnio no organico | C165: F510 | D165: 1 | E165: 0 | F165: 1 | G165: 0.006300403226 | I165: 156 | J165: =VLOOKUP(K165,'CIE-X'!B:C,2,0) -> Trastorno obsesivo-compulsivo | K165: F42 | L165: 0 | M165: 0 | N165: 0 | O165: 0 | P165: 0 | R165: 156 | S165: =VLOOKUP(T165,'CIE-X'!B:C,2,0) -> Trastorno delirante | T165: F220 | U165: 0 | V165: 0 | W165: 0 | X165: 0
A166: 157 | B166: =VLOOKUP(C166,'CIE-X'!B:C,2,0) -> Trastornos no especificados, emocionales y del comportamiento, que aparecen habitualmente en la niñez y en la adolescencia | C166: F989 | D166: 0 | E166: 1 | F166: 1 | G166: 0.006300403226 | I166: 157 | J166: =VLOOKUP(K166,'CIE-X'!B:C,2,0) ->  | L166: 0 | M166: 0 | N166: 0 | O166: 0 | P166: 0 | R166: 157 | S166: =VLOOKUP(T166,'CIE-X'!B:C,2,0) -> Trastornos mentales y del comportamiento debidos al uso de alcohol, otros trastornos mentales y del comportamiento | T166: F108 | U166: 0 | V166: 0 | W166: 0 | X166: 0
A167: 158 | B167: =VLOOKUP(C167,'CIE-X'!B:C,2,0) -> Sindrome de despersonalizacion y desvinculacion de la realidad | C167: F481 | D167: 1 | E167: 0 | F167: 1 | G167: 0.006300403226 | I167: 158 | J167: =VLOOKUP(K167,'CIE-X'!B:C,2,0) ->  | K167: F4321 | L167: 0 | M167: 0 | N167: 0 | O167: 0 | P167: 0 | R167: 158 | S167: =VLOOKUP(T167,'CIE-X'!B:C,2,0) -> Sindrome de la muerte subita infantil | T167: R95 | U167: 0 | V167: 0 | W167: 0 | X167: 0
A168: 159 | B168: =VLOOKUP(C168,'CIE-X'!B:C,2,0) -> Delirio no superpuesto a un cuadro de demencia, asi descrito | C168: F050 | D168: 1 | E168: 0 | F168: 1 | G168: 0.006300403226 | I168: 159 | J168: =VLOOKUP(K168,'CIE-X'!B:C,2,0) ->  | K168: G334 | L168: 0 | M168: 0 | N168: 0 | O168: 0 | P168: 0 | R168: 159 | S168: =VLOOKUP(T168,'CIE-X'!B:C,2,0) -> Insomnio no organico | T168: F510 | U168: 0 | V168: 0 | W168: 0 | X168: 0
A169: 160 | B169: =VLOOKUP(C169,'CIE-X'!B:C,2,0) -> Convulsiones, no clasificadas en otra parte | C169: R56 | D169: 0 | E169: 1 | F169: 1 | G169: 0.006300403226 | I169: 160 | J169: =VLOOKUP(K169,'CIE-X'!B:C,2,0) ->  | K169: F4325 | L169: 0 | M169: 0 | N169: 0 | O169: 0 | P169: 0 | R169: 160 | S169: =VLOOKUP(T169,'CIE-X'!B:C,2,0) -> Delirio, no inducido por alcohol o por otras sustancias psicoactivas | T169: F05 | U169: 0 | V169: 0 | W169: 0 | X169: 0
A170: 161 | B170: =VLOOKUP(C170,'CIE-X'!B:C,2,0) -> Trastorno generalizado del desarrollo no especificado | C170: F849 | D170: 1 | E170: 0 | F170: 1 | G170: 0.006300403226 | I170: 161 | J170: =VLOOKUP(K170,'CIE-X'!B:C,2,0) -> Otros problemas especificados relacionados con el grupo primario de apoyo | K170: Z638 | L170: 0 | M170: 0 | N170: 0 | O170: 0 | P170: 0 | R170: 161 | S170: =VLOOKUP(T170,'CIE-X'!B:C,2,0) -> Sindrome de despersonalizacion y desvinculacion de la realidad | T170: F481 | U170: 0 | V170: 0 | W170: 0 | X170: 0
A171: 162 | B171: =VLOOKUP(C171,'CIE-X'!B:C,2,0) -> Trastornos delirantes persistentes | C171: F22 | D171: 1 | E171: 0 | F171: 1 | G171: 0.006300403226 | I171: 162 | J171: =VLOOKUP(K171,'CIE-X'!B:C,2,0) -> Retraso mental leve, deterioro del comportamiento nulo o minimo | K171: F700 | L171: 0 | M171: 0 | N171: 0 | O171: 0 | P171: 0 | R171: 162 | S171: =VLOOKUP(T171,'CIE-X'!B:C,2,0) -> Delirio no superpuesto a un cuadro de demencia, asi descrito | T171: F050 | U171: 0 | V171: 0 | W171: 0 | X171: 0
A172: 163 | B172: =VLOOKUP(C172,'CIE-X'!B:C,2,0) -> Fobias sociales | C172: F401 | D172: 0 | E172: 1 | F172: 1 | G172: 0.006300403226 | I172: 163 | J172: =VLOOKUP(K172,'CIE-X'!B:C,2,0) -> Desorientacion no especificada | K172: R410 | L172: 0 | M172: 0 | N172: 0 | O172: 0 | P172: 0 | R172: 163 | S172: =VLOOKUP(T172,'CIE-X'!B:C,2,0) -> Convulsiones, no clasificadas en otra parte | T172: R56 | U172: 0 | V172: 0 | W172: 0 | X172: 0
A173: 164 | B173: =VLOOKUP(C173,'CIE-X'!B:C,2,0) -> Demencia , no especificada | C173: F03X | D173: 1 | E173: 0 | F173: 1 | G173: 0.006300403226 | I173: 164 | J173: =VLOOKUP(K173,'CIE-X'!B:C,2,0) ->  | K173: F414 | L173: 0 | M173: 0 | N173: 0 | O173: 0 | P173: 0 | R173: 164 | S173: =VLOOKUP(T173,'CIE-X'!B:C,2,0) -> Retraso mental, no especificado, deterioro del comportamiento de grado no especificado | T173: F799 | U173: 0 | V173: 0 | W173: 0 | X173: 0
A174: 165 | B174: =VLOOKUP(C174,'CIE-X'!B:C,2,0) -> Trastornos mentales y del comportamiento debidos al uso de otros estimulantes, incluida la cafeina, sindrome de dependencia | C174: F152 | D174: 1 | E174: 0 | F174: 1 | G174: 0.006300403226 | I174: 165 | J174: =VLOOKUP(K174,'CIE-X'!B:C,2,0) ->  | K174: F434 | L174: 0 | M174: 0 | N174: 0 | O174: 0 | P174: 0 | R174: 165 | S174: =VLOOKUP(T174,'CIE-X'!B:C,2,0) -> Otros problemas relacionados con el grupo primario de apoyo, inclusive circunstancias familiares | T174: Z63 | U174: 0 | V174: 0 | W174: 0 | X174: 0
A175: 166 | B175: =VLOOKUP(C175,'CIE-X'!B:C,2,0) -> Agorafobia | C175: F400 | D175: 1 | E175: 0 | F175: 1 | G175: 0.006300403226 | I175: 166 | J175: =VLOOKUP(K175,'CIE-X'!B:C,2,0) -> Otros trastornos de ansiedad especificados | K175: F418 | L175: 0 | M175: 0 | N175: 0 | O175: 0 | P175: 0 | R175: 166 | S175: =VLOOKUP(T175,'CIE-X'!B:C,2,0) -> Trastorno generalizado del desarrollo no especificado | T175: F849 | U175: 0 | V175: 0 | W175: 0 | X175: 0
A176: 167 | B176: =VLOOKUP(C176,'CIE-X'!B:C,2,0) ->  | C176: F41.0 | D176: 1 | E176: 0 | F176: 1 | G176: 0.006300403226 | I176: 167 | J176: =VLOOKUP(K176,'CIE-X'!B:C,2,0) -> Trastorno hipercinetico de la conducta | K176: F901 | L176: 0 | M176: 0 | N176: 0 | O176: 0 | P176: 0 | R176: 167 | S176: =VLOOKUP(T176,'CIE-X'!B:C,2,0) -> Trastornos delirantes persistentes | T176: F22 | U176: 0 | V176: 0 | W176: 0 | X176: 0
A177: 168 | B177: =VLOOKUP(C177,'CIE-X'!B:C,2,0) ->  | C177: F43.2 | D177: 0 | E177: 1 | F177: 1 | G177: 0.006300403226 | I177: 168 | J177: =VLOOKUP(K177,'CIE-X'!B:C,2,0) ->  | K177: F900 | L177: 0 | M177: 0 | N177: 0 | O177: 0 | P177: 0 | R177: 168 | S177: =VLOOKUP(T177,'CIE-X'!B:C,2,0) ->  | T177: F03 | U177: 0 | V177: 0 | W177: 0 | X177: 0
A178: 169 | B178: =VLOOKUP(C178,'CIE-X'!B:C,2,0) -> Trastornos especificos del desarrollo de las habilidades escolares | C178: F81 | D178: 1 | E178: 0 | F178: 1 | G178: 0.006300403226 | I178: 169 | J178: =VLOOKUP(K178,'CIE-X'!B:C,2,0) -> Trastorno de la personalidad, organico | K178: F070 | L178: 0 | M178: 0 | N178: 0 | O178: 0 | P178: 0 | R178: 169 | S178: =VLOOKUP(T178,'CIE-X'!B:C,2,0) -> Trastornos mentales y del comportamiento debidos al uso de otros estimulantes, incluida la cafeina, sindrome de dependencia | T178: F152 | U178: 0 | V178: 0 | W178: 0 | X178: 0
A179: 170 | B179: =VLOOKUP(C179,'CIE-X'!B:C,2,0) -> Demencia en otras enfermedades especificadas clasificadas en otra parte | C179: F028 | D179: 0 | E179: 1 | F179: 1 | G179: 0.006300403226 | I179: 170 | J179: =VLOOKUP(K179,'CIE-X'!B:C,2,0) -> Trastorno afectivo bipolar, episodio depresivo grave presente con sintomas psicoticos | K179: F315 | L179: 0 | M179: 0 | N179: 0 | O179: 0 | P179: 0 | R179: 170 | S179: =VLOOKUP(T179,'CIE-X'!B:C,2,0) -> Otros trastornos mentales especificados debidos a lesion y disfuncion cerebral y a enfermedad fisica | T179: F068 | U179: 0 | V179: 0 | W179: 0 | X179: 0
A180: 171 | B180: =VLOOKUP(C180,'CIE-X'!B:C,2,0) -> Retraso mental leve, deterioro del comportamiento de grado no especificado | C180: F709 | D180: 1 | E180: 0 | F180: 1 | G180: 0.006300403226 | I180: 171 | J180: =VLOOKUP(K180,'CIE-X'!B:C,2,0) -> Observacion por sospecha de trastorno mental y del comportamiento | K180: Z032 | L180: 0 | M180: 0 | N180: 0 | O180: 0 | P180: 0 | R180: 171 | S180: =VLOOKUP(T180,'CIE-X'!B:C,2,0) -> Agorafobia | T180: F400 | U180: 0 | V180: 0 | W180: 0 | X180: 0
A181: 172 | B181: =VLOOKUP(C181,'CIE-X'!B:C,2,0) -> Trastorno de la personalidad, no especificado | C181: F609 | D181: 1 | E181: 0 | F181: 1 | G181: 0.006300403226 | I181: 172 | J181: =VLOOKUP(K181,'CIE-X'!B:C,2,0) ->  | K181: F41.1 | L181: 0 | M181: 0 | N181: 0 | O181: 0 | P181: 0 | R181: 172 | S181: =VLOOKUP(T181,'CIE-X'!B:C,2,0) -> Trastornos especificos del desarrollo de las habilidades escolares | T181: F81 | U181: 0 | V181: 0 | W181: 0 | X181: 0
A182: 173 | B182: =VLOOKUP(C182,'CIE-X'!B:C,2,0) -> Demencia en la enfermedad de Huntington | C182: F022 | D182: 0 | E182: 1 | F182: 1 | G182: 0.006300403226 | I182: 173 | J182: =VLOOKUP(K182,'CIE-X'!B:C,2,0) ->  | K182: FG20 | L182: 0 | M182: 0 | N182: 0 | O182: 0 | P182: 0 | R182: 173 | S182: =VLOOKUP(T182,'CIE-X'!B:C,2,0) -> Demencia en otras enfermedades especificadas clasificadas en otra parte | T182: F028 | U182: 0 | V182: 0 | W182: 0 | X182: 0
A183: 174 | B183: =VLOOKUP(C183,'CIE-X'!B:C,2,0) -> Nerviosismo | C183: R450 | D183: 0 | E183: 1 | F183: 1 | G183: 0.006300403226 | I183: 174 | J183: =VLOOKUP(K183,'CIE-X'!B:C,2,0) -> Otros trastornos psicoticos de origen no organico | K183: F28X | L183: 0 | M183: 0 | N183: 0 | O183: 0 | P183: 0 | R183: 174 | S183: =VLOOKUP(T183,'CIE-X'!B:C,2,0) -> Trastornos especificos del desarrollo del habla y del lenguaje | T183: F80 | U183: 0 | V183: 0 | W183: 0 | X183: 0
A184: 175 | B184: =VLOOKUP(C184,'CIE-X'!B:C,2,0) -> Trastorno especifico del desarrollo de la funcion motriz | C184: F82X | D184: 1 | E184: 0 | F184: 1 | G184: 0.006300403226 | I184: 175 | J184: =VLOOKUP(K184,'CIE-X'!B:C,2,0) -> Bulimia nerviosa atipica | K184: F503 | L184: 0 | M184: 0 | N184: 0 | O184: 0 | P184: 0 | R184: 175 | S184: =VLOOKUP(T184,'CIE-X'!B:C,2,0) -> Retraso mental leve, deterioro del comportamiento de grado no especificado | T184: F709 | U184: 0 | V184: 0 | W184: 0 | X184: 0
A185: 176 | B185: =VLOOKUP(C185,'CIE-X'!B:C,2,0) -> Trastorno de la conducta sociable | C185: F912 | D185: 1 | E185: 0 | F185: 1 | G185: 0.006300403226 | I185: 176 | J185: =VLOOKUP(K185,'CIE-X'!B:C,2,0) ->  | K185: F321 | L185: 0 | M185: 0 | N185: 0 | O185: 0 | P185: 0 | R185: 176 | S185: =VLOOKUP(T185,'CIE-X'!B:C,2,0) ->  | T185: F423 | U185: 0 | V185: 0 | W185: 0 | X185: 0
A186: 177 | B186: =VLOOKUP(C186,'CIE-X'!B:C,2,0) -> Demencia en la enfermedad de Pick | C186: F020 | D186: 1 | E186: 0 | F186: 1 | G186: 0.006300403226 | I186: 177 | J186: =VLOOKUP(K186,'CIE-X'!B:C,2,0) -> Enuresis no organica | K186: F980 | L186: 0 | M186: 0 | N186: 0 | O186: 0 | P186: 0 | R186: 177 | S186: =VLOOKUP(T186,'CIE-X'!B:C,2,0) -> Trastorno de la personalidad, no especificado | T186: F609 | U186: 0 | V186: 0 | W186: 0 | X186: 0
A187: 178 | B187: =VLOOKUP(C187,'CIE-X'!B:C,2,0) -> Predominio de pensamientos o rumiaciones obsesivas | C187: F420 | D187: 1 | E187: 0 | F187: 1 | G187: 0.006300403226 | I187: 178 | J187: =VLOOKUP(K187,'CIE-X'!B:C,2,0) -> Encopresis no organica | K187: F981 | L187: 0 | M187: 0 | N187: 0 | O187: 0 | P187: 0 | R187: 178 | S187: =VLOOKUP(T187,'CIE-X'!B:C,2,0) -> Demencia en la enfermedad de Huntington | T187: F022 | U187: 0 | V187: 0 | W187: 0 | X187: 0
A188: 179 | B188: =VLOOKUP(C188,'CIE-X'!B:C,2,0) -> Distonia | C188: G24 | D188: 1 | E188: 0 | F188: 1 | G188: 0.006300403226 | I188: 179 | J188: =VLOOKUP(K188,'CIE-X'!B:C,2,0) -> Otros trastornos emocionales y del comportamiento que aparecen habitualmente en la niñez y en la adolescencia | K188: F988 | L188: 0 | M188: 0 | N188: 0 | O188: 0 | P188: 0 | R188: 179 | S188: =VLOOKUP(T188,'CIE-X'!B:C,2,0) -> Nerviosismo | T188: R450 | U188: 0 | V188: 0 | W188: 0 | X188: 0
A189: 180 | B189: =VLOOKUP(C189,'CIE-X'!B:C,2,0) -> Enfermedad cerebrovascular, no especificada | C189: I679 | D189: 1 | E189: 0 | F189: 1 | G189: 0.006300403226 | I189: 180 | J189: =VLOOKUP(K189,'CIE-X'!B:C,2,0) -> Trastornos no especificados, emocionales y del comportamiento, que aparecen habitualmente en la niñez y en la adolescencia | K189: F989 | L189: 0 | M189: 0 | N189: 0 | O189: 0 | P189: 0 | R189: 180 | S189: =VLOOKUP(T189,'CIE-X'!B:C,2,0) -> Trastorno especifico del desarrollo de la funcion motriz | T189: F82X | U189: 0 | V189: 0 | W189: 0 | X189: 0
A190: 181 | B190: =VLOOKUP(C190,'CIE-X'!B:C,2,0) -> Trastorno paranoide de la personalidad | C190: F600 | D190: 0 | E190: 1 | F190: 1 | G190: 0.006300403226 | I190: 181 | J190: =VLOOKUP(K190,'CIE-X'!B:C,2,0) -> Fobias especificas (aisladas) | K190: F402 | L190: 0 | M190: 0 | N190: 0 | O190: 0 | P190: 0 | R190: 181 | S190: =VLOOKUP(T190,'CIE-X'!B:C,2,0) -> Trastorno de la conducta sociable | T190: F912 | U190: 0 | V190: 0 | W190: 0 | X190: 0
A191: 182 | B191: =VLOOKUP(C191,'CIE-X'!B:C,2,0) -> Trastornos mixtos de la conducta y de las emociones | C191: F92 | D191: 1 | E191: 0 | F191: 1 | G191: 0.006300403226 | I191: 182 | J191: =VLOOKUP(K191,'CIE-X'!B:C,2,0) -> Fobias sociales | K191: F401 | L191: 0 | M191: 0 | N191: 0 | O191: 0 | P191: 0 | R191: 182 | S191: =VLOOKUP(T191,'CIE-X'!B:C,2,0) -> Demencia en la enfermedad de Pick | T191: F020 | U191: 0 | V191: 0 | W191: 0 | X191: 0
A192: 183 | B192: =VLOOKUP(C192,'CIE-X'!B:C,2,0) -> Trastornos psicoticos agudos y transitorios | C192: F23 | D192: 0 | E192: 1 | F192: 1 | G192: 0.006300403226 | I192: 183 | J192: =VLOOKUP(K192,'CIE-X'!B:C,2,0) -> Demencia , no especificada | K192: F03X | L192: 0 | M192: 0 | N192: 0 | O192: 0 | P192: 0 | R192: 183 | S192: =VLOOKUP(T192,'CIE-X'!B:C,2,0) -> Predominio de pensamientos o rumiaciones obsesivas | T192: F420 | U192: 0 | V192: 0 | W192: 0 | X192: 0
A193: 184 | B193: =VLOOKUP(C193,'CIE-X'!B:C,2,0) ->  | C193: F21 | D193: 1 | E193: 0 | F193: 1 | G193: 0.006300403226 | I193: 184 | J193: =VLOOKUP(K193,'CIE-X'!B:C,2,0) ->  | K193: F03 | L193: 0 | M193: 0 | N193: 0 | O193: 0 | P193: 0 | R193: 184 | S193: =VLOOKUP(T193,'CIE-X'!B:C,2,0) -> Distonia | T193: G24 | U193: 0 | V193: 0 | W193: 0 | X193: 0
A194: 185 | B194: =VLOOKUP(C194,'CIE-X'!B:C,2,0) ->  | C194: F345 | D194: 1 | E194: 0 | F194: 1 | G194: 0.006300403226 | I194: 185 | J194: =VLOOKUP(K194,'CIE-X'!B:C,2,0) ->  | K194: F41.0 | L194: 0 | M194: 0 | N194: 0 | O194: 0 | P194: 0 | R194: 185 | S194: =VLOOKUP(T194,'CIE-X'!B:C,2,0) -> Enfermedad cerebrovascular, no especificada | T194: I679 | U194: 0 | V194: 0 | W194: 0 | X194: 0
A195: 186 | B195: =VLOOKUP(C195,'CIE-X'!B:C,2,0) -> Otros trastornos del humor [afectivos] | C195: F38 | D195: 0 | E195: 1 | F195: 1 | G195: 0.006300403226 | I195: 186 | J195: =VLOOKUP(K195,'CIE-X'!B:C,2,0) ->  | K195: F43.2 | L195: 0 | M195: 0 | N195: 0 | O195: 0 | P195: 0 | R195: 186 | S195: =VLOOKUP(T195,'CIE-X'!B:C,2,0) -> Trastorno paranoide de la personalidad | T195: F600 | U195: 0 | V195: 0 | W195: 0 | X195: 0
A196: 187 | B196: =VLOOKUP(C196,'CIE-X'!B:C,2,0) ->  | C196: (en blanco) | D196: 0 | E196: 0 | F196: 0 | G196: 0 | I196: 187 | J196: =VLOOKUP(K196,'CIE-X'!B:C,2,0) -> Trastornos mixtos de la conducta y de las emociones | K196: F92 | L196: 0 | M196: 0 | N196: 0 | O196: 0 | P196: 0 | R196: 187 | S196: =VLOOKUP(T196,'CIE-X'!B:C,2,0) -> Trastornos de la conducta | T196: F91 | U196: 0 | V196: 0 | W196: 0 | X196: 0
A197: 188 | B197: =VLOOKUP(C197,'CIE-X'!B:C,2,0) ->  | D197: 0 | E197: 0 | F197: 0 | G197: 0 | I197: 188 | J197: =VLOOKUP(K197,'CIE-X'!B:C,2,0) -> Trastornos psicoticos agudos y transitorios | K197: F23 | L197: 0 | M197: 0 | N197: 0 | O197: 0 | P197: 0 | R197: 188 | S197: =VLOOKUP(T197,'CIE-X'!B:C,2,0) ->  | T197: F21 | U197: 0 | V197: 0 | W197: 0 | X197: 0
A198: 189 | B198: =VLOOKUP(C198,'CIE-X'!B:C,2,0) ->  | C198: F03 | D198: 0 | E198: 0 | F198: 0 | G198: 0 | I198: 189 | J198: =VLOOKUP(K198,'CIE-X'!B:C,2,0) ->  | K198: F345 | L198: 0 | M198: 0 | N198: 0 | O198: 0 | P198: 0 | R198: 189 | S198: =VLOOKUP(T198,'CIE-X'!B:C,2,0) -> Otros trastornos del humor [afectivos] | T198: F38 | U198: 0 | V198: 0 | W198: 0 | X198: 0
A199: 190 | B199: =VLOOKUP(C199,'CIE-X'!B:C,2,0) ->  | G199: 0 | I199: 190 | J199: =VLOOKUP(K199,'CIE-X'!B:C,2,0) ->  | O199: 0 | P199: 0 | R199: 190 | S199: =VLOOKUP(T199,'CIE-X'!B:C,2,0) ->  | X199: 0
A200: 191 | B200: =VLOOKUP(C200,'CIE-X'!B:C,2,0) ->  | G200: 0 | I200: 191 | J200: =VLOOKUP(K200,'CIE-X'!B:C,2,0) ->  | O200: 0 | P200: 0 | R200: 191 | S200: =VLOOKUP(T200,'CIE-X'!B:C,2,0) ->  | X200: 0
A201: 192 | B201: =VLOOKUP(C201,'CIE-X'!B:C,2,0) ->  | G201: 0 | I201: 192 | J201: =VLOOKUP(K201,'CIE-X'!B:C,2,0) ->  | O201: 0 | P201: 0 | R201: 192 | S201: =VLOOKUP(T201,'CIE-X'!B:C,2,0) ->  | X201: 0
A202: 193 | B202: =VLOOKUP(C202,'CIE-X'!B:C,2,0) ->  | G202: =F202/$F$302*100 -> 0 | I202: 193 | J202: =VLOOKUP(K202,'CIE-X'!B:C,2,0) ->  | O202: =N202/$N$302*100 -> 0 | P202: =N202/$F$302*100 -> 0 | R202: 193 | S202: =VLOOKUP(T202,'CIE-X'!B:C,2,0) ->  | X202: =W202/$F$302*100 -> 0
... 104 more rows

Sheet IJSM
C1: M0RBILIDAD IJSM
C2: INSTITUTO JALISCIENSE DE SALUD MENTAL
C3: SUBDIRECCIÓN DE ADMINISTRACIÓN E INNOVACIÓN
C4: DEPARTAMENTO DE ESTADÍSTICAS
C5: PERIODO ENERO A DICIEMBRE DE 2017
C7: 10 PRINCIPALES CAUSAS EN: | K7: 10 PRINCIPALES CAUSAS EN: | S7: 10 PRINCIPALES CAUSAS EN:
C8: PSIQUIATRÍA Y PSICOLOGÍA EN CONSULTA EXTERNA | K8: PSIQUIATRÍA EN CONSULTA EXTERNA | S8: PSICOLOGÍA EN CONSULTA EXTERNA
C10: NUM | D10: DESCRIPCIÓN | E10: CODIGO | F10: MASCULINO | G10: FEMENINO | H10: TOTAL | I10: % | K10: NUMERO | L10: DESCRIPCIÓN | M10: CODIGO | N10: MASCULINO | O10: FEMENINO | P10: TOTAL | Q10: % | S10: NUMERO | T10: DESCRIPCIÓN | U10: CODIGO | V10: MASCULINO | W10: FEMENINO | X10: TOTAL | Y10: %
C11: 1 | D11: Perturbacion de la actividad y de la atencion | E11: F900 | F11: 4563 | G11: 1038 | H11: 5601 | I11: 0.09258310329 | K11: 1 | L11: Esquizofrenia paranoide | M11: F200 | N11: 2603 | O11: 1104 | P11: 3707 | Q11: 0.06127576574 | S11: 1 | T11: Perturbacion de la actividad y de la atencion | U11: F900 | V11: 2302 | W11: 515 | X11: 2817 | Y11: 0.04656429244
C12: 2 | D12: Trastorno de ansiedad generalizada | E12: F411 | F12: 2161 | G12: 3401 | H12: 5562 | I12: 0.09193844323 | K12: 2 | L12: Trastorno de ansiedad generalizada | M12: F411 | N12: 1390 | O12: 2063 | P12: 3453 | Q12: 0.05707721044 | S12: 2 | T12: Episodio depresivo leve | U12: F320 | V12: 642 | W12: 1836 | X12: 2478 | Y12: 0.0409607088
C13: 3 | D13: Esquizofrenia paranoide | E13: F200 | F13: 2706 | G13: 1173 | H13: 3879 | I13: 0.06411888193 | K13: 3 | L13: Perturbacion de la actividad y de la atencion | M13: F900 | N13: 2032 | O13: 457 | P13: 2489 | Q13: 0.04114253599 | S13: 3 | T13: Trastorno de ansiedad generalizada | U13: F411 | V13: 809 | W13: 1538 | X13: 2347 | Y13: 0.03879531216
C14: 4 | D14: Episodio depresivo leve | E14: F320 | F14: 1035 | G14: 2829 | H14: 3864 | I14: 0.06387093575 | K14: 4 | L14: Esquizofrenia | M14: F20 | N14: 1336 | O14: 533 | P14: 1869 | Q14: 0.03089409392 | S14: 4 | T14: Episodio depresivo moderado | U14: F321 | V14: 368 | W14: 1285 | X14: 1653 | Y14: 0.02732366894
C15: 5 | D15: Trastorno depresivo recurrente, episodio leve presente | E15: F330 | F15: 737 | G15: 2312 | H15: 3049 | I15: 0.05039919335 | K15: 5 | L15: Trastorno de panico [ansiedad paroxistica episodica] | M15: F410 | N15: 686 | O15: 1153 | P15: 1839 | Q15: 0.03039820156 | S15: 5 | T15: Trastorno depresivo recurrente, episodio moderado presente | U15: F331 | V15: 243 | W15: 1213 | X15: 1456 | Y15: 0.02406730912
C16: 6 | D16: Episodio depresivo moderado | E16: F321 | F16: 760 | G16: 2265 | H16: 3025 | I16: 0.05000247946 | K16: 6 | L16: Trastorno depresivo recurrente, episodio leve presente | M16: F330 | N16: 390 | O16: 1165 | P16: 1555 | Q16: 0.02570375391 | S16: 6 | T16: Trastorno depresivo recurrente, episodio leve presente | U16: F330 | V16: 337 | W16: 1109 | X16: 1446 | Y16: 0.02390201167
C17: 7 | D17: Trastorno de panico [ansiedad paroxistica episodica] | E17: F410 | F17: 1111 | G17: 1886 | H17: 2997 | I17: 0.04953964659 | K17: 7 | L17: Trastorno depresivo recurrente, episodio moderado presente | M17: F331 | N17: 292 | O17: 1078 | P17: 1370 | Q17: 0.02264575103 | S17: 7 | T17: Trastorno de panico [ansiedad paroxistica episodica] | U17: F410 | V17: 423 | W17: 733 | X17: 1156 | Y17: 0.01910838554
C18: 8 | D18: Trastorno depresivo recurrente, episodio moderado presente | E18: F331 | F18: 536 | G18: 2294 | H18: 2830 | I18: 0.04677917913 | K18: 8 | L18: Episodio depresivo moderado | M18: F321 | N18: 384 | O18: 972 | P18: 1356 | Q18: 0.0224143346 | S18: 8 | T18: Trastornos de adaptacion | U18: F432 | V18: 318 | W18: 704 | X18: 1022 | Y18: 0.01689339967
C19: 9 | D19: Esquizofrenia | E19: F20 | F19: 1361 | G19: 500 | H19: 1861 | I19: 0.03076185596 | K19: 9 | L19: Episodio depresivo leve | M19: F320 | N19: 385 | O19: 948 | P19: 1333 | Q19: 0.02203415045 | S19: 9 | T19: Reaccion al estres grave y trastornos de adaptacion | U19: F43 | V19: 359 | W19: 427 | X19: 786 | Y19: 0.01299237979
C20: 10 | D20: Trastornos de adaptacion | E20: F432 | F20: 483 | G20: 1022 | H20: 1505 | I20: 0.02487726664 | K20: 10 | L20: Psicosis de origen no organico, no especificada | M20: F29X | N20: 924 | O20: 333 | P20: 1257 | Q20: 0.02077788981 | S20: 10 | T20: Trastorno de la personalidad emocionalmente inestable | U20: F603 | V20: 116 | W20: 553 | X20: 669 | Y20: 0.01105839959
C21: 11 | D21: Psicosis de origen no organico, no especificada | E21: F29X | F21: 970 | G21: 377 | H21: 1347 | I21: 0.02226556689 | K21: 11 | L21: Trastorno afectivo bipolar, actualmente en remision | M21: F317 | N21: 374 | O21: 753 | P21: 1127 | Q21: 0.01862902293 | S21: 11 | T21: Sintomas y signos que involucran el estado emocional | U21: R45 | V21: 278 | W21: 252 | X21: 530 | Y21: 0.008760764997
C22: 12 | D22: Trastorno de la personalidad emocionalmente inestable | E22: F603 | F22: 259 | G22: 1079 | H22: 1338 | I22: 0.02211679918 | K22: 12 | L22: Episodio depresivo | M22: F32 | N22: 639 | O22: 336 | P22: 975 | Q22: 0.01611650164 | S22: 12 | T22: Episodio depresivo grave sin sintomas psicoticos | U22: F322 | V22: 139 | W22: 379 | X22: 518 | Y22: 0.008562408053
C23: 13 | D23: Trastorno depresivo recurrente | E23: F33 | F23: 265 | G23: 959 | H23: 1224 | I23: 0.02023240822 | K23: 13 | L23: Epilepsia | M23: G40 | N23: 552 | O23: 328 | P23: 880 | Q23: 0.01454617584 | S23: 13 | T23: Trastorno afectivo bipolar, episodio hipomaniaco presente | U23: F310 | V23: 90 | W23: 304 | X23: 394 | Y23: 0.006512719639
C24: 14 | D24: Trastorno afectivo bipolar, actualmente en remision | E24: F317 | F24: 409 | G24: 814 | H24: 1223 | I24: 0.02021587847 | K24: 14 | L24: Trastorno depresivo recurrente | M24: F33 | N24: 180 | O24: 550 | P24: 730 | Q24: 0.01206671405 | S24: 14 | T24: Trastornos hipercineticos | U24: F90 | V24: 279 | W24: 66 | X24: 345 | Y24: 0.00570276212
C25: 15 | D25: Trastornos hipercineticos | E25: F90 | F25: 979 | G25: 223 | H25: 1202 | I25: 0.01986875382 | K25: 15 | L25: Esquizofrenia, no especificada | M25: F209 | N25: 521 | O25: 170 | P25: 691 | Q25: 0.01142205399 | S25: 15 | T25: Trastorno depresivo recurrente, episodio depresivo grave presente sin sintomas psicoticos | U25: F332 | V25: 62 | W25: 264 | X25: 326 | Y25: 0.00538869696
C26: 16 | D26: Episodio depresivo grave sin sintomas psicoticos | E26: F322 | F26: 282 | G26: 654 | H26: 936 | I26: 0.01547184158 | K26: 16 | L26: Trastorno de la personalidad emocionalmente inestable | M26: F603 | N26: 143 | O26: 526 | P26: 669 | Q26: 0.01105839959 | S26: 16 | T26: Trastorno mixto de ansiedad y depresion | U26: F412 | V26: 49 | W26: 229 | X26: 278 | Y26: 0.004595269187
C27: 17 | D27: Sintomas y signos que involucran el estado emocional | E27: R45 | F27: 511 | G27: 414 | H27: 925 | I27: 0.01529001438 | K27: 17 | L27: Trastornos mentales y del comportamiento debidos al uso de multiples drogas y al uso de otras sustancias psicoactivas, trastorno psicotico | M27: F195 | N27: 491 | O27: 36 | P27: 527 | Q27: 0.008711175761 | S27: 17 | T27: Trastorno depresivo recurrente | U27: F33 | V27: 47 | W27: 210 | X27: 257 | Y27: 0.004248144536
C28: 18 | D28: Reaccion al estres grave y trastornos de adaptacion | E28: F43 | F28: 400 | G28: 517 | H28: 917 | I28: 0.01515777642 | K28: 18 | L28: Trastorno afectivo bipolar, episodio hipomaniaco presente | M28: F310 | N28: 175 | O28: 326 | P28: 501 | Q28: 0.008281402384 | S28: 18 | T28: Episodio depresivo | U28: F32 | V28: 47 | W28: 188 | X28: 235 | Y28: 0.00388449014
C29: 19 | D29: Trastorno afectivo bipolar, episodio hipomaniaco presente | E29: F310 | F29: 265 | G29: 630 | H29: 895 | I29: 0.01479412202 | K29: 19 | L29: Trastornos de adaptacion | M29: F432 | N29: 165 | O29: 318 | P29: 483 | Q29: 0.007983866969 | S29: 19 | T29: Trastorno mental, no especificado | U29: F99X | V29: 82 | W29: 108 | X29: 190 | Y29: 0.003140651603
C30: 20 | D30: Esquizofrenia, no especificada | E30: F209 | F30: 522 | G30: 170 | H30: 692 | I30: 0.01143858373 | K30: 20 | L30: Trastorno depresivo recurrente actualmente en remision | M30: F334 | N30: 79 | O30: 354 | P30: 433 | Q30: 0.007157379705 | S30: 20 | T30: Trastorno depresivo recurrente actualmente en remision | U30: F334 | V30: 25 | W30: 153 | X30: 178 | Y30: 0.002942294659
C31: 21 | D31: Epilepsia | E31: G40 | F31: 373 | G31: 299 | H31: 672 | I31: 0.01110798883 | K31: 21 | L31: Episodio depresivo grave sin sintomas psicoticos | M31: F322 | N31: 143 | O31: 270 | P31: 413 | Q31: 0.006826784799 | S31: 21 | T31: Reaccion al estres agudo | U31: F430 | V31: 83 | W31: 93 | X31: 176 | Y31: 0.002909235169
C32: 22 | D32: Episodio depresivo | E32: F32 | F32: 207 | G32: 460 | H32: 667 | I32: 0.0110253401 | K32: 22 | L32: Sintomas y signos que involucran el estado emocional | M32: R45 | N32: 230 | O32: 160 | P32: 390 | Q32: 0.006446600658 | S32: 22 | T32: Esquizofrenia paranoide | U32: F200 | V32: 94 | W32: 66 | X32: 160 | Y32: 0.002644759244
C33: 23 | D33: Trastorno depresivo recurrente, episodio depresivo grave presente sin sintomas psicoticos | E33: F332 | F33: 120 | G33: 491 | H33: 611 | I33: 0.01009967436 | K33: 23 | L33: Trastorno afectivo bipolar | M33: F31 | N33: 140 | O33: 210 | P33: 350 | Q33: 0.005785410847 | S33: 23 | T33: Trastorno de estres postraumatico | U33: F431 | V33: 25 | W33: 116 | X33: 141 | Y33: 0.002330694084
C34: 24 | D34: Trastorno depresivo recurrente actualmente en remision | E34: F334 | F34: 104 | G34: 507 | H34: 611 | I34: 0.01009967436 | K34: 24 | L34: Trastorno afectivo bipolar, episodio maniaco presente con sintomas psicoticos | M34: F312 | N34: 141 | O34: 177 | P34: 318 | Q34: 0.005256458998 | S34: 24 | T34: Distimia | U34: F341 | V34: 42 | W34: 90 | X34: 132 | Y34: 0.002181926377
C35: 25 | D35: Trastorno mixto de ansiedad y depresion | E35: F412 | F35: 144 | G35: 408 | H35: 552 | I35: 0.009124419393 | K35: 25 | L35: Trastorno depresivo recurrente, episodio depresivo grave presente sin sintomas psicoticos | M35: F332 | N35: 58 | O35: 225 | P35: 283 | Q35: 0.004677917913 | S35: 25 | T35: Observacion por sospecha de trastorno mental y del comportamiento | U35: Z032 | V35: 70 | W35: 41 | X35: 111 | Y35: 0.001834801726
C36: 26 | D36: Trastornos mentales y del comportamiento debidos al uso de multiples drogas y al uso de otras sustancias psicoactivas, trastorno psicotico | E36: F195 | F36: 504 | G36: 45 | H36: 549 | I36: 0.009074830157 | K36: 26 | L36: Trastornos del humor [afectivos], organicos | M36: F063 | N36: 117 | O36: 166 | P36: 283 | Q36: 0.004677917913 | S36: 26 | T36: Trastorno paranoide de la personalidad | U36: F600 | V36: 37 | W36: 60 | X36: 97 | Y36: 0.001603385292
C37: 27 | D37: Trastorno afectivo bipolar, episodio maniaco presente con sintomas psicoticos | E37: F312 | F37: 160 | G37: 226 | H37: 386 | I37: 0.006380481677 | K37: 27 | L37: Esquizofrenia indiferenciada | M37: F203 | N37: 153 | O37: 129 | P37: 282 | Q37: 0.004661388168 | S37: 27 | T37: Trastorno afectivo bipolar, actualmente en remision | U37: F317 | V37: 35 | W37: 61 | X37: 96 | Y37: 0.001586855547
C38: 28 | D38: Trastorno afectivo bipolar | E38: F31 | F38: 150 | G38: 206 | H38: 356 | I38: 0.005884589318 | K38: 28 | L38: Trastorno mixto de ansiedad y depresion | M38: F412 | N38: 97 | O38: 181 | P38: 278 | Q38: 0.004595269187 | S38: 28 | T38: Predominio de pensamientos o rumiaciones obsesivas | U38: F420 | V38: 58 | W38: 38 | X38: 96 | Y38: 0.001586855547
C39: 29 | D39: Distimia | E39: F341 | F39: 128 | G39: 224 | H39: 352 | I39: 0.005818470337 | K39: 29 | L39: Trastorno esquizoafectivo de tipo maniaco | M39: F250 | N39: 88 | O39: 188 | P39: 276 | Q39: 0.004562209696 | S39: 29 | T39: Epilepsia | U39: G40 | V39: 50 | W39: 36 | X39: 86 | Y39: 0.001421558094
C40: 30 | D40: Trastorno mental, no especificado | E40: F99X | F40: 155 | G40: 178 | H40: 333 | I40: 0.005504405177 | K40: 30 | L40: Epilepsia y sindromes epilepticos idiopaticos relacionados con localizaciones (focales)(parciales) y con ataques de inicio localizado | M40: G400 | N40: 156 | O40: 113 | P40: 269 | Q40: 0.004446501479 | S40: 30 | T40: Anorexia nerviosa | U40: F500 | V40: 10 | W40: 66 | X40: 76 | Y40: 0.001256260641
C41: 31 | D41: Trastorno esquizoafectivo de tipo maniaco | E41: F250 | F41: 101 | G41: 225 | H41: 326 | I41: 0.00538869696 | K41: 31 | L41: Trastornos hipercineticos | M41: F90 | N41: 205 | O41: 60 | P41: 265 | Q41: 0.004380382498 | S41: 31 | T41: Trastorno afectivo bipolar | U41: F31 | V41: 33 | W41: 40 | X41: 73 | Y41: 0.001206671405
C42: 32 | D42: Trastornos del humor [afectivos], organicos | E42: F063 | F42: 123 | G42: 195 | H42: 318 | I42: 0.005256458998 | K42: 32 | L42: Trastorno afectivo bipolar, episodio depresivo presente leve o moderado | M42: F313 | N42: 79 | O42: 176 | P42: 255 | Q42: 0.004215085046 | S42: 32 | T42: Psicosis de origen no organico, no especificada | U42: F29X | V42: 41 | W42: 31 | X42: 72 | Y42: 0.00119014166
C43: 33 | D43: Esquizofrenia indiferenciada | E43: F203 | F43: 160 | G43: 138 | H43: 298 | I43: 0.004925864092 | K43: 33 | L43: Trastorno afectivo bipolar, episodio depresivo grave presente sin sintomas psicoticos | M43: F314 | N43: 62 | O43: 183 | P43: 245 | Q43: 0.004049787593 | S43: 33 | T43: Episodio depresivo grave con sintomas psicoticos | U43: F323 | V43: 15 | W43: 54 | X43: 69 | Y43: 0.001140552424
C44: 34 | D44: Trastorno afectivo bipolar, episodio depresivo presente leve o moderado | E44: F313 | F44: 90 | G44: 200 | H44: 290 | I44: 0.00479362613 | K44: 34 | L44: Esquizofrenia hebefrenica | M44: F201 | N44: 176 | O44: 63 | P44: 239 | Q44: 0.003950609121 | S44: 34 | T44: Trastorno afectivo bipolar, episodio maniaco presente con sintomas psicoticos | U44: F312 | V44: 19 | W44: 49 | X44: 68 | Y44: 0.001124022679
C45: 35 | D45: Epilepsia y sindromes epilepticos idiopaticos relacionados con localizaciones (focales)(parciales) y con ataques de inicio localizado | E45: G400 | F45: 159 | G45: 124 | H45: 283 | I45: 0.004677917913 | K45: 35 | L45: Distimia | M45: F341 | N45: 86 | O45: 134 | P45: 220 | Q45: 0.003636543961 | S45: 35 | T45: Ciclotimia | U45: F340 | V45: 31 | W45: 35 | X45: 66 | Y45: 0.001090963188
C46: 36 | D46: Trastorno afectivo bipolar, episodio depresivo grave presente sin sintomas psicoticos | E46: F314 | F46: 67 | G46: 205 | H46: 272 | I46: 0.004496090715 | K46: 36 | L46: Otros trastornos mentales especificados debidos a lesion y disfuncion cerebral y a enfermedad fisica | M46: F068 | N46: 129 | O46: 90 | P46: 219 | Q46: 0.003620014216 | S46: 36 | T46: Trastorno afectivo bipolar, episodio maniaco presente sin sintomas psicoticos | U46: F311 | V46: 11 | W46: 55 | X46: 66 | Y46: 0.001090963188
C47: 37 | D47: Reaccion al estres agudo | E47: F430 | F47: 120 | G47: 140 | H47: 260 | I47: 0.004297733772 | K47: 37 | L47: Trastorno depresivo recurrente, episodio depresivo grave presente, con sintomas psicoticos | M47: F333 | N47: 55 | O47: 136 | P47: 191 | Q47: 0.003157181348 | S47: 37 | T47: Trastorno esquizoafectivo de tipo maniaco | U47: F250 | V47: 13 | W47: 37 | X47: 50 | Y47: 0.0008264872638
C48: 38 | D48: Ciclotimia | E48: F340 | F48: 82 | G48: 171 | H48: 253 | I48: 0.004182025555 | K48: 38 | L48: Trastorno del humor [afectivos] persistentes | M48: F34 | N48: 63 | O48: 124 | P48: 187 | Q48: 0.003091062367 | S48: 38 | T48: Trastorno depresivo recurrente, episodio depresivo grave presente, con sintomas psicoticos | U48: F333 | V48: 5 | W48: 43 | X48: 48 | Y48: 0.0007934277733
C49: 39 | D49: Observacion por sospecha de trastorno mental y del comportamiento | E49: Z032 | F49: 146 | G49: 104 | H49: 250 | I49: 0.004132436319 | K49: 39 | L49: Ciclotimia | M49: F340 | N49: 51 | O49: 136 | P49: 187 | Q49: 0.003091062367 | S49: 39 | U49: F030 | V49: 17 | W49: 29 | X49: 46 | Y49: 0.0007603682827
C50: 40 | D50: Trastorno afectivo bipolar, episodio maniaco presente sin sintomas psicoticos | E50: F311 | F50: 80 | G50: 165 | H50: 245 | I50: 0.004049787593 | K50: 40 | M50: F29 | N50: 115 | O50: 72 | P50: 187 | Q50: 0.003091062367 | S50: 40 | T50: Trastorno de ansiedad, no especificado | U50: F419 | V50: 8 | W50: 35 | X50: 43 | Y50: 0.0007107790469
C51: 41 | D51: Esquizofrenia hebefrenica | E51: F201 | F51: 176 | G51: 64 | H51: 240 | I51: 0.003967138866 | K51: 41 | L51: Trastorno afectivo bipolar, episodio maniaco presente sin sintomas psicoticos | M51: F311 | N51: 69 | O51: 110 | P51: 179 | Q51: 0.002958824405 | S51: 41 | T51: Problemas en la relacion entre esposos o pareja | U51: Z630 | V51: 16 | W51: 21 | X51: 37 | Y51: 0.0006116005752
C52: 42 | D52: Trastorno depresivo recurrente, episodio depresivo grave presente, con sintomas psicoticos | E52: F333 | F52: 60 | G52: 179 | H52: 239 | I52: 0.003950609121 | K52: 42 | L52: Esquizofrenia residual | M52: F205 | N52: 98 | O52: 64 | P52: 162 | Q52: 0.002677818735 | S52: 42 | T52: Otros trastornos depresivos recurrentes | U52: F338 | V52: 10 | W52: 27 | X52: 37 | Y52: 0.0006116005752
C53: 43 | D53: Trastorno de estres postraumatico | E53: F431 | F53: 59 | G53: 179 | H53: 238 | I53: 0.003934079376 | K53: 43 | L53: Trastorno afectivo bipolar, episodio depresivo grave presente con sintomas psicoticos | M53: F315 | N53: 58 | O53: 99 | P53: 157 | Q53: 0.002595170008 | S53: 43 | T53: Nerviosismo | U53: R450 | V53: 20 | W53: 17 | X53: 37 | Y53: 0.0006116005752
C54: 44 | D54: Predominio de pensamientos o rumiaciones obsesivas | E54: F420 | F54: 137 | G54: 97 | H54: 234 | I54: 0.003867960395 | K54: 44 | L54: Retraso mental leve, deterioro del comportamiento nulo o minimo | M54: F700 | N54: 73 | O54: 74 | P54: 147 | Q54: 0.002429872556 | S54: 44 | T54: Trastornos del humor [afectivos], organicos | U54: F063 | V54: 7 | W54: 30 | X54: 37 | Y54: 0.0006116005752
C55: 45 | D55: Otros trastornos mentales especificados debidos a lesion y disfuncion cerebral y a enfermedad fisica | E55: F068 | F55: 131 | G55: 88 | H55: 219 | I55: 0.003620014216 | K55: 45 | L55: Predominio de pensamientos o rumiaciones obsesivas | M55: F420 | N55: 82 | O55: 63 | P55: 145 | Q55: 0.002396813065 | S55: 45 | T55: Bulimia nerviosa | U55: F502 | V55: 0 | W55: 36 | X55: 36 | Y55: 0.00059507083
C56: 46 | D56: Trastorno del humor [afectivos] persistentes | E56: F34 | F56: 57 | G56: 134 | H56: 191 | I56: 0.003157181348 | K56: 46 | L56: Epilepsia y sindromes epilepticos idiopaticos generalizados | M56: G403 | N56: 77 | O56: 67 | P56: 144 | Q56: 0.00238028332 | S56: 46 | T56: Trastorno afectivo bipolar, episodio depresivo presente leve o moderado | U56: F313 | V56: 11 | W56: 24 | X56: 35 | Y56: 0.0005785410847
C57: 47 | D57: Episodio depresivo grave con sintomas psicoticos | E57: F323 | F57: 65 | G57: 126 | H57: 191 | I57: 0.003157181348 | K57: 47 | L57: Trastorno mental, no especificado | M57: F99X | N57: 73 | O57: 70 | P57: 143 | Q57: 0.002363753575 | S57: 47 | T57: Trastorno de somatizacion | U57: F450 | V57: 19 | W57: 16 | X57: 35 | Y57: 0.0005785410847
C58: 48 | E58: F29 | F58: 118 | G58: 73 | H58: 191 | I58: 0.003157181348 | K58: 48 | L58: Observacion por sospecha de trastorno mental y del comportamiento | M58: Z032 | N58: 76 | O58: 63 | P58: 139 | Q58: 0.002297634593 | S58: 48 | T58: Sindrome de Asperger | U58: F845 | V58: 20 | W58: 10 | X58: 30 | Y58: 0.0004958923583
C59: 49 | D59: Retraso mental leve, deterioro del comportamiento nulo o minimo | E59: F700 | F59: 90 | G59: 87 | H59: 177 | I59: 0.002925764914 | K59: 49 | L59: Reaccion al estres grave y trastornos de adaptacion | M59: F43 | N59: 41 | O59: 89 | P59: 130 | Q59: 0.002148866886 | S59: 49 | T59: Autismo en la niñez | U59: F840 | V59: 24 | W59: 5 | X59: 29 | Y59: 0.000479362613
C60: 50 | D60: Esquizofrenia residual | E60: F205 | F60: 100 | G60: 68 | H60: 168 | I60: 0.002776997206 | K60: 50 | L60: Otros trastornos de ansiedad | M60: F41 | N60: 43 | O60: 82 | P60: 125 | Q60: 0.00206621816 | S60: 50 | T60: Trastorno opositor desafiante | U60: F913 | V60: 17 | W60: 11 | X60: 28 | Y60: 0.0004628328677
C61: 51 | D61: Trastorno afectivo bipolar, episodio depresivo grave presente con sintomas psicoticos | E61: F315 | F61: 62 | G61: 101 | H61: 163 | I61: 0.00269434848 | K61: 51 | L61: Episodio depresivo grave con sintomas psicoticos | M61: F323 | N61: 51 | O61: 71 | P61: 122 | Q61: 0.002016628924 | S61: 51 | T61: Esquizofrenia | U61: F20 | V61: 25 | W61: 3 | X61: 28 | Y61: 0.0004628328677
C62: 52 | D62: Epilepsia y sindromes epilepticos idiopaticos generalizados | E62: G403 | F62: 79 | G62: 71 | H62: 150 | I62: 0.002479461791 | K62: 52 | L62: Trastornos mentales y del comportamiento debidos al uso de otros estimulantes, incluida la cafeina, sindrome de dependencia | M62: F152 | N62: 106 | O62: 14 | P62: 120 | Q62: 0.001983569433 | S62: 52 | T62: Trastorno afectivo bipolar, episodio depresivo grave presente sin sintomas psicoticos | U62: F314 | V62: 5 | W62: 22 | X62: 27 | Y62: 0.0004463031225
C63: 53 | D63: Anorexia nerviosa | E63: F500 | F63: 33 | G63: 91 | H63: 124 | I63: 0.002049688414 | K63: 53 | L63: Trastorno de estres postraumatico | M63: F431 | N63: 34 | O63: 63 | P63: 97 | Q63: 0.001603385292 | S63: 53 | T63: Trastorno del humor [afectivos] persistentes | U63: F34 | V63: 6 | W63: 19 | X63: 25 | Y63: 0.0004132436319
C64: 54 | D64: Otros trastornos de ansiedad | E64: F41 | F64: 52 | G64: 70 | H64: 122 | I64: 0.002016628924 | K64: 54 | L64: Trastorno delirante | M64: F220 | N64: 65 | O64: 31 | P64: 96 | Q64: 0.001586855547 | S64: 54 | T64: Retraso mental leve, deterioro del comportamiento nulo o minimo | U64: F700 | V64: 13 | W64: 10 | X64: 23 | Y64: 0.0003801841414
C65: 55 | D65: Trastornos mentales y del comportamiento debidos al uso de otros estimulantes, incluida la cafeina, sindrome de dependencia | E65: F152 | F65: 106 | G65: 14 | H65: 120 | I65: 0.001983569433 | K65: 55 | L65: Trastornos mentales y del comportamiento debidos al uso de otros estimulantes, incluida la cafeina, trastorno psicotico | M65: F155 | N65: 79 | O65: 10 | P65: 89 | Q65: 0.00147114733 | S65: 55 | T65: Trastornos mentales y del comportamiento debidos al uso de multiples drogas y al uso de otras sustancias psicoactivas, trastorno psicotico | U65: F195 | V65: 12 | W65: 10 | X65: 22 | Y65: 0.0003636543961
C66: 56 | D66: Trastorno paranoide de la personalidad | E66: F600 | F66: 42 | G66: 71 | H66: 113 | I66: 0.001867861216 | K66: 56 | L66: Trastornos fobicos de ansiedad | M66: F40 | N66: 49 | O66: 37 | P66: 86 | Q66: 0.001421558094 | S66: 56 | T66: Problemas relacionados con otros hechos estresantes que afectan a la familia y al hogar | U66: Z637 | V66: 8 | W66: 14 | X66: 22 | Y66: 0.0003636543961
C67: 57 | D67: Trastorno delirante | E67: F220 | F67: 72 | G67: 38 | H67: 110 | I67: 0.00181827198 | K67: 57 | L67: Reaccion al estres agudo | M67: F430 | N67: 37 | O67: 47 | P67: 84 | Q67: 0.001388498603 | S67: 57 | U67: R45x | V67: 14 | W67: 7 | X67: 21 | Y67: 0.0003471246508
C68: 58 | D68: Autismo en la niñez | E68: F840 | F68: 97 | G68: 13 | H68: 110 | I68: 0.00181827198 | K68: 58 | L68: Trastorno esquizoafectivo de tipo depresivo | M68: F251 | N68: 22 | O68: 60 | P68: 82 | Q68: 0.001355439113 | S68: 58 | T68: Trastorno de la personalidad, organico | U68: F070 | V68: 5 | W68: 16 | X68: 21 | Y68: 0.0003471246508
C69: 59 | D69: Trastornos mentales y del comportamiento debidos al uso de otros estimulantes, incluida la cafeina, trastorno psicotico | E69: F155 | F69: 85 | G69: 17 | H69: 102 | I69: 0.001686034018 | K69: 59 | L69: Autismo en la niñez | M69: F840 | N69: 73 | O69: 8 | P69: 81 | Q69: 0.001338909367 | S69: 59 | T69: Hipomania | U69: F300 | V69: 6 | W69: 14 | X69: 20 | Y69: 0.0003305949055
C70: 60 | D70: Trastorno esquizoafectivo de tipo depresivo | E70: F251 | F70: 25 | G70: 73 | H70: 98 | I70: 0.001619915037 | K70: 60 | L70: Otros trastornos de la personalidad y del comportamiento en adultos | M70: F68 | N70: 53 | O70: 27 | P70: 80 | Q70: 0.001322379622 | S70: 60 | T70: Trastorno afectivo bipolar, episodio mixto presente | U70: F316 | V70: 2 | W70: 18 | X70: 20 | Y70: 0.0003305949055
C71: 61 | D71: Trastornos fobicos de ansiedad | E71: F40 | F71: 51 | G71: 38 | H71: 89 | I71: 0.00147114733 | K71: 61 | L71: Trastornos esquizoafectivos | M71: F25 | N71: 27 | O71: 49 | P71: 76 | Q71: 0.001256260641 | S71: 61 | T71: Agorafobia | U71: F400 | V71: 7 | W71: 13 | X71: 20 | Y71: 0.0003305949055
C72: 62 | D72: Trastornos esquizoafectivos | E72: F25 | F72: 27 | G72: 59 | H72: 86 | I72: 0.001421558094 | K72: 62 | L72: Autismo atipico | M72: F841 | N72: 58 | O72: 14 | P72: 72 | Q72: 0.00119014166 | S72: 62 | T72: Problemas relacionados con la desaparicion o muerte de un miembro de la familia | U72: Z634 | V72: 4 | W72: 15 | X72: 19 | Y72: 0.0003140651603
C73: 63 | D73: Autismo atipico | E73: F841 | F73: 72 | G73: 14 | H73: 86 | I73: 0.001421558094 | K73: 63 | L73: Trastornos mentales y del comportamiento debidos al uso de multiples drogas y al uso de otras sustancias psicoactivas, sindrome de dependendencia | M73: F192 | N73: 59 | O73: 9 | P73: 68 | Q73: 0.001124022679 | S73: 63 | T73: Trastornos mentales y del comportamiento debidos al uso de multiples drogas y al uso de otras sustancias psicoactivas, intoxicacion aguda | U73: F190 | V73: 11 | W73: 8 | X73: 19 | Y73: 0.0003140651603
C74: 64 | D74: Nerviosismo | E74: R450 | F74: 43 | G74: 42 | H74: 85 | I74: 0.001405028349 | K74: 64 | L74: Trastorno esquizotipico | M74: F21X | N74: 33 | O74: 29 | P74: 62 | Q74: 0.001024844207 | S74: 64 | T74: Otros trastornos de ansiedad | U74: F41 | V74: 6 | W74: 12 | X74: 18 | Y74: 0.000297535415
C75: 65 | D75: Otros trastornos de la personalidad y del comportamiento en adultos | E75: F68 | F75: 53 | G75: 27 | H75: 80 | I75: 0.001322379622 | K75: 65 | L75: Trastornos mentales y del comportamiento debidos al uso de multiples drogas y al uso de otras sustancias psicoactivas, trastorno psicotico residual y de comienzo tardio | M75: F197 | N75: 58 | O75: 4 | P75: 62 | Q75: 0.001024844207 | S75: 65 | T75: Trastorno asocial de la personalidad | U75: F602 | V75: 13 | W75: 4 | X75: 17 | Y75: 0.0002810056697
C76: 66 | D76: Agorafobia | E76: F400 | F76: 35 | G76: 44 | H76: 79 | I76: 0.001305849877 | K76: 66 | L76: Agorafobia | M76: F400 | N76: 28 | O76: 31 | P76: 59 | Q76: 0.0009752549713 | S76: 66 | T76: Trastorno delirante [esquizofreniforme], organico | U76: F062 | V76: 4 | W76: 13 | X76: 17 | Y76: 0.0002810056697
C77: 67 | D77: Trastorno de ansiedad, no especificado | E77: F419 | F77: 30 | G77: 49 | H77: 79 | I77: 0.001305849877 | K77: 67 | L77: Trastornos mentales y del comportamiento debidos al uso de multiples drogas y al uso de otras sustancias psicoactivas, intoxicacion aguda | M77: F190 | N77: 49 | O77: 8 | P77: 57 | Q77: 0.0009421954808 | S77: 67 | T77: Esquizofrenia indiferenciada | U77: F203 | V77: 7 | W77: 9 | X77: 16 | Y77: 0.0002644759244
C78: 68 | D78: Trastorno esquizotipico | E78: F21X | F78: 37 | G78: 40 | H78: 77 | I78: 0.001272790386 | K78: 68 | L78: Retraso mental, no especificado | M78: F79 | N78: 26 | O78: 30 | P78: 56 | Q78: 0.0009256657355 | S78: 68 | T78: Trastorno esquizoafectivo de tipo depresivo | U78: F251 | V78: 3 | W78: 13 | X78: 16 | Y78: 0.0002644759244
C79: 69 | D79: Trastorno opositor desafiante | E79: F913 | F79: 47 | G79: 29 | H79: 76 | I79: 0.001256260641 | K79: 69 | L79: Trastorno esquizoafectivo de tipo mixto | M79: F252 | N79: 28 | O79: 28 | P79: 56 | Q79: 0.0009256657355 | S79: 69 | T79: Alucinosis organica | U79: F060 | V79: 7 | W79: 9 | X79: 16 | Y79: 0.0002644759244
C80: 70 | D80: Trastornos mentales y del comportamiento debidos al uso de multiples drogas y al uso de otras sustancias psicoactivas, intoxicacion aguda | E80: F190 | F80: 60 | G80: 16 | H80: 76 | I80: 0.001256260641 | K80: 70 | L80: Trastorno afectivo bipolar, episodio mixto presente | M80: F316 | N80: 20 | O80: 35 | P80: 55 | Q80: 0.0009091359902 | S80: 70 | T80: Trastorno esquizotipico | U80: F21X | V80: 4 | W80: 11 | X80: 15 | Y80: 0.0002479461791
C81: 71 | D81: Trastorno afectivo bipolar, episodio mixto presente | E81: F316 | F81: 23 | G81: 52 | H81: 75 | I81: 0.001239730896 | K81: 71 | L81: Retraso mental moderado, deterioro del comportamiento nulo o minimo | M81: F710 | N81: 39 | O81: 15 | P81: 54 | Q81: 0.0008926062449 | S81: 71 | T81: Otros trastornos hipercineticos | U81: f908 | V81: 11 | W81: 4 | X81: 15 | Y81: 0.0002479461791
C82: 72 | D82: Trastorno de somatizacion | E82: F450 | F82: 36 | G82: 39 | H82: 75 | I82: 0.001239730896 | K82: 72 | L82: Retraso mental leve | M82: F70 | N82: 42 | O82: 11 | P82: 53 | Q82: 0.0008760764997 | S82: 72 | T82: Juego patologico | U82: F630 | V82: 1 | W82: 14 | X82: 15 | Y82: 0.0002479461791
C83: 73 | E83: F030 | F83: 28 | G83: 47 | H83: 75 | I83: 0.001239730896 | K83: 73 | L83: Otros trastornos hipercineticos | M83: f908 | N83: 42 | O83: 10 | P83: 52 | Q83: 0.0008595467544 | S83: 73 | T83: Otros problemas especificados relacionados con el grupo primario de apoyo | U83: Z638 | V83: 7 | W83: 8 | X83: 15 | Y83: 0.0002479461791
C84: 74 | D84: Trastornos mentales y del comportamiento debidos al uso de multiples drogas y al uso de otras sustancias psicoactivas, sindrome de dependendencia | E84: F192 | F84: 63 | G84: 10 | H84: 73 | I84: 0.001206671405 | K84: 74 | L84: Trastorno asocial de la personalidad | M84: F602 | N84: 44 | O84: 8 | P84: 52 | Q84: 0.0008595467544 | S84: 74 | T84: Trastorno delirante | U84: F220 | V84: 7 | W84: 7 | X84: 14 | Y84: 0.0002314164339
C85: 75 | D85: Problemas en la relacion entre esposos o pareja | E85: Z630 | F85: 35 | G85: 34 | H85: 69 | I85: 0.001140552424 | K85: 75 | L85: Trastorno delirante [esquizofreniforme], organico | M85: F062 | N85: 26 | O85: 26 | P85: 52 | Q85: 0.0008595467544 | S85: 75 | T85: Epilepsia y sindromes epilepticos idiopaticos relacionados con localizaciones (focales)(parciales) y con ataques de inicio localizado | U85: G400 | V85: 3 | W85: 11 | X85: 14 | Y85: 0.0002314164339
C86: 76 | D86: Trastorno asocial de la personalidad | E86: F602 | F86: 57 | G86: 12 | H86: 69 | I86: 0.001140552424 | K86: 76 | L86: Retraso mental, no especificado, deterioro del comportamiento nulo o minimo | M86: F790 | N86: 22 | O86: 29 | P86: 51 | Q86: 0.0008430170091 | S86: 76 | T86: Autismo atipico | U86: F841 | V86: 14 | W86: 0 | X86: 14 | Y86: 0.0002314164339
C87: 77 | D87: Trastorno delirante [esquizofreniforme], organico | E87: F062 | F87: 30 | G87: 39 | H87: 69 | I87: 0.001140552424 | K87: 77 | L87: Anorexia nerviosa | M87: F500 | N87: 23 | O87: 25 | P87: 48 | Q87: 0.0007934277733 | S87: 77 | T87: Fobias especificas (aisladas) | U87: F402 | V87: 2 | W87: 12 | X87: 14 | Y87: 0.0002314164339
C88: 78 | D88: Otros trastornos hipercineticos | E88: f908 | F88: 53 | G88: 14 | H88: 67 | I88: 0.001107492934 | K88: 78 | L88: Trastorno opositor desafiante | M88: F913 | N88: 30 | O88: 18 | P88: 48 | Q88: 0.0007934277733 | S88: 78 | T88: Trastorno de la ingestion de alimentos, no especificado | U88: F509 | V88: 4 | W88: 10 | X88: 14 | Y88: 0.0002314164339
C89: 79 | D89: Otros trastornos depresivos recurrentes | E89: F338 | F89: 15 | G89: 50 | H89: 65 | I89: 0.001074433443 | K89: 79 | L89: Nerviosismo | M89: R450 | N89: 23 | O89: 25 | P89: 48 | Q89: 0.0007934277733 | S89: 79 | T89: Predominio de actos compulsivos [rituales obsesivos] | U89: F421 | V89: 4 | W89: 9 | X89: 13 | Y89: 0.0002148866886
C90: 80 | D90: Trastornos mentales y del comportamiento debidos al uso de multiples drogas y al uso de otras sustancias psicoactivas, trastorno psicotico residual y de comienzo tardio | E90: F197 | F90: 58 | G90: 4 | H90: 62 | I90: 0.001024844207 | K90: 80 | L90: Retraso mental grave, deterioro del comportamiento nulo o minimo | M90: F720 | N90: 29 | O90: 19 | P90: 48 | Q90: 0.0007934277733 | S90: 80 | T90: Trastorno de ansiedad fobica en la niñez | U90: F931 | V90: 13 | W90: 0 | X90: 13 | Y90: 0.0002148866886
C91: 81 | D91: Trastorno esquizoafectivo de tipo mixto | E91: F252 | F91: 28 | G91: 32 | H91: 60 | I91: 0.0009917847166 | K91: 81 | L91: Otros trastornos de ansiedad mixtos | M91: F413 | N91: 26 | O91: 19 | P91: 45 | Q91: 0.0007438385374 | S91: 81 | U91: F29 | V91: 4 | W91: 9 | X91: 13 | Y91: 0.0002148866886
C92: 82 | D92: Retraso mental, no especificado | E92: F79 | F92: 27 | G92: 30 | H92: 57 | I92: 0.0009421954808 | K92: 82 | L92: Trastornos mentales y del comportamiento debidos al uso de alcohol, sindrome de dependencia | M92: F102 | N92: 39 | O92: 5 | P92: 44 | Q92: 0.0007273087922 | S92: 82 | T92: Trastornos mentales y del comportamiento debidos al uso de otros estimulantes, incluida la cafeina, trastorno psicotico | U92: F155 | V92: 6 | W92: 7 | X92: 13 | Y92: 0.0002148866886
C93: 83 | D93: Retraso mental moderado, deterioro del comportamiento nulo o minimo | E93: F710 | F93: 41 | G93: 16 | H93: 57 | I93: 0.0009421954808 | K93: 83 | L93: Epilepsia y sindromes epilepticos sintomaticos relacionados con localizaciones (focales)(parciales) y con ataques parciales simples | M93: G401 | N93: 21 | O93: 22 | P93: 43 | Q93: 0.0007107790469 | S93: 83 | T93: Otros trastornos obsesivo-compulsivos | U93: F428 | V93: 0 | W93: 12 | X93: 12 | Y93: 0.0001983569433
C94: 84 | D94: Retraso mental, no especificado, deterioro del comportamiento nulo o minimo | E94: F790 | F94: 25 | G94: 31 | H94: 56 | I94: 0.0009256657355 | K94: 84 | L94: Actos e ideas obsesivas mixtos | M94: F422 | N94: 16 | O94: 26 | P94: 42 | Q94: 0.0006942493016 | S94: 84 | T94: Enuresis no organica | U94: F980 | V94: 4 | W94: 8 | X94: 12 | Y94: 0.0001983569433
C95: 85 | D95: Bulimia nerviosa | E95: F502 | F95: 1 | G95: 54 | H95: 55 | I95: 0.0009091359902 | K95: 85 | L95: Trastorno de ansiedad de separacion en la niñez | M95: F930 | N95: 19 | O95: 22 | P95: 41 | Q95: 0.0006777195563 | S95: 85 | T95: Actos e ideas obsesivas mixtos | U95: F422 | V95: 2 | W95: 9 | X95: 11 | Y95: 0.000181827198
C96: 86 | D96: Actos e ideas obsesivas mixtos | E96: F422 | F96: 18 | G96: 35 | H96: 53 | I96: 0.0008760764997 | K96: 86 | L96: Esquizofrenia catatonica | M96: F202 | N96: 35 | O96: 5 | P96: 40 | Q96: 0.0006611898111 | S96: 86 | T96: Trastorno psicotico agudo polimorfo, sin sintomas de esquizofrenia | U96: F230 | V96: 0 | W96: 11 | X96: 11 | Y96: 0.000181827198
C97: 87 | D97: Alucinosis organica | E97: F060 | F97: 19 | G97: 34 | H97: 53 | I97: 0.0008760764997 | K97: 87 | L97: Trastorno de somatizacion | M97: F450 | N97: 17 | O97: 23 | P97: 40 | Q97: 0.0006611898111 | S97: 87 | T97: Cambio perdurable de la personalidad despues de una experiencia catastrofica | U97: F620 | V97: 6 | W97: 5 | X97: 11 | Y97: 0.000181827198
C98: 88 | D98: Sindrome de Asperger | E98: F845 | F98: 39 | G98: 13 | H98: 52 | I98: 0.0008595467544 | K98: 88 | L98: Enfermedad de Parkinson | M98: G20X | N98: 17 | O98: 22 | P98: 39 | Q98: 0.0006446600658 | S98: 88 | T98: Trastornos esquizoafectivos | U98: F25 | V98: 0 | W98: 10 | X98: 10 | Y98: 0.0001652974528
C99: 89 | D99: Retraso mental leve | E99: F70 | F99: 33 | G99: 18 | H99: 51 | I99: 0.0008430170091 | K99: 89 | L99: Trastornos mentales y del comportamiento debidos al uso de cannabinoides, sindrome de dependencia | M99: F122 | N99: 33 | O99: 6 | P99: 39 | Q99: 0.0006446600658 | S99: 89 | T99: Trastorno de la personalidad dependiente | U99: F607 | V99: 1 | W99: 8 | X99: 9 | Y99: 0.0001487677075
C100: 90 | D100: Otros trastornos de ansiedad mixtos | E100: F413 | F100: 28 | G100: 22 | H100: 50 | I100: 0.0008264872638 | K100: 90 | L100: Trastornos generalizados del desarrollo | M100: F84 | N100: 21 | O100: 16 | P100: 37 | Q100: 0.0006116005752 | S100: 90 | T100: Trastorno de la conducta limitado al contexto familiar | U100: F910 | V100: 7 | W100: 2 | X100: 9 | Y100: 0.0001487677075
C101: 91 | D101: Retraso mental grave, deterioro del comportamiento nulo o minimo | E101: F720 | F101: 29 | G101: 19 | H101: 48 | I101: 0.0007934277733 | K101: 91 | L101: Alucinosis organica | M101: F060 | N101: 12 | O101: 25 | P101: 37 | Q101: 0.0006116005752 | S101: 91 | T101: Insomnio no organico | U101: F510 | V101: 3 | W101: 5 | X101: 8 | Y101: 0.0001322379622
C102: 92 | D102: Trastornos mentales y del comportamiento debidos al uso de alcohol, sindrome de dependencia | E102: F102 | F102: 40 | G102: 5 | H102: 45 | I102: 0.0007438385374 | K102: 92 | L102: Trastorno de ansiedad, no especificado | M102: F419 | N102: 22 | O102: 14 | P102: 36 | Q102: 0.00059507083 | S102: 92 | T102: Otros trastornos mentales especificados debidos a lesion y disfuncion cerebral y a enfermedad fisica | U102: F068 | V102: 1 | W102: 6 | X102: 7 | Y102: 0.0001157082169
C103: 93 | D103: Trastorno de ansiedad de separacion en la niñez | E103: F930 | F103: 20 | G103: 25 | H103: 45 | I103: 0.0007438385374 | K103: 93 | L103: Retraso mental grave | M103: F72 | N103: 24 | O103: 9 | P103: 33 | Q103: 0.0005454815941 | S103: 93 | T103: Demencia en la enfermedad de Pick | U103: F020 | V103: 4 | W103: 3 | X103: 7 | Y103: 0.0001157082169
C104: 94 | D104: Epilepsia y sindromes epilepticos sintomaticos relacionados con localizaciones (focales)(parciales) y con ataques parciales simples | E104: G401 | F104: 21 | G104: 22 | H104: 43 | I104: 0.0007107790469 | K104: 94 | L104: Problemas en la relacion entre esposos o pareja | M104: Z630 | N104: 19 | O104: 13 | P104: 32 | Q104: 0.0005289518489 | S104: 94 | T104: Problemas relacionados con la supervision o el control inadecuados de los padres | U104: Z620 | V104: 1 | W104: 6 | X104: 7 | Y104: 0.0001157082169
C105: 95 | D105: Esquizofrenia catatonica | E105: F202 | F105: 35 | G105: 7 | H105: 42 | I105: 0.0006942493016 | K105: 95 | L105: Fobias sociales | M105: F401 | N105: 10 | O105: 22 | P105: 32 | Q105: 0.0005289518489 | S105: 95 | T105: Epilepsia y sindromes epilepticos idiopaticos generalizados | U105: G403 | V105: 2 | W105: 4 | X105: 6 | Y105: 9.917847166e-05
C106: 96 | D106: Trastornos mentales y del comportamiento debidos al uso de cannabinoides, sindrome de dependencia | E106: F122 | F106: 35 | G106: 6 | H106: 41 | I106: 0.0006777195563 | K106: 96 | M106: F415 | N106: 16 | O106: 15 | P106: 31 | Q106: 0.0005124221036 | S106: 96 | T106: Esquizofrenia residual | U106: F205 | V106: 2 | W106: 4 | X106: 6 | Y106: 9.917847166e-05
C107: 97 | D107: Enfermedad de Parkinson | E107: G20X | F107: 17 | G107: 22 | H107: 39 | I107: 0.0006446600658 | K107: 97 | L107: Trastorno obsesivo-compulsivo | M107: F42 | N107: 13 | O107: 17 | P107: 30 | Q107: 0.0004958923583 | S107: 97 | T107: Trastorno afectivo bipolar, episodio depresivo grave presente con sintomas psicoticos | U107: F315 | V107: 4 | W107: 2 | X107: 6 | Y107: 9.917847166e-05
C108: 98 | D108: Trastorno de la personalidad, organico | E108: F070 | F108: 18 | G108: 21 | H108: 39 | I108: 0.0006446600658 | K108: 98 | L108: Trastornos mentales y del comportamiento debidos al uso de alcohol, trastorno psicotico | M108: F105 | N108: 26 | O108: 3 | P108: 29 | Q108: 0.000479362613 | S108: 98 | T108: Otros trastornos de los habitos y de los impulsos | U108: F638 | V108: 2 | W108: 4 | X108: 6 | Y108: 9.917847166e-05
C109: 99 | D109: Predominio de actos compulsivos [rituales obsesivos] | E109: F421 | F109: 15 | G109: 22 | H109: 37 | I109: 0.0006116005752 | K109: 99 | M109: F030 | N109: 11 | O109: 18 | P109: 29 | Q109: 0.000479362613 | S109: 99 | T109: Trastornos mentales y del comportamiento debidos al uso de alcohol, intoxicacion aguda | U109: F100 | V109: 3 | W109: 3 | X109: 6 | Y109: 9.917847166e-05
C110: 100 | D110: Fobias sociales | E110: F401 | F110: 11 | G110: 25 | H110: 36 | I110: 0.00059507083 | K110: 100 | L110: Trastornos delirantes persistentes | M110: F22 | N110: 19 | O110: 9 | P110: 28 | Q110: 0.0004628328677 | S110: 100 | U110: F032 | V110: 5 | W110: 1 | X110: 6 | Y110: 9.917847166e-05
C111: 101 | D111: Insomnio no organico | E111: F510 | F111: 14 | G111: 22 | H111: 36 | I111: 0.00059507083 | K111: 101 | L111: Sindrome de Asperger | M111: F845 | N111: 23 | O111: 5 | P111: 28 | Q111: 0.0004628328677 | S111: 101 | T111: Trastorno de la personalidad, no especificado | U111: F609 | V111: 2 | W111: 3 | X111: 5 | Y111: 8.264872638e-05
C112: 102 | D112: Trastorno obsesivo-compulsivo | E112: F42 | F112: 16 | G112: 19 | H112: 35 | I112: 0.0005785410847 | K112: 102 | L112: Otros trastornos depresivos recurrentes | M112: F338 | N112: 5 | O112: 23 | P112: 28 | Q112: 0.0004628328677 | S112: 102 | T112: Trastorno obsesivo-compulsivo | U112: F42 | V112: 3 | W112: 2 | X112: 5 | Y112: 8.264872638e-05
C113: 103 | E113: R45X | F113: 21 | G113: 13 | H113: 34 | I113: 0.0005620113394 | K113: 103 | L113: Insomnio no organico | M113: F510 | N113: 11 | O113: 17 | P113: 28 | Q113: 0.0004628328677 | S113: 103 | T113: Bulimia nerviosa atipica | U113: F503 | V113: 0 | W113: 5 | X113: 5 | Y113: 8.264872638e-05
C114: 104 | D114: Retraso mental grave | E114: F72 | F114: 24 | G114: 9 | H114: 33 | I114: 0.0005454815941 | K114: 104 | L114: Retraso mental leve, deterioro del comportamiento significativo, que requiere atencion o tratamiento | M114: F701 | N114: 12 | O114: 13 | P114: 25 | Q114: 0.0004132436319 | S114: 104 | T114: Falta del desarrollo fisiologico normal esperado | U114: R62 | V114: 4 | W114: 1 | X114: 5 | Y114: 8.264872638e-05
C115: 105 | D115: Trastornos generalizados del desarrollo | E115: F84 | F115: 26 | G115: 5 | H115: 31 | I115: 0.0005124221036 | K115: 105 | L115: Demencia en la enfermedad de Alzheimer, de comienzo temprano | M115: F000 | N115: 10 | O115: 15 | P115: 25 | Q115: 0.0004132436319 | S115: 105 | T115: Otros trastornos de ansiedad mixtos | U115: F413 | V115: 2 | W115: 3 | X115: 5 | Y115: 8.264872638e-05
C116: 106 | E116: F415 | F116: 16 | G116: 15 | H116: 31 | I116: 0.0005124221036 | K116: 106 | L116: Trastorno catatonico, organico | M116: F061 | N116: 11 | O116: 14 | P116: 25 | Q116: 0.0004132436319 | S116: 106 | T116: Trastornos mentales y del comportamiento debidos al uso de multiples drogas y al uso de otras sustancias psicoactivas, sindrome de dependendencia | U116: F192 | V116: 4 | W116: 1 | X116: 5 | Y116: 8.264872638e-05
C117: 107 | D117: Trastorno psicotico agudo polimorfo, sin sintomas de esquizofrenia | E117: F230 | F117: 6 | G117: 24 | H117: 30 | I117: 0.0004958923583 | K117: 107 | L117: Predominio de actos compulsivos [rituales obsesivos] | M117: F421 | N117: 11 | O117: 13 | P117: 24 | Q117: 0.0003967138866 | S117: 107 | T117: Trastorno generalizado del desarrollo no especificado | U117: F849 | V117: 5 | W117: 0 | X117: 5 | Y117: 8.264872638e-05
C118: 108 | D118: Trastornos delirantes persistentes | E118: F22 | F118: 20 | G118: 9 | H118: 29 | I118: 0.000479362613 | K118: 108 | L118: Falta del desarrollo fisiologico normal esperado | M118: R62 | N118: 11 | O118: 12 | P118: 23 | Q118: 0.0003801841414 | S118: 108 | T118: Demencia vascular de comienzo agudo | U118: F010 | V118: 1 | W118: 4 | X118: 5 | Y118: 8.264872638e-05
C119: 109 | D119: Hipomania | E119: F300 | F119: 11 | G119: 18 | H119: 29 | I119: 0.000479362613 | K119: 109 | L119: Esquizofrenia simple | M119: F206 | N119: 17 | O119: 6 | P119: 23 | Q119: 0.0003801841414 | S119: 109 | T119: Trastornos mentales y del comportamiento debidos al uso de sedantes o hipnoticos, sindrome de dependencia | U119: F132 | V119: 3 | W119: 2 | X119: 5 | Y119: 8.264872638e-05
C120: 110 | D120: Trastornos mentales y del comportamiento debidos al uso de alcohol, trastorno psicotico | E120: F105 | F120: 26 | G120: 3 | H120: 29 | I120: 0.000479362613 | K120: 110 | L120: Demencia vascular mixta, cortical y subcortical | M120: F013 | N120: 5 | O120: 18 | P120: 23 | Q120: 0.0003801841414 | S120: 110 | T120: Transexualismo | U120: F640 | V120: 0 | W120: 5 | X120: 5 | Y120: 8.264872638e-05
C121: 111 | D121: Falta del desarrollo fisiologico normal esperado | E121: R62 | F121: 15 | G121: 13 | H121: 28 | I121: 0.0004628328677 | K121: 111 | L121: Retraso mental moderado | M121: F71 | N121: 17 | O121: 5 | P121: 22 | Q121: 0.0003636543961 | S121: 111 | T121: Retraso mental, no especificado, deterioro del comportamiento nulo o minimo | U121: F790 | V121: 3 | W121: 2 | X121: 5 | Y121: 8.264872638e-05
C122: 112 | D122: Juego patologico | E122: F630 | F122: 5 | G122: 22 | H122: 27 | I122: 0.0004463031225 | K122: 112 | L122: Trastornos de los habitos y de los impulsos | M122: F63 | N122: 10 | O122: 12 | P122: 22 | Q122: 0.0003636543961 | S122: 112 | T122: Otros trastornos especificos de la personalidad | U122: F608 | V122: 0 | W122: 4 | X122: 4 | Y122: 6.611898111e-05
C123: 113 | D123: Fobias especificas (aisladas) | E123: F402 | F123: 6 | G123: 20 | H123: 26 | I123: 0.0004297733772 | K123: 113 | L123: Trastornos mentales y del comportamiento debidos al uso de cannabinoides, trastorno psicotico | M123: F125 | N123: 20 | O123: 1 | P123: 21 | Q123: 0.0003471246508 | S123: 113 | T123: Problemas relacionados con la ausencia de un miembro de la familia | U123: Z633 | V123: 3 | W123: 1 | X123: 4 | Y123: 6.611898111e-05
C124: 114 | D124: Demencia en la enfermedad de Alzheimer, de comienzo temprano | E124: F000 | F124: 10 | G124: 16 | H124: 26 | I124: 0.0004297733772 | K124: 114 | L124: Trastorno mental no especificado debido a lesion y disfuncion cerebral y a enfermedad fisica | M124: F069 | N124: 10 | O124: 10 | P124: 20 | Q124: 0.0003305949055 | S124: 114 | T124: Epilepsia y sindromes epilepticos sintomaticos relacionados con localizaciones (focales)(parciales) y con ataques parciales complejos | U124: G402 | V124: 0 | W124: 4 | X124: 4 | Y124: 6.611898111e-05
C125: 115 | D125: Retraso mental leve, deterioro del comportamiento significativo, que requiere atencion o tratamiento | E125: F701 | F125: 14 | G125: 11 | H125: 25 | I125: 0.0004132436319 | K125: 115 | L125: Delirio no superpuesto a un cuadro de demencia, asi descrito | M125: F050 | N125: 12 | O125: 8 | P125: 20 | Q125: 0.0003305949055 | S125: 115 | T125: Fuga disociativa | U125: F441 | V125: 1 | W125: 3 | X125: 4 | Y125: 6.611898111e-05
C126: 116 | D126: Trastorno catatonico, organico | E126: F061 | F126: 11 | G126: 14 | H126: 25 | I126: 0.0004132436319 | K126: 116 | M126: F324 | N126: 4 | O126: 15 | P126: 19 | Q126: 0.0003140651603 | S126: 116 | T126: Trastorno hipercinetico de la conducta | U126: F901 | V126: 3 | W126: 1 | X126: 4 | Y126: 6.611898111e-05
C127: 117 | D127: Esquizofrenia simple | E127: F206 | F127: 17 | G127: 6 | H127: 23 | I127: 0.0003801841414 | K127: 117 | L127: Bulimia nerviosa | M127: F502 | N127: 1 | O127: 18 | P127: 19 | Q127: 0.0003140651603 | S127: 117 | U127: F324 | V127: 0 | W127: 4 | X127: 4 | Y127: 6.611898111e-05
C128: 118 | E128: F324 | F128: 4 | G128: 19 | H128: 23 | I128: 0.0003801841414 | K128: 118 | L128: Trastorno psicotico agudo polimorfo, sin sintomas de esquizofrenia | M128: F230 | N128: 6 | O128: 13 | P128: 19 | Q128: 0.0003140651603 | S128: 118 | T128: Episodio depresivo, no especificado | U128: F329 | V128: 1 | W128: 3 | X128: 4 | Y128: 6.611898111e-05
C129: 119 | D129: Trastorno de la conducta limitado al contexto familiar | E129: F910 | F129: 17 | G129: 6 | H129: 23 | I129: 0.0003801841414 | K129: 119 | M129: R45X | N129: 10 | O129: 8 | P129: 18 | Q129: 0.000297535415 | S129: 119 | T129: Fobias sociales | U129: F401 | V129: 1 | W129: 3 | X129: 4 | Y129: 6.611898111e-05
C130: 120 | D130: Demencia vascular mixta, cortical y subcortical | E130: F013 | F130: 5 | G130: 18 | H130: 23 | I130: 0.0003801841414 | K130: 120 | L130: Trastornos mentales y del comportamiento debidos al uso de multiples drogas y al uso de otras sustancias psicoactivas | M130: F19 | N130: 14 | O130: 4 | P130: 18 | Q130: 0.000297535415 | S130: 120 | T130: Trastorno esquizoafectivo de tipo mixto | U130: F252 | V130: 0 | W130: 4 | X130: 4 | Y130: 6.611898111e-05
C131: 121 | D131: Trastornos de los habitos y de los impulsos | E131: F63 | F131: 10 | G131: 13 | H131: 23 | I131: 0.0003801841414 | K131: 121 | L131: Trastorno de la personalidad, organico | M131: F070 | N131: 13 | O131: 5 | P131: 18 | Q131: 0.000297535415 | S131: 121 | T131: Consulta, no especificada | U131: Z719 | V131: 1 | W131: 3 | X131: 4 | Y131: 6.611898111e-05
C132: 122 | D132: Retraso mental moderado | E132: F71 | F132: 17 | G132: 5 | H132: 22 | I132: 0.0003636543961 | K132: 122 | L132: Trastorno hiperactivo asociado con retraso mental y movimientos estereotipados | M132: F844 | N132: 9 | O132: 8 | P132: 17 | Q132: 0.0002810056697 | S132: 122 | T132: Trastornos disociativos del movimiento | U132: F444 | V132: 1 | W132: 3 | X132: 4 | Y132: 6.611898111e-05
C133: 123 | D133: Trastornos mentales y del comportamiento debidos al uso de cannabinoides, trastorno psicotico | E133: F125 | F133: 21 | G133: 1 | H133: 22 | I133: 0.0003636543961 | K133: 123 | L133: Trastorno paranoide de la personalidad | M133: F600 | N133: 5 | O133: 11 | P133: 16 | Q133: 0.0002644759244 | S133: 123 | T133: Trastorno de ansiedad de separacion en la niñez | U133: F930 | V133: 1 | W133: 3 | X133: 4 | Y133: 6.611898111e-05
C134: 124 | D134: Problemas relacionados con otros hechos estresantes que afectan a la familia y al hogar | E134: Z637 | F134: 8 | G134: 14 | H134: 22 | I134: 0.0003636543961 | K134: 124 | L134: Demencia , no especificada | M134: F03X | N134: 7 | O134: 8 | P134: 15 | Q134: 0.0002479461791 | S134: 124 | T134: Otros trastornos afectivos bipolares | U134: F318 | V134: 1 | W134: 3 | X134: 4 | Y134: 6.611898111e-05
C135: 125 | D135: Delirio no superpuesto a un cuadro de demencia, asi descrito | E135: F050 | F135: 13 | G135: 9 | H135: 22 | I135: 0.0003636543961 | K135: 125 | L135: Demencia vascular de comienzo agudo | M135: F010 | N135: 3 | O135: 12 | P135: 15 | Q135: 0.0002479461791 | S135: 125 | T135: Problemas relacionados con el apoyo familiar inadecuado | U135: Z632 | V135: 0 | W135: 4 | X135: 4 | Y135: 6.611898111e-05
C136: 126 | D136: Otros problemas especificados relacionados con el grupo primario de apoyo | E136: Z638 | F136: 9 | G136: 13 | H136: 22 | I136: 0.0003636543961 | K136: 126 | L136: Demencia en otras enfermedades especificadas clasificadas en otra parte | M136: F028 | N136: 8 | O136: 6 | P136: 14 | Q136: 0.0002314164339 | S136: 126 | T136: Trastronos de la personalidad y del comportamiento debidos a enfermedad, lesion o disfuncion cerebral | U136: F07 | V136: 0 | W136: 4 | X136: 4 | Y136: 6.611898111e-05
C137: 127 | D137: Problemas relacionados con la desaparicion o muerte de un miembro de la familia | E137: Z634 | F137: 5 | G137: 15 | H137: 20 | I137: 0.0003305949055 | K137: 127 | L137: Trastorno de la conducta limitado al contexto familiar | M137: F910 | N137: 10 | O137: 4 | P137: 14 | Q137: 0.0002314164339 | S137: 127 | T137: Trastornos fobicos de ansiedad | U137: F40 | V137: 2 | W137: 1 | X137: 3 | Y137: 4.958923583e-05
C138: 128 | D138: Trastornos mentales y del comportamiento debidos al uso de multiples drogas y al uso de otras sustancias psicoactivas | E138: F19 | F138: 14 | G138: 6 | H138: 20 | I138: 0.0003305949055 | K138: 128 | L138: Otros trastornos afectivos bipolares | M138: F318 | N138: 3 | O138: 11 | P138: 14 | Q138: 0.0002314164339 | S138: 128 | T138: Trastornos mentales y del comportamiento leves, asociados con el puerperio, no clasificados en otra parte | U138: F530 | V138: 0 | W138: 3 | X138: 3 | Y138: 4.958923583e-05
C139: 129 | D139: Demencia vascular de comienzo agudo | E139: F010 | F139: 4 | G139: 16 | H139: 20 | I139: 0.0003305949055 | K139: 129 | L139: Trastornos mentales y del comportamiento debidos al uso de disolventes volatiles, intoxicacion aguda | M139: F180 | N139: 11 | O139: 3 | P139: 14 | Q139: 0.0002314164339 | S139: 129 | T139: Otros trastornos de la preferencia sexual | U139: F658 | V139: 3 | W139: 0 | X139: 3 | Y139: 4.958923583e-05
C140: 130 | D140: Trastorno mental no especificado debido a lesion y disfuncion cerebral y a enfermedad fisica | E140: F069 | F140: 10 | G140: 10 | H140: 20 | I140: 0.0003305949055 | K140: 130 | L140: Otras epilepsias y sindromes epilepticos generalizados | M140: G404 | N140: 8 | O140: 5 | P140: 13 | Q140: 0.0002148866886 | S140: 130 | T140: Otros trastornos emocionales en la niñez | U140: F938 | V140: 3 | W140: 0 | X140: 3 | Y140: 4.958923583e-05
C141: 131 | D141: Trastorno de la personalidad dependiente | E141: F607 | F141: 2 | G141: 16 | H141: 18 | I141: 0.000297535415 | K141: 131 | M141: F83 | N141: 10 | O141: 3 | P141: 13 | Q141: 0.0002148866886 | S141: 131 | T141: Trastorno depresivo recurrente, no especificado | U141: F339 | V141: 2 | W141: 1 | X141: 3 | Y141: 4.958923583e-05
C142: 132 | D142: Otros trastornos afectivos bipolares | E142: F318 | F142: 4 | G142: 14 | H142: 18 | I142: 0.000297535415 | K142: 132 | L142: Trastornos mentales y del comportamiento debidos al uso de multiples drogas y al uso de otras sustancias psicoactivas, uso nocivo | M142: F191 | N142: 11 | O142: 2 | P142: 13 | Q142: 0.0002148866886 | S142: 132 | T142: Otros trastornos somatomorfos | U142: F458 | V142: 2 | W142: 1 | X142: 3 | Y142: 4.958923583e-05
C143: 133 | D143: Trastornos mentales y del comportamiento debidos al uso de alcohol, intoxicacion aguda | E143: F100 | F143: 13 | G143: 5 | H143: 18 | I143: 0.000297535415 | K143: 133 | L143: Trastornos mentales y del comportamiento debidos al uso de sedantes o hipnoticos, sindrome de dependencia | M143: F132 | N143: 10 | O143: 3 | P143: 13 | Q143: 0.0002148866886 | S143: 133 | T143: Hurto patologico [cleptomania] | U143: F632 | V143: 0 | W143: 3 | X143: 3 | Y143: 4.958923583e-05
C144: 134 | D144: Trastornos mentales y del comportamiento debidos al uso de sedantes o hipnoticos, sindrome de dependencia | E144: F132 | F144: 13 | G144: 5 | H144: 18 | I144: 0.000297535415 | K144: 134 | L144: Trastornos mentales y del comportamiento debidos al uso de otros estimulantes, incluida la cafeina, uso nocivo | M144: F151 | N144: 10 | O144: 3 | P144: 13 | Q144: 0.0002148866886 | S144: 134 | U144: F690 | V144: 2 | W144: 1 | X144: 3 | Y144: 4.958923583e-05
C145: 135 | D145: Otros trastornos obsesivo-compulsivos | E145: F428 | F145: 3 | G145: 14 | H145: 17 | I145: 0.0002810056697 | K145: 135 | L145: Epilepsia y sindromes epilepticos sintomaticos relacionados con localizaciones (focales)(parciales) y con ataques parciales complejos | M145: G402 | N145: 3 | O145: 9 | P145: 12 | Q145: 0.0001983569433 | S145: 135 | T145: Retraso mental moderado, deterioro del comportamiento nulo o minimo | U145: F710 | V145: 2 | W145: 1 | X145: 3 | Y145: 4.958923583e-05
C146: 136 | D146: Trastorno de la ingestion de alimentos, no especificado | E146: F509 | F146: 4 | G146: 13 | H146: 17 | I146: 0.0002810056697 | K146: 136 | L146: Otras esquizofrenias | M146: F208 | N146: 6 | O146: 6 | P146: 12 | Q146: 0.0001983569433 | S146: 136 | T146: Trastorno depresivo de la conducta | U146: F920 | V146: 3 | W146: 0 | X146: 3 | Y146: 4.958923583e-05
C147: 137 | D147: Epilepsia y sindromes epilepticos sintomaticos relacionados con localizaciones (focales)(parciales) y con ataques parciales complejos | E147: G402 | F147: 3 | G147: 13 | H147: 16 | I147: 0.0002644759244 | K147: 137 | L147: Fobias especificas (aisladas) | M147: F402 | N147: 4 | O147: 8 | P147: 12 | Q147: 0.0001983569433 | S147: 137 | T147: Mutismo electivo | U147: F940 | V147: 2 | W147: 1 | X147: 3 | Y147: 4.958923583e-05
C148: 138 | D148: Demencia , no especificada | E148: F03X | F148: 7 | G148: 8 | H148: 15 | I148: 0.0002479461791 | K148: 138 | L148: Trastornos mentales y del comportamiento debidos al uso de alcohol, intoxicacion aguda | M148: F100 | N148: 11 | O148: 1 | P148: 12 | Q148: 0.0001983569433 | S148: 138 | T148: Trastorno esquizoide de la personalidad | U148: F601 | V148: 1 | W148: 2 | X148: 3 | Y148: 4.958923583e-05
C149: 139 | D149: Trastorno de ansiedad fobica en la niñez | E149: F931 | F149: 14 | G149: 0 | H149: 14 | I149: 0.0002314164339 | K149: 139 | L149: Juego patologico | M149: F630 | N149: 4 | O149: 8 | P149: 12 | Q149: 0.0001983569433 | S149: 139 | T149: Trastorno de la personalidad ansiosa (evasiva, elusiva) | U149: F606 | V149: 2 | W149: 1 | X149: 3 | Y149: 4.958923583e-05
C150: 140 | D150: Demencia en otras enfermedades especificadas clasificadas en otra parte | E150: F028 | F150: 8 | G150: 6 | H150: 14 | I150: 0.0002314164339 | K150: 140 | L150: Trastornos psicoticos agudos y transitorios | M150: F23 | N150: 8 | O150: 4 | P150: 12 | Q150: 0.0001983569433 | S150: 140 | T150: Observacion por sospecha de tuberculosis | U150: Z030 | V150: 3 | W150: 0 | X150: 3 | Y150: 4.958923583e-05
C151: 141 | D151: Transexualismo | E151: F640 | F151: 6 | G151: 8 | H151: 14 | I151: 0.0002314164339 | K151: 141 | L151: Retraso mental profundo | M151: F73 | N151: 6 | O151: 5 | P151: 11 | Q151: 0.000181827198 | S151: 141 | T151: Otros trastornos emocionales y del comportamiento que aparecen habitualmente en la niñez y en la adolescencia | U151: F98 | V151: 1 | W151: 1 | X151: 2 | Y151: 3.305949055e-05
C152: 142 | D152: Trastornos mentales y del comportamiento debidos al uso de multiples drogas y al uso de otras sustancias psicoactivas, uso nocivo | E152: F191 | F152: 12 | G152: 2 | H152: 14 | I152: 0.0002314164339 | K152: 142 | L152: Hiperactividad | M152: R463 | N152: 6 | O152: 5 | P152: 11 | Q152: 0.000181827198 | S152: 142 | T152: Trastornos somatomorfos | U152: F45 | V152: 0 | W152: 2 | X152: 2 | Y152: 3.305949055e-05
C153: 143 | D153: Trastornos mentales y del comportamiento debidos al uso de disolventes volatiles, intoxicacion aguda | E153: F180 | F153: 11 | G153: 3 | H153: 14 | I153: 0.0002314164339 | K153: 143 | M153: F210 | N153: 7 | O153: 4 | P153: 11 | Q153: 0.000181827198 | S153: 143 | T153: Hiperactividad | U153: R463 | V153: 2 | W153: 0 | X153: 2 | Y153: 3.305949055e-05
C154: 144 | D154: Trastornos mentales y del comportamiento debidos al uso de otros estimulantes, incluida la cafeina, uso nocivo | E154: F151 | F154: 11 | G154: 3 | H154: 14 | I154: 0.0002314164339 | K154: 144 | L154: Retraso mental leve, deterioro del comportamiento de grado no especificado | M154: F709 | N154: 7 | O154: 4 | P154: 11 | Q154: 0.000181827198 | S154: 144 | T154: Esquizofrenia catatonica | U154: F202 | V154: 0 | W154: 2 | X154: 2 | Y154: 3.305949055e-05
C155: 145 | D155: Enuresis no organica | E155: F980 | F155: 5 | G155: 8 | H155: 13 | I155: 0.0002148866886 | K155: 145 | L155: Cambios perdurables de la personalidad, no atribuibles a lesion o a enfermedad cerebral | M155: F62 | N155: 7 | O155: 4 | P155: 11 | Q155: 0.000181827198 | S155: 145 | T155: Trastorno psicotico agudo polimorfo, con sintomas de esquizofrenia | U155: F231 | V155: 0 | W155: 2 | X155: 2 | Y155: 3.305949055e-05
C156: 146 | D156: Hiperactividad | E156: R463 | F156: 8 | G156: 5 | H156: 13 | I156: 0.0002148866886 | K156: 146 | L156: Retraso mental, no especificado, deterioro del comportamiento de grado no especificado | M156: F799 | N156: 2 | O156: 9 | P156: 11 | Q156: 0.000181827198 | S156: 146 | T156: Trastornos mentales y del comportamiento debidos al uso de cannabinoides, sindrome de dependencia | U156: F122 | V156: 2 | W156: 0 | X156: 2 | Y156: 3.305949055e-05
C157: 147 | D157: Otras epilepsias y sindromes epilepticos generalizados | E157: G404 | F157: 8 | G157: 5 | H157: 13 | I157: 0.0002148866886 | K157: 147 | L157: Trastornos especificos de la personalidad | M157: F60 | N157: 5 | O157: 5 | P157: 10 | Q157: 0.0001652974528 | S157: 147 | T157: Otros trastornos de ansiedad especificados | U157: F418 | V157: 2 | W157: 0 | X157: 2 | Y157: 3.305949055e-05
C158: 148 | D158: Trastorno hipercinetico de la conducta | E158: F901 | F158: 11 | G158: 2 | H158: 13 | I158: 0.0002148866886 | K158: 148 | L158: Trastorno de la personalidad dependiente | M158: F607 | N158: 0 | O158: 9 | P158: 9 | Q158: 0.0001487677075 | S158: 148 | T158: Trastornos mentales y del comportamiento debidos al uso de multiples drogas y al uso de otras sustancias psicoactivas | U158: F19 | V158: 0 | W158: 2 | X158: 2 | Y158: 3.305949055e-05
C159: 149 | D159: Otras esquizofrenias | E159: F208 | F159: 6 | G159: 7 | H159: 13 | I159: 0.0002148866886 | K159: 149 | L159: Hipomania | M159: F300 | N159: 5 | O159: 4 | P159: 9 | Q159: 0.0001487677075 | S159: 149 | T159: Amnesia disociativa | U159: F440 | V159: 0 | W159: 2 | X159: 2 | Y159: 3.305949055e-05
C160: 150 | D160: Trastorno de la personalidad, no especificado | E160: F609 | F160: 8 | G160: 4 | H160: 12 | I160: 0.0001983569433 | K160: 150 | L160: Trastorno hipercinetico de la conducta | M160: F901 | N160: 8 | O160: 1 | P160: 9 | Q160: 0.0001487677075 | S160: 150 | T160: Trastorno de la conducta insociable | U160: F911 | V160: 2 | W160: 0 | X160: 2 | Y160: 3.305949055e-05
C161: 151 | D161: Cambio perdurable de la personalidad despues de una experiencia catastrofica | E161: F620 | F161: 7 | G161: 5 | H161: 12 | I161: 0.0001983569433 | K161: 151 | L161: Transexualismo | M161: F640 | N161: 6 | O161: 3 | P161: 9 | Q161: 0.0001487677075 | S161: 151 | U161: F040 | V161: 0 | W161: 2 | X161: 2 | Y161: 3.305949055e-05
C162: 152 | D162: Trastornos psicoticos agudos y transitorios | E162: F23 | F162: 8 | G162: 4 | H162: 12 | I162: 0.0001983569433 | K162: 152 | L162: Trastornos mentales y del comportamiento debidos al uso de cocaina, sindrome de dependencia | M162: F142 | N162: 5 | O162: 4 | P162: 9 | Q162: 0.0001487677075 | S162: 152 | T162: Delirio no superpuesto a un cuadro de demencia, asi descrito | U162: F050 | V162: 1 | W162: 1 | X162: 2 | Y162: 3.305949055e-05
C163: 153 | D163: Retraso mental profundo | E163: F73 | F163: 6 | G163: 5 | H163: 11 | I163: 0.000181827198 | K163: 153 | L163: Trastornos mentales y del comportamiento debidos al uso de alcohol | M163: F10 | N163: 7 | O163: 1 | P163: 8 | Q163: 0.0001322379622 | S163: 153 | T163: Trastorno disociativo, organico | U163: F065 | V163: 0 | W163: 2 | X163: 2 | Y163: 3.305949055e-05
C164: 154 | E164: F210 | F164: 7 | G164: 4 | H164: 11 | I164: 0.000181827198 | K164: 154 | L164: Trastornos mentales y del comportamiento debidos al uso de alcohol, uso nocivo | M164: F101 | N164: 6 | O164: 2 | P164: 8 | Q164: 0.0001322379622 | S164: 154 | T164: Otros trastornos psicoticos agudos y transitorios | U164: F238 | V164: 0 | W164: 2 | X164: 2 | Y164: 3.305949055e-05
C165: 155 | D165: Episodio depresivo, no especificado | E165: F329 | F165: 3 | G165: 8 | H165: 11 | I165: 0.000181827198 | K165: 155 | L165: Trastorno psicotico agudo polimorfo, con sintomas de esquizofrenia | M165: F231 | N165: 5 | O165: 3 | P165: 8 | Q165: 0.0001322379622 | S165: 155 | U165: F262 | V165: 2 | W165: 0 | X165: 2 | Y165: 3.305949055e-05
C166: 156 | D166: Otros trastornos de los habitos y de los impulsos | E166: F638 | F166: 7 | G166: 4 | H166: 11 | I166: 0.000181827198 | K166: 156 | L166: Trastornos mentales y del comportamiento debidos al uso de cannabinoides, intoxicacion aguda | M166: F120 | N166: 8 | O166: 0 | P166: 8 | Q166: 0.0001322379622 | S166: 156 | U166: F390 | V166: 1 | W166: 1 | X166: 2 | Y166: 3.305949055e-05
C167: 157 | D167: Problemas relacionados con la supervision o el control inadecuados de los padres | E167: Z620 | F167: 4 | G167: 7 | H167: 11 | I167: 0.000181827198 | K167: 157 | L167: Amnesia disociativa | M167: F440 | N167: 3 | O167: 5 | P167: 8 | Q167: 0.0001322379622 | S167: 157 | U167: F550 | V167: 0 | W167: 2 | X167: 2 | Y167: 3.305949055e-05
C168: 158 | D168: Retraso mental leve, deterioro del comportamiento de grado no especificado | E168: F709 | F168: 7 | G168: 4 | H168: 11 | I168: 0.000181827198 | K168: 158 | L168: Trastorno de la personalidad, no especificado | M168: F609 | N168: 6 | O168: 1 | P168: 7 | Q168: 0.0001157082169 | S168: 158 | U168: F610 | V168: 2 | W168: 0 | X168: 2 | Y168: 3.305949055e-05
C169: 159 | D169: Cambios perdurables de la personalidad, no atribuibles a lesion o a enfermedad cerebral | E169: F62 | F169: 7 | G169: 4 | H169: 11 | I169: 0.000181827198 | K169: 159 | M169: G20 | N169: 3 | O169: 4 | P169: 7 | Q169: 0.0001157082169 | S169: 159 | T169: Tricotilomania | U169: F633 | V169: 0 | W169: 2 | X169: 2 | Y169: 3.305949055e-05
C170: 160 | D170: Retraso mental, no especificado, deterioro del comportamiento de grado no especificado | E170: F799 | F170: 2 | G170: 9 | H170: 11 | I170: 0.000181827198 | K170: 160 | M170: F290 | N170: 3 | O170: 4 | P170: 7 | Q170: 0.0001157082169 | S170: 160 | T170: Fetichismo | U170: F650 | V170: 0 | W170: 2 | X170: 2 | Y170: 3.305949055e-05
C171: 161 | D171: Trastornos especificos de la personalidad | E171: F60 | F171: 5 | G171: 5 | H171: 10 | I171: 0.0001652974528 | K171: 161 | L171: Episodio depresivo, no especificado | M171: F329 | N171: 2 | O171: 5 | P171: 7 | Q171: 0.0001157082169 | S171: 161 | T171: Pedofilia | U171: F654 | V171: 1 | W171: 1 | X171: 2 | Y171: 3.305949055e-05
C172: 162 | D172: Trastorno psicotico agudo polimorfo, con sintomas de esquizofrenia | E172: F231 | F172: 5 | G172: 5 | H172: 10 | I172: 0.0001652974528 | K172: 162 | M172: F337 | N172: 1 | O172: 6 | P172: 7 | Q172: 0.0001157082169 | S172: 162 | T172: Trastorno especifico de la pronunciacion | U172: F800 | V172: 2 | W172: 0 | X172: 2 | Y172: 3.305949055e-05
C173: 163 | D173: Amnesia disociativa | E173: F440 | F173: 3 | G173: 7 | H173: 10 | I173: 0.0001652974528 | K173: 163 | L173: Otros problemas especificados relacionados con el grupo primario de apoyo | M173: Z638 | N173: 2 | O173: 5 | P173: 7 | Q173: 0.0001157082169 | S173: 163 | T173: Otros maltratos por esposo o pareja | U173: Y070 | V173: 0 | W173: 2 | X173: 2 | Y173: 3.305949055e-05
C174: 164 | E174: F032 | F174: 8 | G174: 2 | H174: 10 | I174: 0.0001652974528 | K174: 164 | L174: Trastorno esquizoide de la personalidad | M174: F601 | N174: 6 | O174: 1 | P174: 7 | Q174: 0.0001157082169 | S174: 164 | T174: Problemas relacionados con el ajuste a las transiciones del ciclo vital | U174: Z600 | V174: 0 | W174: 2 | X174: 2 | Y174: 3.305949055e-05
C175: 165 | D175: Problemas relacionados con el apoyo familiar inadecuado | E175: Z632 | F175: 4 | G175: 6 | H175: 10 | I175: 0.0001652974528 | K175: 165 | L175: Trastornos mentales y del comportamiento debidos al uso de disolventes volatiles, sindrome de dependencia | M175: F182 | N175: 7 | O175: 0 | P175: 7 | Q175: 0.0001157082169 | S175: 165 | T175: Retraso mental leve | U175: F70 | V175: 0 | W175: 1 | X175: 1 | Y175: 1.652974528e-05
C176: 166 | D176: Trastronos de la personalidad y del comportamiento debidos a enfermedad, lesion o disfuncion cerebral | E176: F07 | F176: 5 | G176: 5 | H176: 10 | I176: 0.0001652974528 | K176: 166 | L176: Trastorno delirante inducido | M176: F24X | N176: 5 | O176: 2 | P176: 7 | Q176: 0.0001157082169 | S176: 166 | T176: Episodio maniaco | U176: F30 | V176: 0 | W176: 1 | X176: 1 | Y176: 1.652974528e-05
C177: 167 | D177: Trastorno esquizoide de la personalidad | E177: F601 | F177: 7 | G177: 3 | H177: 10 | I177: 0.0001652974528 | K177: 167 | L177: Personas en contacto con los servicios de salud por otras circunstancias | M177: Z76 | N177: 5 | O177: 1 | P177: 6 | Q177: 9.917847166e-05 | S177: 167 | T177: Otros problemas relacionados con el grupo primario de apoyo, inclusive circunstancias familiares | U177: Z63 | V177: 1 | W177: 0 | X177: 1 | Y177: 1.652974528e-05
C178: 168 | D178: Trastornos mentales y del comportamiento debidos al uso de cannabinoides, intoxicacion aguda | E178: F120 | F178: 8 | G178: 1 | H178: 9 | I178: 0.0001487677075 | K178: 168 | L178: Trastornos mentales y del comportamiento debidos al uso de otros estimilantes, incluida la cafeina | M178: F15 | N178: 6 | O178: 0 | P178: 6 | Q178: 9.917847166e-05 | S178: 168 | U178: F463 | V178: 1 | W178: 0 | X178: 1 | Y178: 1.652974528e-05
C179: 169 | D179: Demencia en la enfermedad de Pick | E179: F020 | F179: 6 | G179: 3 | H179: 9 | I179: 0.0001487677075 | K179: 169 | L179: Trastornos mentales y del comportamiento debidos al uso de otros estimulantes, incluida la cafeina, intoxicacion aguda | M179: F150 | N179: 5 | O179: 1 | P179: 6 | Q179: 9.917847166e-05 | S179: 169 | T179: Problemas relacionados con la ruptura familiar por separacion o divorcio | U179: Z635 | V179: 1 | W179: 0 | X179: 1 | Y179: 1.652974528e-05
C180: 170 | D180: Trastornos mentales y del comportamiento debidos al uso de cocaina, sindrome de dependencia | E180: F142 | F180: 5 | G180: 4 | H180: 9 | I180: 0.0001487677075 | K180: 170 | L180: Trastorno anancastico de la personalidad | M180: F605 | N180: 4 | O180: 2 | P180: 6 | Q180: 9.917847166e-05 | S180: 170 | T180: Retraso mental, no especificado | U180: F79 | V180: 1 | W180: 0 | X180: 1 | Y180: 1.652974528e-05
C181: 171 | D181: Trastornos mentales y del comportamiento debidos al uso de alcohol | E181: F10 | F181: 7 | G181: 1 | H181: 8 | I181: 0.0001322379622 | K181: 171 | L181: Trastorno especifico de la pronunciacion | M181: F800 | N181: 6 | O181: 0 | P181: 6 | Q181: 9.917847166e-05 | S181: 171 | T181: Trastornos delirantes persistentes | U181: F22 | V181: 1 | W181: 0 | X181: 1 | Y181: 1.652974528e-05
C182: 172 | E182: G20 | F182: 4 | G182: 4 | H182: 8 | I182: 0.0001322379622 | K182: 172 | L182: Problemas relacionados con el apoyo familiar inadecuado | M182: Z632 | N182: 4 | O182: 2 | P182: 6 | Q182: 9.917847166e-05 | S182: 172 | U182: F342 | V182: 0 | W182: 1 | X182: 1 | Y182: 1.652974528e-05
C183: 173 | D183: Trastornos mentales y del comportamiento debidos al uso de alcohol, uso nocivo | E183: F101 | F183: 6 | G183: 2 | H183: 8 | I183: 0.0001322379622 | K183: 173 | L183: Trastronos de la personalidad y del comportamiento debidos a enfermedad, lesion o disfuncion cerebral | M183: F07 | N183: 5 | O183: 1 | P183: 6 | Q183: 9.917847166e-05 | S183: 173 | T183: Demencia vascular | U183: F01 | V183: 1 | W183: 0 | X183: 1 | Y183: 1.652974528e-05
C184: 174 | D184: Trastorno especifico de la pronunciacion | E184: F800 | F184: 8 | G184: 0 | H184: 8 | I184: 0.0001322379622 | K184: 174 | L184: Otros trastornos obsesivo-compulsivos | M184: F428 | N184: 3 | O184: 2 | P184: 5 | Q184: 8.264872638e-05 | S184: 174 | T184: Trastornos mentales y del comportamiento debidos al uso de cannabinoides, trastorno psicotico | U184: F125 | V184: 1 | W184: 0 | X184: 1 | Y184: 1.652974528e-05
C185: 175 | D185: Observacion por sospecha de tuberculosis | E185: Z030 | F185: 6 | G185: 2 | H185: 8 | I185: 0.0001322379622 | K185: 175 | L185: Demencia vascular | M185: F01 | N185: 1 | O185: 4 | P185: 5 | Q185: 8.264872638e-05 | S185: 175 | U185: G40X | V185: 1 | W185: 0 | X185: 1 | Y185: 1.652974528e-05
C186: 176 | D186: Trastorno psicotico agudo y transitorio, no especificado | E186: F239 | F186: 2 | G186: 5 | H186: 7 | I186: 0.0001157082169 | K186: 176 | L186: Demencia en la enfermedad de Alzheimer, de comienzo tardio | M186: F001 | N186: 1 | O186: 4 | P186: 5 | Q186: 8.264872638e-05 | S186: 176 | U186: FF30 | V186: 0 | W186: 1 | X186: 1 | Y186: 1.652974528e-05
C187: 177 | E187: F290 | F187: 3 | G187: 4 | H187: 7 | I187: 0.0001157082169 | K187: 177 | L187: Trastorno psicotico agudo y transitorio, no especificado | M187: F239 | N187: 2 | O187: 3 | P187: 5 | Q187: 8.264872638e-05 | S187: 177 | U187: F45X | V187: 1 | W187: 0 | X187: 1 | Y187: 1.652974528e-05
C188: 178 | D188: Trastornos mentales y del comportamiento leves, asociados con el puerperio, no clasificados en otra parte | E188: F530 | F188: 0 | G188: 7 | H188: 7 | I188: 0.0001157082169 | K188: 178 | L188: Otros trastornos de los habitos y de los impulsos | M188: F638 | N188: 5 | O188: 0 | P188: 5 | Q188: 8.264872638e-05 | S188: 178 | T188: Trastorno de la conducta sociable | U188: F912 | V188: 1 | W188: 0 | X188: 1 | Y188: 1.652974528e-05
C189: 179 | E189: F337 | F189: 1 | G189: 6 | H189: 7 | I189: 0.0001157082169 | K189: 179 | L189: Falta o perdida del deseo sexual | M189: F520 | N189: 3 | O189: 2 | P189: 5 | Q189: 8.264872638e-05 | S189: 179 | T189: Estado de mal epileptico | U189: G41 | V189: 0 | W189: 1 | X189: 1 | Y189: 1.652974528e-05
C190: 180 | D190: Trastornos mentales y del comportamiento debidos al uso de otros estimulantes, incluida la cafeina, intoxicacion aguda | E190: F150 | F190: 5 | G190: 2 | H190: 7 | I190: 0.0001157082169 | K190: 180 | L190: Observacion por sospecha de tuberculosis | M190: Z030 | N190: 3 | O190: 2 | P190: 5 | Q190: 8.264872638e-05 | S190: 180 | T190: Esquizofrenia, no especificada | U190: F209 | V190: 1 | W190: 0 | X190: 1 | Y190: 1.652974528e-05
C191: 181 | D191: Trastorno depresivo recurrente, no especificado | E191: F339 | F191: 3 | G191: 4 | H191: 7 | I191: 0.0001157082169 | K191: 181 | L191: Trastorno hipocondriaco | M191: F452 | N191: 2 | O191: 3 | P191: 5 | Q191: 8.264872638e-05 | S191: 181 | U191: F433 | V191: 1 | W191: 0 | X191: 1 | Y191: 1.652974528e-05
C192: 182 | D192: Trastorno anancastico de la personalidad | E192: F605 | F192: 4 | G192: 3 | H192: 7 | I192: 0.0001157082169 | K192: 182 | L192: Trastornos mentales y del comportamiento debidos al uso de opiaceos, trastorno psicotico | M192: F115 | N192: 3 | O192: 2 | P192: 5 | Q192: 8.264872638e-05 | S192: 182 | T192: Otros episodios depresivos | U192: F328 | V192: 1 | W192: 0 | X192: 1 | Y192: 1.652974528e-05
C193: 183 | D193: Trastornos mentales y del comportamiento debidos al uso de disolventes volatiles, sindrome de dependencia | E193: F182 | F193: 7 | G193: 0 | H193: 7 | I193: 0.0001157082169 | K193: 183 | L193: Trastorno cognoscitivo leve | M193: F067 | N193: 1 | O193: 4 | P193: 5 | Q193: 8.264872638e-05 | S193: 183 | U193: 7332 | V193: 1 | W193: 0 | X193: 1 | Y193: 1.652974528e-05
C194: 184 | D194: Trastorno delirante inducido | E194: F24X | F194: 5 | G194: 2 | H194: 7 | I194: 0.0001157082169 | K194: 184 | L194: Trastornos mentales y del comportamiento debidos al uso de otros estimulantes, incluida la cafeina, estado de abstinencia | M194: F153 | N194: 4 | O194: 1 | P194: 5 | Q194: 8.264872638e-05 | S194: 184 | T194: Parosmia | U194: R431 | V194: 1 | W194: 0 | X194: 1 | Y194: 1.652974528e-05
C195: 185 | D195: Bulimia nerviosa atipica | E195: F503 | F195: 0 | G195: 6 | H195: 6 | I195: 9.917847166e-05 | K195: 185 | L195: Trastornos mentales y del comportamiento debidos al uso de disolventes volatiles, trastorno psicotico | M195: F185 | N195: 5 | O195: 0 | P195: 5 | Q195: 8.264872638e-05 | S195: 185 | T195: Esquizofrenia hebefrenica | U195: F201 | V195: 0 | W195: 1 | X195: 1 | Y195: 1.652974528e-05
C196: 186 | D196: Demencia vascular | E196: F01 | F196: 2 | G196: 4 | H196: 6 | I196: 9.917847166e-05 | K196: 186 | L196: Trastornos no organicos del sueño | M196: F51 | N196: 2 | O196: 2 | P196: 4 | Q196: 6.611898111e-05 | S196: 186 | U196: G20 | V196: 1 | W196: 0 | X196: 1 | Y196: 1.652974528e-05
C197: 187 | D197: Trastorno generalizado del desarrollo no especificado | E197: F849 | F197: 6 | G197: 0 | H197: 6 | I197: 9.917847166e-05 | K197: 187 | M197: F342 | N197: 1 | O197: 3 | P197: 4 | Q197: 6.611898111e-05 | S197: 187 | T197: Trastorno psicotico agudo y transitorio, no especificado | U197: F239 | V197: 0 | W197: 1 | X197: 1 | Y197: 1.652974528e-05
C198: 188 | D198: Personas en contacto con los servicios de salud por otras circunstancias | E198: Z76 | F198: 5 | G198: 1 | H198: 6 | I198: 9.917847166e-05 | K198: 188 | L198: Trastornos mentales y del comportamiento debidos al uso de alcohol, estado de abstinencia con delirio | M198: F104 | N198: 4 | O198: 0 | P198: 4 | Q198: 6.611898111e-05 | S198: 188 | T198: Trastornos mentales y del comportamiento debidos al uso de alcohol, sindrome de dependencia | U198: F102 | V198: 1 | W198: 0 | X198: 1 | Y198: 1.652974528e-05
C199: 189 | D199: Trastornos mentales y del comportamiento debidos al uso de otros estimilantes, incluida la cafeina | E199: F15 | F199: 6 | G199: 0 | H199: 6 | I199: 9.917847166e-05 | K199: 189 | L199: Depresion postesquizofrenica | M199: F204 | N199: 1 | O199: 3 | P199: 4 | Q199: 6.611898111e-05 | S199: 189 | T199: Otras esquizofrenias | U199: F208 | V199: 0 | W199: 1 | X199: 1 | Y199: 1.652974528e-05
C200: 190 | D200: Otros trastornos somatomorfos | E200: F458 | F200: 3 | G200: 3 | H200: 6 | I200: 9.917847166e-05 | K200: 190 | L200: Trastornos mentales y del comportamiento debidos al uso de alcohol, estado de abstinencia | M200: F103 | N200: 4 | O200: 0 | P200: 4 | Q200: 6.611898111e-05 | S200: 190 | T200: Trastornos mentales y del comportamiento debidos al uso de multiples drogas y al uso de otras sustancias psicoactivas, estado de abstinencia | U200: F193 | V200: 0 | W200: 1 | X200: 1 | Y200: 1.652974528e-05
C201: 191 | D201: Falta o perdida del deseo sexual | E201: F520 | F201: 3 | G201: 3 | H201: 6 | I201: 9.917847166e-05 | K201: 191 | L201: Trastorno afectivo bipolar, no especificado | M201: F319 | N201: 1 | O201: 3 | P201: 4 | Q201: 6.611898111e-05 | S201: 191 | U201: Z03.2 | V201: 0 | W201: 1 | X201: 1 | Y201: 1.652974528e-05
C202: 192 | D202: Trastorno depresivo de la conducta | E202: F920 | F202: 5 | G202: 1 | H202: 6 | I202: 9.917847166e-05 | K202: 192 | L202: Trastornos de la ingestion de alimentos | M202: F50 | N202: 0 | O202: 4 | P202: 4 | Q202: 6.611898111e-05 | S202: 192 | T202: Trastorno hipercinetico, no especificado | U202: F909 | V202: 1 | W202: 0 | X202: 1 | Y202: 1.652974528e-05
... 321 more rows

Sheet trabajo (hidden)
D1: CISAMES | N1: CAISAMES | X1: IJSM
H2: CODIGO | I2: MASCULINO | J2: FEMENINO | K2: TOTAL | S2: CODIGO | T2: MASCULINO | U2: FEMENINO | V2: TOTAL | AC2: CODIGO | AD2: MASCULINO | AE2: FEMENINO | AF2: TOTAL
D3: F32 | E3: 61 | F3: 122 | G3: 183 | H3: F900 | I3: 2052 | J3: 512 | K3: 2564 | N3: F33 | O3: 332 | P3: 1450 | Q3: 1782 | S3: F33 | T3: 525 | U3: 1811 | V3: 2336 | X3: F33 | Y3: 525 | Z3: 1811 | AA3: 2336 | AC3: F20 | AD3: 3018 | AE3: 1244 | AF3: 4262
D4: F432 | E4: 119 | F4: 261 | G4: 380 | H4: F411 | I4: 894 | J4: 1462 | K4: 2356 | N4: F90 | O4: 1471 | P4: 256 | Q4: 1727 | S4: F90 | T4: 1471 | U4: 256 | V4: 1727 | X4: F90 | Y4: 1471 | Z4: 256 | AA4: 1727 | AC4: F411 | AD4: 1511 | AE4: 2336 | AF4: 3847
D5: F603 | E5: 0 | F5: 28 | G5: 28 | H5: F432 | I5: 518 | J5: 868 | K5: 1386 | N5: F41 | O5: 597 | P5: 896 | Q5: 1493 | S5: F41 | T5: 692 | U5: 977 | V5: 1669 | X5: F41 | Y5: 692 | Z5: 977 | AA5: 1669 | AC5: F33 | AD5: 654 | AE5: 2434 | AF5: 3088
D6: F411 | E6: 208 | F6: 221 | G6: 429 | H6: F320 | I6: 361 | J6: 912 | K6: 1273 | N6: F32 | O6: 345 | P6: 946 | Q6: 1291 | S6: F32 | T6: 458 | U6: 1172 | V6: 1630 | X6: F32 | Y6: 458 | Z6: 1172 | AA6: 1630 | AC6: F90 | AD6: 2146 | AE6: 428 | AF6: 2574
D7: F29X | E7: 47 | F7: 15 | G7: 62 | H7: F321 | I7: 279 | J7: 674 | K7: 953 | N7: F411 | O7: 485 | P7: 773 | Q7: 1258 | S7: F411 | T7: 617 | U7: 874 | V7: 1491 | X7: F411 | Y7: 617 | Z7: 874 | AA7: 1491 | AC7: F900 | AD7: 2052 | AE7: 512 | AF7: 2564
D8: F320 | E8: 1 | F8: 6 | G8: 7 | H8: F331 | I8: 123 | J8: 756 | K8: 879 | N8: F321 | O8: 177 | P8: 603 | Q8: 780 | S8: F321 | T8: 185 | U8: 626 | V8: 811 | X8: F321 | Y8: 185 | Z8: 626 | AA8: 811 | AC8: F32 | AD8: 645 | AE8: 1766 | AF8: 2411
D9: F412 | E9: 8 | F9: 24 | G9: 32 | H9: F90 | I9: 675 | J9: 172 | K9: 847 | N9: F331 | O9: 98 | P9: 677 | Q9: 775 | S9: F331 | T9: 109 | U9: 707 | V9: 816 | X9: F331 | Y9: 109 | Z9: 707 | AA9: 816 | AC9: F321 | AD9: 464 | AE9: 1300 | AF9: 1764
D10: F331 | E10: 2 | F10: 32 | G10: 34 | H10: F32 | I10: 187 | J10: 594 | K10: 781 | N10: F603 | O10: 83 | P10: 606 | Q10: 689 | S10: F603 | T10: 109 | U10: 673 | V10: 782 | X10: F603 | Y10: 109 | Z10: 673 | AA10: 782 | AC10: F41 | AD10: 735 | AE10: 1007 | AF10: 1742
D11: F431 | E11: 0 | F11: 9 | G11: 9 | H11: F33 | I11: 129 | J11: 623 | K11: 752 | N11: F31 | O11: 158 | P11: 284 | Q11: 442 | S11: F31 | T11: 331 | U11: 496 | V11: 827 | X11: F31 | Y11: 331 | Z11: 496 | AA11: 827 | AC11: F331 | AD11: 232 | AE11: 1463 | AF11: 1695
D12: G40 | E12: 25 | F12: 37 | G12: 62 | H12: F200 | I12: 471 | J12: 271 | K12: 742 | N12: F412 | O12: 109 | P12: 293 | Q12: 402 | S12: F412 | T12: 119 | U12: 318 | V12: 437 | X12: F412 | Y12: 119 | Z12: 318 | AA12: 437 | AC12: F432 | AD12: 643 | AE12: 1046 | AF12: 1689
D13: F33 | E13: 39 | F13: 185 | G13: 224 | H13: R45 | I13: 331 | J13: 328 | K13: 659 | N13: F322 | O13: 96 | P13: 277 | Q13: 373 | S13: F322 | T13: 107 | U13: 290 | V13: 397 | X13: F322 | Y13: 107 | Z13: 290 | AA13: 397 | AC13: F320 | AD13: 361 | AE13: 912 | AF13: 1273
D14: F31 | E14: 25 | F14: 28 | G14: 53 | H14: F20 | I14: 359 | J14: 190 | K14: 549 | N14: F432 | O14: 122 | P14: 174 | Q14: 296 | S14: F432 | T14: 125 | U14: 178 | V14: 303 | X14: F432 | Y14: 125 | Z14: 178 | AA14: 303 | AC14: F31 | AD14: 388 | AE14: 593 | AF14: 981
D15: F20 | E15: 190 | F15: 119 | G15: 309 | H15: F410 | I15: 219 | J15: 276 | K15: 495 | N15: F25 | O15: 46 | P15: 131 | Q15: 177 | S15: F25 | T15: 138 | U15: 288 | V15: 426 | X15: F25 | Y15: 138 | Z15: 288 | AA15: 426 | AC15: F195 | AD15: 773 | AE15: 88 | AF15: 861
D16: F41 | E16: 30 | F16: 18 | G16: 48 | H16: F330 | I16: 80 | J16: 384 | K16: 464 | N16: F63 | O16: 53 | P16: 116 | Q16: 169 | S16: F63 | T16: 129 | U16: 191 | V16: 320 | X16: F63 | Y16: 129 | Z16: 191 | AA16: 320 | AC16: F603 | AD16: 111 | AE16: 724 | AF16: 835
D17: F90 | E17: 67 | F17: 6 | G17: 73 | H17: G40 | I17: 160 | J17: 147 | K17: 307 | N17: F20 | O17: 105 | P17: 62 | Q17: 167 | S17: F20 | T17: 2659 | U17: 1054 | V17: 3713 | X17: F20 | Y17: 2659 | Z17: 1054 | AA17: 3713 | AC17: F200 | AD17: 471 | AE17: 271 | AF17: 742
D18: F321 | E18: 9 | F18: 34 | G18: 43 | H18: F334 | I18: 41 | J18: 252 | K18: 293 | N18: F332 | O18: 30 | P18: 137 | Q18: 167 | S18: F332 | T18: 40 | U18: 148 | V18: 188 | X18: F332 | Y18: 40 | Z18: 148 | AA18: 188 | AC18: R45 | AD18: 331 | AE18: 328 | AF18: 659
D19: F34 | E19: 8 | F19: 41 | G19: 49 | H19: F332 | I19: 38 | J19: 184 | K19: 222 | N19: F42 | O19: 61 | P19: 76 | Q19: 137 | S19: F42 | T19: 67 | U19: 82 | V19: 149 | X19: F42 | Y19: 67 | Z19: 82 | AA19: 149 | AC19: F322 | AD19: 134 | AE19: 390 | AF19: 524
D20: F29 | E20: 2 | F20: 1 | G20: 3 | H20: F431 | I20: 58 | J20: 110 | K20: 168 | N20: F317 | O20: 46 | P20: 71 | Q20: 117 | S20: F317 | T20: 93 | U20: 114 | V20: 207 | X20: F317 | Y20: 93 | Z20: 114 | AA20: 207 | AC20: F29 | AD20: 372 | AE20: 149 | AF20: 521
D21: F463 | E21: 2 | F21: 1 | G21: 3 | H21: F310 | I21: 64 | J21: 99 | K21: 163 | N21: F311 | O21: 23 | P21: 63 | Q21: 86 | S21: F311 | T21: 32 | U21: 74 | V21: 106 | X21: F311 | Y21: 32 | Z21: 74 | AA21: 106 | AC21: F412 | AD21: 138 | AE21: 381 | AF21: 519
D22: F98 | E22: 0 | F22: 3 | G22: 3 | H22: F341 | I22: 48 | J22: 113 | K22: 161 | N22: Z032 | O22: 53 | P22: 29 | Q22: 82 | S22: Z032 | T22: 53 | U22: 29 | V22: 82 | X22: Z032 | Y22: 53 | Z22: 29 | AA22: 82 | AC22: F410 | AD22: 219 | AE22: 276 | AF22: 495
D23: R463 | E23: 8 | F23: 0 | G23: 8 | H23: F31 | I23: 57 | J23: 97 | K23: 154 | N23: F502 | O23: 6 | P23: 75 | Q23: 81 | S23: F502 | T23: 6 | U23: 75 | V23: 81 | X23: F502 | Y23: 6 | Z23: 75 | AA23: 81 | AC23: F330 | AD23: 80 | AE23: 384 | AF23: 464
D24: G90 | E24: 2 | F24: 0 | G24: 2 | H24: F203 | I24: 85 | J24: 63 | K24: 148 | N24: F312 | O24: 24 | P24: 52 | Q24: 76 | S24: F312 | T24: 83 | U24: 106 | V24: 189 | X24: F312 | Y24: 83 | Z24: 106 | AA24: 189 | AC24: F25 | AD24: 140 | AE24: 297 | AF24: 437
D25: F45 | E25: 1 | F25: 0 | G25: 1 | H25: F29X | I25: 92 | J25: 40 | K25: 132 | N25: F70 | O25: 46 | P25: 28 | Q25: 74 | S25: F70 | T25: 88 | U25: 62 | V25: 150 | X25: F70 | Y25: 88 | Z25: 62 | AA25: 150 | AC25: F332 | AD25: 78 | AE25: 332 | AF25: 410
D26: F428 | E26: 2 | F26: 7 | G26: 9 | H26: F322 | I26: 27 | J26: 100 | K26: 127 | N26: F329 | O26: 29 | P26: 41 | Q26: 70 | S26: F329 | T26: 29 | U26: 41 | V26: 70 | X26: F329 | Y26: 29 | Z26: 41 | AA26: 70 | AC26: F68 | AD26: 225 | AE26: 134 | AF26: 359
D27: F21X | E27: 14 | F27: 7 | G27: 21 | H27: F317 | I27: 43 | J27: 84 | K27: 127 | N27: F323 | O27: 20 | P27: 46 | Q27: 66 | S27: F323 | T27: 22 | U27: 51 | V27: 73 | X27: F323 | Y27: 22 | Z27: 51 | AA27: 73 | AC27: F40 | AD27: 205 | AE27: 152 | AF27: 357
D28: F84 | E28: 4 | F28: 2 | G28: 6 | H28: G403 | I28: 44 | J28: 47 | K28: 91 | N28: F34 | O28: 15 | P28: 49 | Q28: 64 | S28: F34 | T28: 75 | U28: 98 | V28: 173 | X28: F34 | Y28: 75 | Z28: 98 | AA28: 173 | AC28: F334 | AD28: 50 | AE28: 292 | AF28: 342
D29: F332 | E29: 3 | F29: 3 | G29: 6 | H29: F412 | I29: 19 | J29: 63 | K29: 82 | N29: F341 | O29: 18 | P29: 45 | Q29: 63 | S29: F341 | T29: 44 | U29: 68 | V29: 112 | X29: F341 | Y29: 44 | Z29: 68 | AA29: 112 | AC29: F317 | AD29: 136 | AE29: 198 | AF29: 334
D30: F10 | E30: 1 | F30: 0 | G30: 1 | H30: F41 | I30: 43 | J30: 30 | K30: 73 | N30: F43 | O30: 27 | P30: 35 | Q30: 62 | S30: F43 | T30: 44 | U30: 45 | V30: 89 | X30: F43 | Y30: 44 | Z30: 45 | AA30: 89 | AC30: F63 | AD30: 129 | AE30: 191 | AF30: 320
D31: F845 | E31: 1 | F31: 5 | G31: 6 | H31: F908 | I31: 59 | J31: 12 | K31: 71 | N31: R450 | O31: 34 | P31: 23 | Q31: 57 | S31: R450 | T31: 34 | U31: 23 | V31: 57 | X31: R450 | Y31: 34 | Z31: 23 | AA31: 57 | AC31: G40 | AD31: 160 | AE31: 147 | AF31: 307
D32: R45 | E32: 5 | F32: 2 | G32: 7 | H32: F841 | I32: 53 | J32: 12 | K32: 65 | N32: F913 | O32: 44 | P32: 12 | Q32: 56 | S32: F913 | T32: 44 | U32: 12 | V32: 56 | X32: F913 | Y32: 44 | Z32: 12 | AA32: 56 | AC32: F341 | AD32: 92 | AE32: 181 | AF32: 273
D33: F94 | E33: 0 | F33: 1 | G33: 1 | H33: F34 | I33: 11 | J33: 47 | K33: 58 | N33: F50 | O33: 4 | P33: 49 | Q33: 53 | S33: F50 | T33: 4 | U33: 49 | V33: 53 | X33: F50 | Y33: 4 | Z33: 49 | AA33: 53 | AC33: F34 | AD33: 86 | AE33: 145 | AF33: 231
D34: D411 | E34: 0 | F34: 1 | G34: 1 | H34: F338 | I34: 7 | J34: 48 | K34: 55 | N34: F99 | O34: 29 | P34: 24 | Q34: 53 | S34: F99 | T34: 29 | U34: 24 | V34: 53 | X34: F99 | Y34: 29 | Z34: 24 | AA34: 53 | AC34: F312 | AD34: 96 | AE34: 111 | AF34: 207
D35: R62 | E35: 1 | F35: 0 | G35: 1 | H35: F603 | I35: 2 | J35: 51 | K35: 53 | N35: Z637 | O35: 23 | P35: 29 | Q35: 52 | S35: Z637 | T35: 23 | U35: 29 | V35: 52 | X35: Z637 | Y35: 23 | Z35: 29 | AA35: 52 | AC35: F431 | AD35: 73 | AE35: 131 | AF35: 204
D36: F421 | E36: 0 | F36: 6 | G36: 6 | H36: F205 | I36: 30 | J36: 19 | K36: 49 | N36: F68 | O36: 24 | P36: 26 | Q36: 50 | S36: F68 | T36: 225 | U36: 134 | V36: 359 | X36: F68 | Y36: 225 | Z36: 134 | AA36: 359 | AC36: F315 | AD36: 83 | AE36: 103 | AF36: 186
D37: F250 | E37: 1 | F37: 0 | G37: 1 | H37: F333 | I37: 8 | J37: 37 | K37: 45 | N37: F422 | O37: 23 | P37: 27 | Q37: 50 | S37: F422 | T37: 23 | U37: 27 | V37: 50 | X37: F422 | Y37: 23 | Z37: 27 | AA37: 50 | AC37: F203 | AD37: 109 | AE37: 73 | AF37: 182
D38: F607 | E38: 0 | F38: 1 | G38: 1 | H38: R45X | I38: 20 | J38: 21 | K38: 41 | N38: F22 | O38: 32 | P38: 16 | Q38: 48 | S38: F22 | T38: 78 | U38: 39 | V38: 117 | X38: F22 | Y38: 78 | Z38: 39 | AA38: 117 | AC38: F70 | AD38: 95 | AE38: 82 | AF38: 177
D39: F25 | E39: 2 | F39: 0 | G39: 2 | H39: F323 | I39: 7 | J39: 33 | K39: 40 | N39: F334 | O39: 8 | P39: 40 | Q39: 48 | S39: F334 | T39: 9 | U39: 40 | V39: 49 | X39: F334 | Y39: 9 | Z39: 40 | AA39: 49 | AC39: F310 | AD39: 64 | AE39: 99 | AF39: 163
D40: F621 | E40: 1 | F40: 0 | G40: 1 | H40: F21X | I40: 18 | J40: 21 | K40: 39 | N40: F333 | O40: 8 | P40: 35 | Q40: 43 | S40: F333 | T40: 14 | U40: 52 | V40: 66 | X40: F333 | Y40: 14 | Z40: 52 | AA40: 66 | AC40: F42 | AD40: 69 | AE40: 85 | AF40: 154
D41: F40 | E41: 1 | F41: 0 | G41: 1 | H41: F29 | I41: 17 | J41: 13 | K41: 30 | N41: F29 | O41: 21 | P41: 21 | Q41: 42 | S41: F29 | T41: 355 | U41: 136 | V41: 491 | X41: F29 | Y41: 355 | Z41: 136 | AA41: 491 | AC41: F29X | AD41: 92 | AE41: 40 | AF41: 132
D42: F913 | E42: 2 | F42: 0 | G42: 2 | H42: F840 | I42: 22 | J42: 6 | K42: 28 | N42: F5 | O42: 10 | P42: 30 | Q42: 40 | S42: F5 | T42: 10 | U42: 30 | V42: 40 | X42: F5 | Y42: 10 | Z42: 30 | AA42: 40 | AC42: F311 | AD42: 39 | AE42: 83 | AF42: 122
D43: F42 | E43: 1 | F43: 3 | G43: 4 | H43: F340 | I43: 8 | J43: 19 | K43: 27 | N43: F40 | O43: 15 | P43: 25 | Q43: 40 | S43: F40 | T43: 201 | U43: 148 | V43: 349 | X43: F40 | Y43: 201 | Z43: 148 | AA43: 349 | AC43: F22 | AD43: 80 | AE43: 39 | AF43: 119
D44: F0 | E44: 0 | F44: 1 | G44: 1 | H44: F70 | I44: 7 | J44: 20 | K44: 27 | N44: F19 | O44: 33 | P44: 6 | Q44: 39 | S44: F19 | T44: 64 | U44: 11 | V44: 75 | X44: F19 | Y44: 64 | Z44: 11 | AA44: 75 | AC44: F323 | AD44: 29 | AE44: 84 | AF44: 113
D45: G603 | E45: 0 | F45: 1 | G45: 1 | H45: F314 | I45: 2 | J45: 25 | K45: 27 | N45: F421 | O45: 10 | P45: 28 | Q45: 38 | S45: F421 | T45: 10 | U45: 28 | V45: 38 | X45: F421 | Y45: 10 | Z45: 28 | AA45: 38 | AC45: F333 | AD45: 22 | AE45: 89 | AF45: 111
D46: F32 | E46: 16 | F46: 24 | G46: 40 | H46: R463 | I46: 18 | J46: 4 | K46: 22 | N46: F431 | O46: 15 | P46: 21 | Q46: 36 | S46: F431 | T46: 15 | U46: 21 | V46: 36 | X46: F431 | Y46: 15 | Z46: 21 | AA46: 36 | AC46: F43 | AD46: 47 | AE46: 54 | AF46: 101
D47: F20 | E47: 54 | F47: 30 | G47: 84 | H47: F313 | I47: 11 | J47: 11 | K47: 22 | N47: F84 | O47: 28 | P47: 7 | Q47: 35 | S47: F84 | T47: 36 | U47: 9 | V47: 45 | X47: F84 | Y47: 36 | Z47: 9 | AA47: 45 | AC47: Z032 | AD47: 62 | AE47: 36 | AF47: 98
D48: G40 | E48: 31 | F48: 23 | G48: 54 | H48: G20X | I48: 16 | J48: 6 | K48: 22 | N48: F401 | O48: 19 | P48: 15 | Q48: 34 | S48: F401 | T48: 19 | U48: 15 | V48: 34 | X48: F401 | Y48: 19 | Z48: 15 | AA48: 34 | AC48: F205 | AD48: 55 | AE48: 38 | AF48: 93
D49: F33 | E49: 4 | F49: 28 | G49: 32 | H49: F99 | I49: 13 | J49: 8 | K49: 21 | N49: F91 | O49: 26 | P49: 7 | Q49: 33 | S49: F91 | T49: 26 | U49: 7 | V49: 33 | X49: F91 | Y49: 26 | Z49: 7 | AA49: 33 | AC49: G403 | AD49: 44 | AE49: 47 | AF49: 91
D50: F29 | E50: 9 | F50: 5 | G50: 14 | H50: F84 | I50: 15 | J50: 4 | K50: 19 | N50: F604 | O50: 2 | P50: 30 | Q50: 32 | S50: F604 | T50: 2 | U50: 30 | V50: 32 | X50: F604 | Y50: 2 | Z50: 30 | AA50: 32 | AC50: F79 | AD50: 42 | AE50: 43 | AF50: 85
D51: F31 | E51: 20 | F51: 15 | G51: 35 | H51: F845 | I51: 11 | J51: 8 | K51: 19 | N51: Z630 | O51: 20 | P51: 11 | Q51: 31 | S51: Z630 | T51: 20 | U51: 11 | V51: 31 | X51: Z630 | Y51: 20 | Z51: 11 | AA51: 31 | AC51: F502 | AD51: 6 | AE51: 75 | AF51: 81
D52: F50 | E52: 0 | F52: 1 | G52: 1 | H52: F202 | I52: 13 | J52: 6 | K52: 19 | N52: G400 | O52: 8 | P52: 23 | Q52: 31 | S52: G400 | T52: 8 | U52: 23 | V52: 31 | X52: G400 | Y52: 8 | Z52: 23 | AA52: 31 | AC52: F19 | AD52: 67 | AE52: 11 | AF52: 78
D53: F72 | E53: 0 | F53: 1 | G53: 1 | H53: F312 | I53: 13 | J53: 5 | K53: 18 | N53: F93 | O53: 20 | P53: 11 | Q53: 31 | S53: F93 | T53: 20 | U53: 11 | V53: 31 | X53: F93 | Y53: 20 | Z53: 11 | AA53: 31 | AC53: F99 | AD53: 42 | AE53: 32 | AF53: 74
D54: G40 | E54: 1 | F54: 0 | G54: 1 | H54: F201 | I54: 9 | J54: 7 | K54: 16 | N54: F6 | O54: 13 | P54: 17 | Q54: 30 | S54: F6 | T54: 13 | U54: 17 | V54: 30 | X54: F6 | Y54: 13 | Z54: 17 | AA54: 30 | AC54: F841 | AD54: 57 | AE54: 14 | AF54: 71
D55: F322 | E55: 12 | F55: 47 | G55: 59 | H55: Z032 | I55: 9 | J55: 7 | K55: 16 | N55: F3 | O55: 8 | P55: 21 | Q55: 29 | S55: F3 | T55: 9 | U55: 24 | V55: 33 | X55: F3 | Y55: 9 | Z55: 24 | AA55: 33 | AC55: F908 | AD55: 59 | AE55: 12 | AF55: 71
D56: F321 | E56: 64 | F56: 171 | G56: 235 | H56: F311 | I56: 7 | J56: 9 | K56: 16 | N56: F195 | O56: 22 | P56: 3 | Q56: 25 | S56: F195 | T56: 768 | U56: 87 | V56: 855 | X56: F195 | Y56: 768 | Z56: 87 | AA56: 855 | AC56: F329 | AD56: 29 | AE56: 41 | AF56: 70
D57: F320 | E57: 64 | F57: 125 | G57: 189 | H57: F430 | I57: 11 | J57: 3 | K57: 14 | N57: F602 | O57: 16 | P57: 7 | Q57: 23 | S57: F602 | T57: 38 | U57: 8 | V57: 46 | X57: F602 | Y57: 38 | Z57: 8 | AA57: 46 | AC57: F913 | AD57: 54 | AE57: 15 | AF57: 69
D58: F200 | E58: 20 | F58: 4 | G58: 24 | H58: F500 | I58: 0 | J58: 14 | K58: 14 | N58: F63 | O58: 13 | P58: 9 | Q58: 22 | S58: F251 | T58: 19 | U58: 31 | V58: 50 | X58: F251 | Y58: 19 | Z58: 31 | AA58: 50 | AC58: F71 | AD58: 46 | AE58: 21 | AF58: 67
D59: F332 | E59: 7 | F59: 27 | G59: 34 | H59: F913 | I59: 10 | J59: 3 | K59: 13 | N59: F251 | O59: 3 | P59: 19 | Q59: 22 | S59: F79 | T59: 34 | U59: 43 | V59: 77 | X59: F79 | Y59: 34 | Z59: 43 | AA59: 77 | AC59: F84 | AD59: 51 | AE59: 13 | AF59: 64
D60: F312 | E60: 8 | F60: 0 | G60: 8 | H60: G404 | I60: 9 | J60: 4 | K60: 13 | N60: F79 | O60: 7 | P60: 14 | Q60: 21 | S60: F0 | T60: 6 | U60: 13 | V60: 19 | X60: F0 | Y60: 6 | Z60: 13 | AA60: 19 | AC60: F62 | AD60: 35 | AE60: 28 | AF60: 63
D61: F410 | E61: 27 | F61: 13 | G61: 40 | H61: G402 | I61: 5 | J61: 8 | K61: 13 | N61: F0 | O61: 6 | P61: 13 | Q61: 19 | S61: F192 | T61: 31 | U61: 5 | V61: 36 | X61: F192 | Y61: 31 | Z61: 5 | AA61: 36 | AC61: F251 | AD61: 19 | AE61: 41 | AF61: 60
D62: F331 | E62: 13 | F62: 111 | G62: 124 | H62: F063 | I62: 1 | J62: 11 | K62: 12 | N62: F192 | O62: 16 | P62: 3 | Q62: 19 | S62: F607 | T62: 1 | U62: 19 | V62: 20 | X62: F607 | Y62: 1 | Z62: 19 | AA62: 20 | AC62: R450 | AD62: 34 | AE62: 24 | AF62: 58
D63: F411 | E63: 77 | F63: 170 | G63: 247 | H63: F43 | I63: 3 | J63: 9 | K63: 12 | N63: F607 | O63: 1 | P63: 18 | Q63: 19 | S63: F45 | T63: 20 | U63: 12 | V63: 32 | X63: F45 | Y63: 20 | Z63: 12 | AA63: 32 | AC63: F50 | AD63: 4 | AE63: 51 | AF63: 55
D64: F317 | E64: 12 | F64: 13 | G64: 25 | H64: F428 | I64: 4 | J64: 7 | K64: 11 | N64: F45 | O64: 9 | P64: 9 | Q64: 18 | S64: F314 | T64: 9 | U64: 13 | V64: 22 | X64: F314 | Y64: 9 | Z64: 13 | AA64: 22 | AC64: F338 | AD64: 7 | AE64: 48 | AF64: 55
D65: F316 | E65: 1 | F65: 0 | G65: 1 | H65: F25 | I65: 2 | J65: 9 | K65: 11 | N65: F314 | O65: 7 | P65: 11 | Q65: 18 | S65: F13 | T65: 12 | U65: 9 | V65: 21 | X65: F13 | Y65: 12 | Z65: 9 | AA65: 21 | AC65: F422 | AD65: 24 | AE65: 30 | AF65: 54
D66: F900 | E66: 110 | F66: 59 | G66: 169 | H66: F251 | I66: 0 | J66: 10 | K66: 10 | N66: F13 | O66: 10 | P66: 8 | Q66: 18 | S66: Z632 | T66: 11 | U66: 7 | V66: 18 | X66: Z632 | Y66: 11 | Z66: 7 | AA66: 18 | AC66: F209 | AD66: 40 | AE66: 14 | AF66: 54
D67: F208 | E67: 2 | F67: 0 | G67: 2 | H67: F421 | I67: 0 | J67: 9 | K67: 9 | N67: Z632 | O67: 11 | P67: 7 | Q67: 18 | S67: F132 | T67: 12 | U67: 5 | V67: 17 | X67: F132 | Y67: 12 | Z67: 5 | AA67: 17 | AC67: F413 | AD67: 30 | AE67: 23 | AF67: 53
D68: F432 | E68: 34 | F68: 49 | G68: 83 | H68: G20 | I68: 5 | J68: 4 | K68: 9 | N68: F132 | O68: 12 | P68: 5 | Q68: 17 | S68: F419 | T68: 8 | U68: 10 | V68: 18 | X68: F419 | Y68: 8 | Z68: 10 | AA68: 18 | AC68: Z637 | AD68: 23 | AE68: 29 | AF68: 52
D69: F341 | E69: 8 | F69: 13 | G69: 21 | H69: F71 | I69: 6 | J69: 3 | K69: 9 | N69: F419 | O69: 7 | P69: 9 | Q69: 16 | S69: Z638 | T69: 2 | U69: 14 | V69: 16 | X69: Z638 | Y69: 2 | Z69: 14 | AA69: 16 | AC69: F314 | AD69: 11 | AE69: 38 | AF69: 49
D70: F840 | E70: 3 | F70: 0 | G70: 3 | H70: F197 | I70: 7 | J70: 2 | K70: 9 | N70: Z638 | O70: 2 | P70: 14 | Q70: 16 | S70: F60 | T70: 17 | U70: 21 | V70: 38 | X70: F60 | Y70: 17 | Z70: 21 | AA70: 38 | AC70: F72 | AD70: 34 | AE70: 15 | AF70: 49
D71: F901 | E71: 1 | F71: 0 | G71: 1 | H71: F40 | I71: 4 | J71: 4 | K71: 8 | N71: F60 | O71: 4 | P71: 11 | Q71: 15 | S71: F152 | T71: 14 | U71: 4 | V71: 18 | X71: F152 | Y71: 14 | Z71: 4 | AA71: 18 | AC71: F421 | AD71: 10 | AE71: 37 | AF71: 47
D72: F900 | E72: 1 | F72: 0 | G72: 1 | H72: F79 | I72: 8 | J72: 0 | K72: 8 | N72: F152 | O72: 12 | P72: 3 | Q72: 15 | S72: F23 | T72: 11 | U72: 17 | V72: 28 | X72: F23 | Y72: 11 | Z72: 17 | AA72: 28 | AC72: F602 | AD72: 38 | AE72: 8 | AF72: 46
D73: F330 | E73: 3 | F73: 39 | G73: 42 | H73: F206 | I73: 6 | J73: 2 | K73: 8 | N73: F23 | O73: 5 | P73: 10 | Q73: 15 | S73: Z634 | T73: 3 | U73: 11 | V73: 14 | X73: Z634 | Y73: 3 | Z73: 11 | AA73: 14 | AC73: F60 | AD73: 17 | AE73: 24 | AF73: 41
D74: F323 | E74: 2 | F74: 19 | G74: 21 | H74: F413 | I74: 7 | J74: 1 | K74: 8 | N74: Z634 | O74: 3 | P74: 11 | Q74: 14 | S74: F62 | T74: 35 | U74: 28 | V74: 63 | X74: F62 | Y74: 35 | Z74: 28 | AA74: 63 | AC74: F313 | AD74: 17 | AE74: 24 | AF74: 41
D75: F340 | E75: 1 | F75: 3 | G75: 4 | H75: F980 | I75: 7 | J75: 1 | K75: 8 | N75: F62 | O75: 8 | P75: 6 | Q75: 14 | S75: F71 | T75: 40 | U75: 18 | V75: 58 | X75: F71 | Y75: 40 | Z75: 18 | AA75: 58 | AC75: R45X | AD75: 20 | AE75: 21 | AF75: 41
D76: F070 | E76: 0 | F76: 1 | G76: 1 | H76: F439 | I76: 4 | J76: 3 | K76: 7 | N76: F71 | O76: 8 | P76: 5 | Q76: 13 | S76: Z620 | T76: 3 | U76: 9 | V76: 12 | X76: Z620 | Y76: 3 | Z76: 9 | AA76: 12 | AC76: F5 | AD76: 10 | AE76: 30 | AF76: 40
D77: F334 | E77: 3 | F77: 7 | G77: 10 | H77: F05 | I77: 2 | J77: 4 | K77: 6 | N77: Z620 | O77: 3 | P77: 9 | Q77: 12 | S77: F413 | T77: 23 | U77: 22 | V77: 45 | X77: F413 | Y77: 23 | Z77: 22 | AA77: 45 | AC77: F21X | AD77: 18 | AE77: 21 | AF77: 39
D78: F90 | E78: 11 | F78: 3 | G78: 14 | H78: F195 | I78: 5 | J78: 1 | K78: 6 | N78: F413 | O78: 7 | P78: 5 | Q78: 12 | S78: Z031 | T78: 3 | U78: 9 | V78: 12 | X78: Z031 | Y78: 3 | Z78: 9 | AA78: 12 | AC78: F401 | AD78: 22 | AE78: 16 | AF78: 38
D79: F209 | E79: 4 | F79: 0 | G79: 4 | H79: F068 | I79: 5 | J79: 1 | K79: 6 | N79: Z031 | O79: 3 | P79: 9 | Q79: 12 | S79: F1 | T79: 3 | U79: 9 | V79: 12 | X79: F1 | Y79: 3 | Z79: 9 | AA79: 12 | AC79: G400 | AD79: 12 | AE79: 25 | AF79: 37
D80: F41 | E80: 3 | F80: 2 | G80: 5 | H80: G400 | I80: 4 | J80: 2 | K80: 6 | N80: F1 | O80: 3 | P80: 9 | Q80: 12 | S80: F39 | T80: 1 | U80: 11 | V80: 12 | X80: F39 | Y80: 1 | Z80: 11 | AA80: 12 | AC80: F192 | AD80: 32 | AE80: 5 | AF80: 37
D81: F310 | E81: 4 | F81: 3 | G81: 7 | H81: F450 | I81: 0 | J81: 6 | K81: 6 | N81: F39 | O81: 1 | P81: 11 | Q81: 12 | S81: F316 | T81: 8 | U81: 9 | V81: 17 | X81: F316 | Y81: 8 | Z81: 9 | AA81: 17 | AC81: F91 | AD81: 28 | AE81: 8 | AF81: 36
D82: F909 | E82: 1 | F82: 0 | G82: 1 | H82: F42 | I82: 2 | J82: 3 | K82: 5 | N82: F316 | O82: 4 | P82: 7 | Q82: 11 | S82: F10 | T82: 10 | U82: 3 | V82: 13 | X82: F10 | Y82: 10 | Z82: 3 | AA82: 13 | AC82: F3 | AD82: 9 | AE82: 24 | AF82: 33
D83: G20 | E83: 2 | F83: 0 | G83: 2 | H83: F209 | I83: 5 | J83: 0 | K83: 5 | N83: F10 | O83: 8 | P83: 3 | Q83: 11 | S83: F402 | T83: 3 | U83: 7 | V83: 10 | X83: F402 | Y83: 3 | Z83: 7 | AA83: 10 | AC83: F45 | AD83: 21 | AE83: 12 | AF83: 33
D84: F201 | E84: 1 | F84: 0 | G84: 1 | H84: F315 | I84: 3 | J84: 2 | K84: 5 | N84: F402 | O84: 3 | P84: 7 | Q84: 10 | S84: F418 | T84: 6 | U84: 4 | V84: 10 | X84: F418 | Y84: 6 | Z84: 4 | AA84: 10 | AC84: F604 | AD84: 2 | AE84: 30 | AF84: 32
D85: F34 | E85: 2 | F85: 3 | G85: 5 | H85: F252 | I85: 3 | J85: 2 | K85: 5 | N85: F418 | O85: 6 | P85: 4 | Q85: 10 | S85: F509 | T85: 1 | U85: 9 | V85: 10 | X85: F509 | Y85: 1 | Z85: 9 | AA85: 10 | AC85: Z630 | AD85: 20 | AE85: 11 | AF85: 31
D86: F315 | E86: 3 | F86: 2 | G86: 5 | H86: F013 | I86: 0 | J86: 5 | K86: 5 | N86: F509 | O86: 1 | P86: 9 | Q86: 10 | S86: F21 | T86: 18 | U86: 6 | V86: 24 | X86: F21 | Y86: 18 | Z86: 6 | AA86: 24 | AC86: F93 | AD86: 20 | AE86: 11 | AF86: 31
D87: F313 | E87: 7 | F87: 5 | G87: 12 | H87: F324 | I87: 1 | J87: 4 | K87: 5 | N87: F21 | O87: 8 | P87: 2 | Q87: 10 | S87: F7 | T87: 5 | U87: 5 | V87: 10 | X87: F7 | Y87: 5 | Z87: 5 | AA87: 10 | AC87: F6 | AD87: 13 | AE87: 17 | AF87: 30
D88: Z032 | E88: 9 | F88: 7 | G88: 16 | H88: F15 | I88: 5 | J88: 0 | K88: 5 | N88: F7 | O88: 5 | P88: 5 | Q88: 10 | S88: R620 | T88: 4 | U88: 5 | V88: 9 | X88: R620 | Y88: 4 | Z88: 5 | AA88: 9 | AC88: F23 | AD88: 11 | AE88: 18 | AF88: 29
D89: F06 | E89: 1 | F89: 0 | G89: 1 | H89: F10 | I89: 3 | J89: 1 | K89: 4 | N89: R620 | O89: 4 | P89: 5 | Q89: 9 | S89: F701 | T89: 7 | U89: 4 | V89: 11 | X89: F701 | Y89: 7 | Z89: 4 | AA89: 11 | AC89: F840 | AD89: 22 | AE89: 6 | AF89: 28
D90: F063 | E90: 1 | F90: 5 | G90: 6 | H90: F316 | I90: 1 | J90: 3 | K90: 4 | N90: F701 | O90: 5 | P90: 4 | Q90: 9 | S90: F102 | T90: 9 | U90: 1 | V90: 10 | X90: F102 | Y90: 9 | Z90: 1 | AA90: 10 | AC90: F340 | AD90: 8 | AE90: 19 | AF90: 27
D91: F333 | E91: 1 | F91: 15 | G91: 16 | H91: F401 | I91: 3 | J91: 1 | K91: 4 | N91: F102 | O91: 8 | P91: 1 | Q91: 9 | S91: F191 | T91: 9 | U91: 1 | V91: 10 | X91: F191 | Y91: 9 | Z91: 1 | AA91: 10 | AC91: F21 | AD91: 19 | AE91: 6 | AF91: 25
D92: F84 | E92: 1 | F92: 0 | G92: 1 | H92: F422 | I92: 1 | J92: 3 | K92: 4 | N92: F191 | O92: 8 | P92: 1 | Q92: 9 | S92: F155 | T92: 12 | U92: 5 | V92: 17 | X92: F155 | Y92: 12 | Z92: 5 | AA92: 17 | AC92: F845 | AD92: 17 | AE92: 8 | AF92: 25
D93: F203 | E93: 1 | F93: 1 | G93: 2 | H93: G401 | I93: 2 | J93: 2 | K93: 4 | N93: F155 | O93: 6 | P93: 3 | Q93: 9 | S93: F67 | T93: 0 | U93: 9 | V93: 9 | X93: F67 | Y93: 0 | Z93: 9 | AA93: 9 | AC93: F201 | AD93: 13 | AE93: 9 | AF93: 22
D94: F41.1 | E94: 0 | F94: 1 | G94: 1 | H94: Z638 | I94: 1 | J94: 3 | K94: 4 | N94: F67 | O94: 0 | P94: 9 | Q94: 9 | S94: F2 | T94: 8 | U94: 5 | V94: 13 | X94: F2 | Y94: 8 | Z94: 5 | AA94: 13 | AC94: R463 | AD94: 18 | AE94: 4 | AF94: 22
D95: F431 | E95: 1 | F95: 5 | G95: 6 | H95: F463 | I95: 2 | J95: 1 | K95: 3 | N95: F2 | O95: 4 | P95: 5 | Q95: 9 | S95: F72 | T95: 33 | U95: 14 | V95: 47 | X95: F72 | Y95: 33 | Z95: 14 | AA95: 47 | AC95: G20X | AD95: 16 | AE95: 6 | AF95: 22
D96: F43 | E96: 2 | F96: 1 | G96: 3 | H96: F98 | I96: 0 | J96: 3 | K96: 3 | N96: F72 | O96: 6 | P96: 2 | Q96: 8 | S96: F89 | T96: 4 | U96: 4 | V96: 8 | X96: F89 | Y96: 4 | Z96: 4 | AA96: 8 | AC96: F607 | AD96: 1 | AE96: 20 | AF96: 21
D97: FG20 | E97: 1 | F97: 0 | G97: 1 | H97: F250 | I97: 1 | J97: 2 | K97: 3 | N97: F89 | O97: 4 | P97: 4 | Q97: 8 | S97: F313 | T97: 6 | U97: 13 | V97: 19 | X97: F313 | Y97: 6 | Z97: 13 | AA97: 19 | AC97: F13 | AD97: 12 | AE97: 9 | AF97: 21
D98: F430 | E98: 6 | F98: 0 | G98: 6 | H98: F19 | I98: 3 | J98: 0 | K98: 3 | N98: F313 | O98: 1 | P98: 6 | Q98: 7 | S98: F252 | T98: 3 | U98: 8 | V98: 11 | X98: F252 | Y98: 3 | Z98: 8 | AA98: 11 | AC98: F316 | AD98: 9 | AE98: 12 | AF98: 21
D99: F29X | E99: 8 | F99: 5 | G99: 13 | H99: F290 | I99: 2 | J99: 1 | K99: 3 | N99: F252 | O99: 3 | P99: 4 | Q99: 7 | S99: F439 | T99: 1 | U99: 6 | V99: 7 | X99: F439 | Y99: 1 | Z99: 6 | AA99: 7 | AC99: F202 | AD99: 14 | AE99: 7 | AF99: 21
D100: G20X | E100: 3 | F100: 0 | G100: 3 | H100: F799 | I100: 3 | J100: 0 | K100: 3 | N100: F439 | O100: 1 | P100: 6 | Q100: 7 | S100: F638 | T100: 7 | U100: 1 | V100: 8 | X100: F638 | Y100: 7 | Z100: 1 | AA100: 8 | AC100: F0 | AD100: 6 | AE100: 14 | AF100: 20
D101: F062 | E101: 0 | F101: 1 | G101: 1 | H101: Z63 | I101: 3 | J101: 0 | K101: 3 | N101: F638 | O101: 6 | P101: 1 | Q101: 7 | S101: F51 | T101: 4 | U101: 3 | V101: 7 | X101: F51 | Y101: 4 | Z101: 3 | AA101: 7 | AC101: Z638 | AD101: 3 | AE101: 17 | AF101: 20
D102: F603 | E102: 0 | F102: 3 | G102: 3 | H102: F60 | I102: 0 | J102: 3 | K102: 3 | N102: F51 | O102: 4 | P102: 3 | Q102: 7 | S102: F80 | T102: 4 | U102: 2 | V102: 6 | X102: F80 | Y102: 4 | Z102: 2 | AA102: 6 | AC102: F197 | AD102: 16 | AE102: 4 | AF102: 20
D103: F25 | E103: 0 | F103: 1 | G103: 1 | H103: F80 | I103: 2 | J103: 1 | K103: 3 | N103: F80 | O103: 4 | P103: 2 | Q103: 6 | S103: F12 | T103: 7 | U103: 1 | V103: 8 | X103: F12 | Y103: 7 | Z103: 1 | AA103: 8 | AC103: F419 | AD103: 9 | AE103: 10 | AF103: 19
D104: R45 | E104: 6 | F104: 1 | G104: 7 | H104: F3311 | I104: 1 | J104: 2 | K104: 3 | N104: F12 | O104: 5 | P104: 1 | Q104: 6 | S104: R690 | T104: 4 | U104: 2 | V104: 6 | X104: R690 | Y104: 4 | Z104: 2 | AA104: 6 | AC104: F152 | AD104: 15 | AE104: 4 | AF104: 19
D105: F19 | E105: 1 | F105: 0 | G105: 1 | H105: F28X | I105: 0 | J105: 3 | K105: 3 | N105: R690 | O105: 4 | P105: 2 | Q105: 6 | S105: F845 | T105: 6 | U105: 0 | V105: 6 | X105: F845 | Y105: 6 | Z105: 0 | AA105: 6 | AC105: Z632 | AD105: 11 | AE105: 7 | AF105: 18
D106: F40 | E106: 1 | F106: 1 | G106: 2 | H106: F800 | I106: 0 | J106: 3 | K106: 3 | N106: F845 | O106: 6 | P106: 0 | Q106: 6 | S106: F81 | T106: 3 | U106: 3 | V106: 6 | X106: F81 | Y106: 3 | Z106: 3 | AA106: 6 | AC106: F132 | AD106: 12 | AE106: 5 | AF106: 17
D107: F22 | E107: 1 | F107: 0 | G107: 1 | H107: F981 | I107: 2 | J107: 1 | K107: 3 | N107: F81 | O107: 3 | P107: 3 | Q107: 6 | S107: F122 | T107: 6 | U107: 0 | V107: 6 | X107: F122 | Y107: 6 | Z107: 0 | AA107: 6 | AC107: F10 | AD107: 13 | AE107: 4 | AF107: 17
D108: F311 | E108: 0 | F108: 1 | G108: 1 | H108: F91 | I108: 2 | J108: 1 | K108: 3 | N108: F122 | O108: 6 | P108: 0 | Q108: 6 | S108: F28 | T108: 1 | U108: 5 | V108: 6 | X108: F28 | Y108: 1 | Z108: 5 | AA108: 6 | AC108: F155 | AD108: 12 | AE108: 5 | AF108: 17
D109: F432 | E109: 170 | F109: 232 | G109: 402 | H109: G90 | I109: 2 | J109: 0 | K109: 2 | N109: F28 | O109: 1 | P109: 5 | Q109: 6 | S109: FY070 | T109: 1 | U109: 4 | V109: 5 | X109: FY070 | Y109: 1 | Z109: 4 | AA109: 5 | AC109: F252 | AD109: 6 | AE109: 10 | AF109: 16
D110: F330 | E110: 43 | F110: 127 | G110: 170 | H110: F50 | I110: 0 | J110: 2 | K110: 2 | N110: FY070 | O110: 1 | P110: 4 | Q110: 5 | S110: F451 | T110: 3 | U110: 2 | V110: 5 | X110: F451 | Y110: 3 | Z110: 2 | AA110: 5 | AC110: F24 | AD110: 14 | AE110: 2 | AF110: 16
D111: R45 | E111: 5 | F111: 7 | G111: 12 | H111: F72 | I111: 1 | J111: 1 | K111: 2 | N111: F451 | O111: 3 | P111: 2 | Q111: 5 | S111: F429 | T111: 1 | U111: 4 | V111: 5 | X111: F429 | Y111: 1 | Z111: 4 | AA111: 5 | AC111: F15 | AD111: 13 | AE111: 2 | AF111: 15
D112: F310 | E112: 53 | F112: 70 | G112: 123 | H112: F208 | I112: 2 | J112: 0 | K112: 2 | N112: F429 | O112: 1 | P112: 4 | Q112: 5 | S112: R699 | T112: 3 | U112: 2 | V112: 5 | X112: R699 | Y112: 3 | Z112: 2 | AA112: 5 | AC112: Z634 | AD112: 3 | AE112: 11 | AF112: 14
D113: F320 | E113: 41 | F113: 135 | G113: 176 | H113: F062 | I113: 1 | J113: 1 | K113: 2 | N113: R699 | O113: 3 | P113: 2 | Q113: 5 | S113: F98 | T113: 2 | U113: 3 | V113: 5 | X113: F98 | Y113: 2 | Z113: 3 | AA113: 5 | AC113: F439 | AD113: 5 | AE113: 9 | AF113: 14
D114: F900 | E114: 266 | F114: 66 | G114: 332 | H114: F22 | I114: 2 | J114: 0 | K114: 2 | N114: F98 | O114: 2 | P114: 3 | Q114: 5 | S114: F709 | T114: 3 | U114: 8 | V114: 11 | X114: F709 | Y114: 3 | Z114: 8 | AA114: 11 | AC114: F73 | AD114: 11 | AE114: 3 | AF114: 14
D115: F411 | E115: 29 | F115: 85 | G115: 114 | H115: F00 | I115: 1 | J115: 1 | K115: 2 | N115: F709 | O115: 1 | P115: 4 | Q115: 5 | S115: F605 | T115: 3 | U115: 3 | V115: 6 | X115: F605 | Y115: 3 | Z115: 3 | AA115: 6 | AC115: F430 | AD115: 11 | AE115: 3 | AF115: 14
D116: F21X | E116: 4 | F116: 13 | G116: 17 | H116: F402 | I116: 0 | J116: 2 | K116: 2 | N116: F605 | O116: 2 | P116: 3 | Q116: 5 | S116: F61 | T116: 2 | U116: 4 | V116: 6 | X116: F61 | Y116: 2 | Z116: 4 | AA116: 6 | AC116: F500 | AD116: 0 | AE116: 14 | AF116: 14
D117: F200 | E117: 216 | F117: 110 | G117: 326 | H117: F423 | I117: 1 | J117: 1 | K117: 2 | N117: F61 | O117: 2 | P117: 3 | Q117: 5 | S117: F203 | T117: 24 | U117: 10 | V117: 34 | X117: F203 | Y117: 24 | Z117: 10 | AA117: 34 | AC117: F2 | AD117: 8 | AE117: 5 | AF117: 13
D118: F341 | E118: 1 | F118: 0 | G118: 1 | H118: F420 | I118: 2 | J118: 0 | K118: 2 | N118: F203 | O118: 4 | P118: 1 | Q118: 5 | S118: F125 | T118: 5 | U118: 0 | V118: 5 | X118: F125 | Y118: 5 | Z118: 0 | AA118: 5 | AC118: F428 | AD118: 5 | AE118: 8 | AF118: 13
D119: F331 | E119: 0 | F119: 12 | G119: 12 | H119: F198 | I119: 2 | J119: 0 | K119: 2 | N119: F125 | O119: 4 | P119: 0 | Q119: 4 | S119: F198 | T119: 2 | U119: 2 | V119: 4 | X119: F198 | Y119: 2 | Z119: 2 | AA119: 4 | AC119: G404 | AD119: 9 | AE119: 4 | AF119: 13
D120: G40 | E120: 12 | F120: 16 | G120: 28 | H120: G40X | I120: 1 | J120: 1 | K120: 2 | N120: F198 | O120: 2 | P120: 2 | Q120: 4 | S120: F711 | T120: 4 | U120: 0 | V120: 4 | X120: F711 | Y120: 4 | Z120: 0 | AA120: 4 | AC120: G402 | AD120: 5 | AE120: 8 | AF120: 13
D121: F410 | E121: 42 | F121: 75 | G121: 117 | H121: G409 | I121: 0 | J121: 2 | K121: 2 | N121: F711 | O121: 4 | P121: 0 | Q121: 4 | S121: F918 | T121: 4 | U121: 0 | V121: 4 | X121: F918 | Y121: 4 | Z121: 0 | AA121: 4 | AC121: Z620 | AD121: 3 | AE121: 9 | AF121: 12
D122: F25 | E122: 0 | F122: 1 | G122: 1 | H122: G408 | I122: 2 | J122: 0 | K122: 2 | N122: F918 | O122: 4 | P122: 0 | Q122: 4 | S122: F53 | T122: 0 | U122: 4 | V122: 4 | X122: F53 | Y122: 0 | Z122: 4 | AA122: 4 | AC122: Z031 | AD122: 3 | AE122: 9 | AF122: 12
D123: F321 | E123: 5 | F123: 12 | G123: 17 | H123: F418 | I123: 2 | J123: 0 | K123: 2 | N123: F53 | O123: 0 | P123: 4 | Q123: 4 | S123: F633 | T123: 0 | U123: 4 | V123: 4 | X123: F633 | Y123: 0 | Z123: 4 | AA123: 4 | AC123: F1 | AD123: 3 | AE123: 9 | AF123: 12
D124: F841 | E124: 13 | F124: 0 | G124: 13 | H124: F220 | I124: 2 | J124: 0 | K124: 2 | N124: F633 | O124: 0 | P124: 4 | Q124: 4 | S124: F44 | T124: 0 | U124: 4 | V124: 4 | X124: F44 | Y124: 0 | Z124: 4 | AA124: 4 | AC124: F39 | AD124: 1 | AE124: 11 | AF124: 12
D125: F332 | E125: 3 | F125: 6 | G125: 9 | H125: F105 | I125: 2 | J125: 0 | K125: 2 | N125: F44 | O125: 0 | P125: 4 | Q125: 4 | S125: F15 | T125: 8 | U125: 2 | V125: 10 | X125: F15 | Y125: 8 | Z125: 2 | AA125: 10 | AC125: F402 | AD125: 3 | AE125: 9 | AF125: 12
D126: F340 | E126: 6 | F126: 12 | G126: 18 | H126: F503 | I126: 0 | J126: 2 | K126: 2 | N126: F15 | O126: 4 | P126: 0 | Q126: 4 | S126: F4 | T126: 2 | U126: 3 | V126: 5 | X126: F4 | Y126: 2 | Z126: 3 | AA126: 5 | AC126: F418 | AD126: 8 | AE126: 4 | AF126: 12
D127: F431 | E127: 9 | F127: 12 | G127: 21 | H127: F103 | I127: 2 | J127: 0 | K127: 2 | N127: F4 | O127: 1 | P127: 3 | Q127: 4 | S127: F501 | T127: 2 | U127: 2 | V127: 4 | X127: F501 | Y127: 2 | Z127: 2 | AA127: 4 | AC127: F709 | AD127: 4 | AE127: 8 | AF127: 12
D128: F500 | E128: 0 | F128: 7 | G128: 7 | H128: F530 | I128: 0 | J128: 2 | K128: 2 | N128: F501 | O128: 2 | P128: 2 | Q128: 4 | S128: F92 | T128: 2 | U128: 2 | V128: 4 | X128: F92 | Y128: 2 | Z128: 2 | AA128: 4 | AC128: F063 | AD128: 1 | AE128: 11 | AF128: 12
D129: F439 | E129: 0 | F129: 3 | G129: 3 | H129: F45 | I129: 1 | J129: 0 | K129: 1 | N129: F92 | O129: 2 | P129: 2 | Q129: 4 | S129: F601 | T129: 3 | U129: 2 | V129: 5 | X129: F601 | Y129: 3 | Z129: 2 | AA129: 5 | AC129: F701 | AD129: 7 | AE129: 4 | AF129: 11
D130: F50 | E130: 0 | F130: 1 | G130: 1 | H130: F94 | I130: 0 | J130: 1 | K130: 1 | N130: F601 | O130: 3 | P130: 1 | Q130: 4 | S130: Z030 | T130: 2 | U130: 1 | V130: 3 | X130: Z030 | Y130: 2 | Z130: 1 | AA130: 3 | AC130: F509 | AD130: 1 | AE130: 9 | AF130: 10
D131: F840 | E131: 4 | F131: 1 | G131: 5 | H131: D411 | I131: 0 | J131: 1 | K131: 1 | N131: Z030 | O131: 2 | P131: 1 | Q131: 3 | S131: F108 | T131: 2 | U131: 1 | V131: 3 | X131: F108 | Y131: 2 | Z131: 1 | AA131: 3 | AC131: F7 | AD131: 5 | AE131: 5 | AF131: 10
D132: F845 | E132: 3 | F132: 0 | G132: 3 | H132: R62 | I132: 1 | J132: 0 | K132: 1 | N132: F108 | O132: 2 | P132: 1 | Q132: 3 | S132: F441 | T132: 2 | U132: 1 | V132: 3 | X132: F441 | Y132: 2 | Z132: 1 | AA132: 3 | AC132: F102 | AD132: 9 | AE132: 1 | AF132: 10
D133: F322 | E133: 1 | F133: 8 | G133: 9 | H133: F607 | I133: 0 | J133: 1 | K133: 1 | N133: F441 | O133: 2 | P133: 1 | Q133: 3 | S133: F69 | T133: 3 | U133: 1 | V133: 4 | X133: F69 | Y133: 3 | Z133: 1 | AA133: 4 | AC133: F191 | AD133: 9 | AE133: 1 | AF133: 10
D134: F05 | E134: 2 | F134: 4 | G134: 6 | H134: F621 | I134: 1 | J134: 0 | K134: 1 | N134: F69 | O134: 2 | P134: 1 | Q134: 3 | S134: F504 | T134: 0 | U134: 3 | V134: 3 | X134: F504 | Y134: 0 | Z134: 3 | AA134: 3 | AC134: F206 | AD134: 7 | AE134: 3 | AF134: 10
D135: R463 | E135: 0 | F135: 1 | G135: 1 | H135: F0 | I135: 0 | J135: 1 | K135: 1 | N135: F504 | O135: 0 | P135: 3 | Q135: 3 | S135: F182 | T135: 3 | U135: 0 | V135: 3 | X135: F182 | Y135: 3 | Z135: 0 | AA135: 3 | AC135: R620 | AD135: 4 | AE135: 5 | AF135: 9
D136: F412 | E136: 0 | F136: 1 | G136: 1 | H136: G603 | I136: 0 | J136: 1 | K136: 1 | N136: F182 | O136: 3 | P136: 0 | Q136: 3 | S136: F639 | T136: 0 | U136: 3 | V136: 3 | X136: F639 | Y136: 0 | Z136: 3 | AA136: 3 | AC136: F67 | AD136: 0 | AE136: 9 | AF136: 9
D137: F250 | E137: 0 | F137: 1 | G137: 1 | H137: G40 | I137: 1 | J137: 0 | K137: 1 | N137: F639 | O137: 0 | P137: 3 | Q137: 3 | S137: F9 | T137: 4 | U137: 1 | V137: 5 | X137: F9 | Y137: 4 | Z137: 1 | AA137: 5 | AC137: F80 | AD137: 6 | AE137: 3 | AF137: 9
D138: F481 | E138: 1 | F138: 0 | G138: 1 | H138: F901 | I138: 1 | J138: 0 | K138: 1 | N138: F9 | O138: 2 | P138: 1 | Q138: 3 | S138: F138 | T138: 2 | U138: 1 | V138: 3 | X138: F138 | Y138: 2 | Z138: 1 | AA138: 3 | AC138: G20 | AD138: 5 | AE138: 4 | AF138: 9
D139: F323 | E139: 0 | F139: 1 | G139: 1 | H139: F900 | I139: 1 | J139: 0 | K139: 1 | N139: F138 | O139: 2 | P139: 1 | Q139: 3 | S139: F142 | T139: 3 | U139: 0 | V139: 3 | X139: F142 | Y139: 3 | Z139: 0 | AA139: 3 | AC139: F89 | AD139: 4 | AE139: 4 | AF139: 8
D140: F00 | E140: 1 | F140: 0 | G140: 1 | H140: F070 | I140: 0 | J140: 1 | K140: 1 | N140: F142 | O140: 3 | P140: 0 | Q140: 3 | S140: F608 | T140: 3 | U140: 0 | V140: 3 | X140: F608 | Y140: 3 | Z140: 0 | AA140: 3 | AC140: F638 | AD140: 7 | AE140: 1 | AF140: 8
D141: F29X | E141: 0 | F141: 1 | G141: 1 | H141: F909 | I141: 1 | J141: 0 | K141: 1 | N141: F608 | O141: 3 | P141: 0 | Q141: 3 | S141: F632 | T141: 2 | U141: 1 | V141: 3 | X141: F632 | Y141: 2 | Z141: 1 | AA141: 3 | AC141: F12 | AD141: 7 | AE141: 1 | AF141: 8
D142: F050 | E142: 1 | F142: 0 | G142: 1 | H142: F06 | I142: 1 | J142: 0 | K142: 1 | N142: F632 | O142: 2 | P142: 1 | Q142: 3 | S142: F101 | T142: 3 | U142: 0 | V142: 3 | X142: F101 | Y142: 3 | Z142: 0 | AA142: 3 | AC142: F98 | AD142: 2 | AE142: 6 | AF142: 8
D143: F428 | E143: 2 | F143: 0 | G143: 2 | H143: F41.1 | I143: 0 | J143: 1 | K143: 1 | N143: F101 | O143: 3 | P143: 0 | Q143: 3 | S143: Z635 | T143: 3 | U143: 0 | V143: 3 | X143: Z635 | Y143: 3 | Z143: 0 | AA143: 3 | AC143: F980 | AD143: 7 | AE143: 1 | AF143: 8
D144: F290 | E144: 0 | F144: 1 | G144: 1 | H144: FG20 | I144: 1 | J144: 0 | K144: 1 | N144: Z635 | O144: 3 | P144: 0 | Q144: 3 | S144: F652 | T144: 2 | U144: 0 | V144: 2 | X144: F652 | Y144: 2 | Z144: 0 | AA144: 2 | AC144: F51 | AD144: 4 | AE144: 3 | AF144: 7
D145: (en blanco) | E145: 0 | F145: 0 | G145: 0 | H145: F481 | I145: 1 | J145: 0 | K145: 1 | N145: F652 | O145: 2 | P145: 0 | Q145: 2 | S145: F197 | T145: 9 | U145: 2 | V145: 11 | X145: F197 | Y145: 9 | Z145: 2 | AA145: 11 | AC145: F81 | AD145: 4 | AE145: 3 | AF145: 7
D146: F430 | E146: 0 | F146: 1 | G146: 1 | H146: F050 | I146: 1 | J146: 0 | K146: 1 | N146: F197 | O146: 2 | P146: 0 | Q146: 2 | S146: F73 | T146: 11 | U146: 3 | V146: 14 | X146: F73 | Y146: 11 | Z146: 3 | AA146: 14 | AC146: F122 | AD146: 7 | AE146: 0 | AF146: 7
D147: F20 | E147: 0 | F147: 1 | G147: 1 | H147: R56 | I147: 0 | J147: 1 | K147: 1 | N147: F73 | O147: 1 | P147: 1 | Q147: 2 | S147: F719 | T147: 0 | U147: 2 | V147: 2 | X147: F719 | Y147: 0 | Z147: 2 | AA147: 2 | AC147: R690 | AD147: 4 | AE147: 2 | AF147: 6
D148: R56 | E148: 0 | F148: 1 | G148: 1 | H148: F849 | I148: 1 | J148: 0 | K148: 1 | N148: F719 | O148: 0 | P148: 2 | Q148: 2 | S148: F14 | T148: 3 | U148: 0 | V148: 3 | X148: F14 | Y148: 3 | Z148: 0 | AA148: 3 | AC148: F28 | AD148: 1 | AE148: 5 | AF148: 6
D149: F195 | E149: 0 | F149: 1 | G149: 1 | H149: F03X | I149: 1 | J149: 0 | K149: 1 | N149: F14 | O149: 2 | P149: 0 | Q149: 2 | S149: F813 | T149: 1 | U149: 1 | V149: 2 | X149: F813 | Y149: 1 | Z149: 1 | AA149: 2 | AC149: F451 | AD149: 3 | AE149: 3 | AF149: 6
D150: F32 | E150: 1 | F150: 1 | G150: 2 | H150: F510 | I150: 1 | J150: 0 | K150: 1 | N150: F13 | O150: 2 | P150: 0 | Q150: 2 | S150: F109 | T150: 2 | U150: 0 | V150: 2 | X150: F109 | Y150: 2 | Z150: 0 | AA150: 2 | AC150: F605 | AD150: 3 | AE150: 3 | AF150: 6
D151: F432 | E151: 6 | F151: 9 | G151: 15 | H151: F731 | I151: 1 | J151: 0 | K151: 1 | N151: F813 | O151: 1 | P151: 1 | Q151: 2 | S151: F849 | T151: 1 | U151: 1 | V151: 2 | X151: F849 | Y151: 1 | Z151: 1 | AA151: 2 | AC151: F61 | AD151: 2 | AE151: 4 | AF151: 6
D152: F411 | E152: 40 | F152: 126 | G152: 166 | H152: F152 | I152: 1 | J152: 0 | K152: 1 | N152: F109 | O152: 2 | P152: 0 | Q152: 2 | S152: F94 | T152: 0 | U152: 2 | V152: 2 | X152: F94 | Y152: 0 | Z152: 2 | AA152: 2 | AC152: F198 | AD152: 4 | AE152: 2 | AF152: 6
D153: F330 | E153: 6 | F153: 25 | G153: 31 | H153: F400 | I153: 1 | J153: 0 | K153: 1 | N153: F849 | O153: 1 | P153: 1 | Q153: 2 | S153: F452 | T153: 1 | U153: 1 | V153: 2 | X153: F452 | Y153: 1 | Z153: 1 | AA153: 2 | AC153: F30 | AD153: 3 | AE153: 3 | AF153: 6
D154: F900 | E154: 185 | F154: 45 | G154: 230 | H154: F41.0 | I154: 1 | J154: 0 | K154: 1 | N154: F94 | O154: 0 | P154: 2 | Q154: 2 | S154: F193 | T154: 4 | U154: 1 | V154: 5 | X154: F193 | Y154: 4 | Z154: 1 | AA154: 5 | AC154: F05 | AD154: 2 | AE154: 4 | AF154: 6
D155: F200 | E155: 22 | F155: 2 | G155: 24 | H155: F43.2 | I155: 0 | J155: 1 | K155: 1 | N155: F452 | O155: 1 | P155: 1 | Q155: 2 | S155: F428 | T155: 1 | U155: 1 | V155: 2 | X155: F428 | Y155: 1 | Z155: 1 | AA155: 2 | AC155: F068 | AD155: 5 | AE155: 1 | AF155: 6
D156: F320 | E156: 93 | F156: 114 | G156: 207 | H156: F81 | I156: 1 | J156: 0 | K156: 1 | N156: F193 | O156: 1 | P156: 1 | Q156: 2 | S156: F318 | T156: 1 | U156: 1 | V156: 2 | X156: F318 | Y156: 1 | Z156: 1 | AA156: 2 | AC156: F450 | AD156: 0 | AE156: 6 | AF156: 6
D157: F412 | E157: 2 | F157: 4 | G157: 6 | H157: F028 | I157: 0 | J157: 1 | K157: 1 | N157: F428 | O157: 1 | P157: 1 | Q157: 2 | S157: F339 | T157: 0 | U157: 2 | V157: 2 | X157: F339 | Y157: 0 | Z157: 2 | AA157: 2 | AC157: FY070 | AD157: 1 | AE157: 4 | AF157: 5
D158: F331 | E158: 15 | F158: 132 | G158: 147 | H158: F709 | I158: 1 | J158: 0 | K158: 1 | N158: F318 | O158: 1 | P158: 1 | Q158: 2 | S158: F131 | T158: 0 | U158: 2 | V158: 2 | X158: F131 | Y158: 0 | Z158: 2 | AA158: 2 | AC158: F429 | AD158: 1 | AE158: 4 | AF158: 5
D159: F410 | E159: 20 | F159: 22 | G159: 42 | H159: F609 | I159: 1 | J159: 0 | K159: 1 | N159: F339 | O159: 0 | P159: 2 | Q159: 2 | S159: F01 | T159: 0 | U159: 2 | V159: 2 | X159: F01 | Y159: 0 | Z159: 2 | AA159: 2 | AC159: R699 | AD159: 3 | AE159: 2 | AF159: 5
D160: F431 | E160: 1 | F160: 1 | G160: 2 | H160: F022 | I160: 0 | J160: 1 | K160: 1 | N160: F131 | O160: 0 | P160: 2 | Q160: 2 | S160: F841 | T160: 4 | U160: 2 | V160: 6 | X160: F841 | Y160: 4 | Z160: 2 | AA160: 6 | AC160: F125 | AD160: 5 | AE160: 0 | AF160: 5
D161: F33 | E161: 1 | F161: 8 | G161: 9 | H161: R450 | I161: 0 | J161: 1 | K161: 1 | N161: F01 | O161: 0 | P161: 2 | Q161: 2 | S161: Z600 | T161: 0 | U161: 2 | V161: 2 | X161: Z600 | Y161: 0 | Z161: 2 | AA161: 2 | AC161: F44 | AD161: 0 | AE161: 5 | AF161: 5
D162: F20 | E162: 56 | F162: 16 | G162: 72 | H162: F82X | I162: 1 | J162: 0 | K162: 1 | N162: F841 | O162: 1 | P162: 1 | Q162: 2 | S162: F438 | T162: 0 | U162: 2 | V162: 2 | X162: F438 | Y162: 0 | Z162: 2 | AA162: 2 | AC162: F4 | AD162: 2 | AE162: 3 | AF162: 5
D163: F41 | E163: 0 | F163: 1 | G163: 1 | H163: F912 | I163: 1 | J163: 0 | K163: 1 | N163: Z600 | O163: 0 | P163: 2 | Q163: 2 | S163: F459 | T163: 1 | U163: 1 | V163: 2 | X163: F459 | Y163: 1 | Z163: 1 | AA163: 2 | AC163: F92 | AD163: 3 | AE163: 2 | AF163: 5
D164: F90 | E164: 3 | F164: 0 | G164: 3 | H164: F020 | I164: 1 | J164: 0 | K164: 1 | N164: F438 | O164: 0 | P164: 2 | Q164: 2 | S164: F145 | T164: 1 | U164: 0 | V164: 1 | X164: F145 | Y164: 1 | Z164: 0 | AA164: 1 | AC164: F601 | AD164: 3 | AE164: 2 | AF164: 5
D165: F321 | E165: 88 | F165: 139 | G165: 227 | H165: G24 | I165: 1 | J165: 0 | K165: 1 | N165: F459 | O165: 1 | P165: 1 | Q165: 2 | S165: F6'03 | T165: 0 | U165: 1 | V165: 1 | X165: F6'03 | Y165: 0 | Z165: 1 | AA165: 1 | AC165: F9 | AD165: 4 | AE165: 1 | AF165: 5
D166: F40 | E166: 1 | F166: 1 | G166: 2 | H166: F182 | I166: 1 | J166: 0 | K166: 1 | N166: F145 | O166: 1 | P166: 0 | Q166: 1 | S166: Z631 | T166: 0 | U166: 1 | V166: 1 | X166: Z631 | Y166: 0 | Z166: 1 | AA166: 1 | AC166: F193 | AD166: 4 | AE166: 1 | AF166: 5
D167: F332 | E167: 0 | F167: 7 | G167: 7 | H167: F122 | I167: 1 | J167: 0 | K167: 1 | N167: F6'03 | O167: 0 | P167: 1 | Q167: 1 | S167: F423 | T167: 1 | U167: 0 | V167: 1 | X167: F423 | Y167: 1 | Z167: 0 | AA167: 1 | AC167: F208 | AD167: 3 | AE167: 2 | AF167: 5
D168: F322 | E168: 4 | F168: 7 | G168: 11 | H168: F449 | I168: 1 | J168: 0 | K168: 1 | N168: Z631 | O168: 0 | P168: 1 | Q168: 1 | S168: F206 | T168: 1 | U168: 1 | V168: 2 | X168: F206 | Y168: 1 | Z168: 1 | AA168: 2 | AC168: F013 | AD168: 0 | AE168: 5 | AF168: 5
D169: F341 | E169: 20 | F169: 38 | G169: 58 | H169: I679 | I169: 1 | J169: 0 | K169: 1 | N169: F423 | O169: 1 | P169: 0 | Q169: 1 | S169: F319 | T169: 0 | U169: 2 | V169: 2 | X169: F319 | Y169: 0 | Z169: 2 | AA169: 2 | AC169: F324 | AD169: 1 | AE169: 4 | AF169: 5
D170: F317 | E170: 7 | F170: 12 | G170: 19 | H170: F600 | I170: 0 | J170: 1 | K170: 1 | N170: F206 | O170: 1 | P170: 0 | Q170: 1 | S170: F842 | T170: 1 | U170: 0 | V170: 1 | X170: F842 | Y170: 1 | Z170: 0 | AA170: 1 | AC170: F711 | AD170: 4 | AE170: 0 | AF170: 4
D171: F334 | E171: 8 | F171: 32 | G171: 40 | H171: F44 | I171: 0 | J171: 1 | K171: 1 | N171: F319 | O171: 0 | P171: 1 | Q171: 1 | S171: F932 | T171: 0 | U171: 1 | V171: 1 | X171: F932 | Y171: 0 | Z171: 1 | AA171: 1 | AC171: F918 | AD171: 4 | AE171: 0 | AF171: 4
D172: F430 | E172: 4 | F172: 2 | G172: 6 | H172: F4321 | I172: 0 | J172: 1 | K172: 1 | N172: F842 | O172: 1 | P172: 0 | Q172: 1 | S172: F64 | T172: 2 | U172: 1 | V172: 3 | X172: F64 | Y172: 2 | Z172: 1 | AA172: 3 | AC172: F53 | AD172: 0 | AE172: 4 | AF172: 4
D173: F72 | E173: 1 | F173: 0 | G173: 1 | H173: G334 | I173: 1 | J173: 0 | K173: 1 | N173: F932 | O173: 0 | P173: 1 | Q173: 1 | S173: R410 | T173: 1 | U173: 0 | V173: 1 | X173: R410 | Y173: 1 | Z173: 0 | AA173: 1 | AC173: F633 | AD173: 0 | AE173: 4 | AF173: 4
D174: F71 | E174: 2 | F174: 0 | G174: 2 | H174: K701 | I174: 1 | J174: 0 | K174: 1 | N174: F61 | O174: 0 | P174: 1 | Q174: 1 | S174: F103 | T174: 1 | U174: 0 | V174: 1 | X174: F103 | Y174: 1 | Z174: 0 | AA174: 1 | AC174: F501 | AD174: 2 | AE174: 2 | AF174: 4
D175: F439 | E175: 2 | F175: 0 | G175: 2 | H175: F192 | I175: 1 | J175: 0 | K175: 1 | N175: F64 | O175: 1 | P175: 0 | Q175: 1 | S175: F95 | T175: 1 | U175: 0 | V175: 1 | X175: F95 | Y175: 1 | Z175: 0 | AA175: 1 | AC175: F108 | AD175: 3 | AE175: 1 | AF175: 4
D176: F251 | E176: 0 | F176: 3 | G176: 3 | H176: F4325 | I176: 1 | J176: 0 | K176: 1 | N176: R410 | O176: 1 | P176: 0 | Q176: 1 | S176: F151 | T176: 1 | U176: 0 | V176: 1 | X176: F151 | Y176: 1 | Z176: 0 | AA176: 1 | AC176: F69 | AD176: 3 | AE176: 1 | AF176: 4
D177: F841 | E177: 3 | F177: 0 | G177: 3 | H177: F019 | I177: 0 | J177: 1 | K177: 1 | N177: F103 | O177: 1 | P177: 0 | Q177: 1 | S177: F901 | T177: 1 | U177: 0 | V177: 1 | X177: F901 | Y177: 1 | Z177: 0 | AA177: 1 | AC177: F182 | AD177: 4 | AE177: 0 | AF177: 4
D178: F799 | E178: 3 | F178: 0 | G178: 3 | H178: F700 | I178: 0 | J178: 1 | K178: 1 | N178: F95 | O178: 1 | P178: 0 | Q178: 1 | S178: F609 | T178: 1 | U178: 0 | V178: 1 | X178: F609 | Y178: 1 | Z178: 0 | AA178: 1 | AC178: F38 | AD178: 2 | AE178: 2 | AF178: 4
D179: G40 | E179: 2 | F179: 5 | G179: 7 | H179: R410 | I179: 0 | J179: 1 | K179: 1 | N179: F151 | O179: 1 | P179: 0 | Q179: 1 | S179: F188 | T179: 1 | U179: 0 | V179: 1 | X179: F188 | Y179: 1 | Z179: 0 | AA179: 1 | AC179: F48 | AD179: 3 | AE179: 1 | AF179: 4
D180: F840 | E180: 1 | F180: 0 | G180: 1 | H180: F414 | I180: 0 | J180: 1 | K180: 1 | N180: F901 | O180: 1 | P180: 0 | Q180: 1 | S180: F38 | T180: 2 | U180: 1 | V180: 3 | X180: F38 | Y180: 2 | Z180: 1 | AA180: 3 | AC180: F415 | AD180: 1 | AE180: 3 | AF180: 4
D181: F29 | E181: 1 | F181: 0 | G181: 1 | H181: F434 | I181: 0 | J181: 1 | K181: 1 | N181: F609 | O181: 1 | P181: 0 | Q181: 1 | S181: F442 | T181: 1 | U181: 0 | V181: 1 | X181: F442 | Y181: 1 | Z181: 0 | AA181: 1 | AC181: G401 | AD181: 2 | AE181: 2 | AF181: 4
D182: Z63 | E182: 2 | F182: 0 | G182: 2 | H182: G43 | I182: 0 | J182: 1 | K182: 1 | N182: F188 | O182: 1 | P182: 0 | Q182: 1 | S182: F951 | T182: 1 | U182: 0 | V182: 1 | X182: F951 | Y182: 1 | Z182: 0 | AA182: 1 | AC182: Z030 | AD182: 2 | AE182: 1 | AF182: 3
D183: F402 | E183: 0 | F183: 2 | G183: 2 | H183: F710 | I183: 1 | J183: 0 | K183: 1 | N183: F38 | O183: 0 | P183: 1 | Q183: 1 | S183: F681 | T183: 0 | U183: 1 | V183: 1 | X183: F681 | Y183: 0 | Z183: 1 | AA183: 1 | AC183: F441 | AD183: 2 | AE183: 1 | AF183: 3
D184: F500 | E184: 0 | F184: 5 | G184: 5 | H184: Z62 | I184: 0 | J184: 1 | K184: 1 | N184: F442 | O184: 1 | P184: 0 | Q184: 1 | S184: F4112 | T184: 1 | U184: 0 | V184: 1 | X184: F4112 | Y184: 1 | Z184: 0 | AA184: 1 | AC184: F504 | AD184: 0 | AE184: 3 | AF184: 3
D185: F849 | E185: 1 | F185: 0 | G185: 1 | H185: F721 | I185: 1 | J185: 0 | K185: 1 | N185: F951 | O185: 1 | P185: 0 | Q185: 1 | S185: F159 | T185: 0 | U185: 1 | V185: 1 | X185: F159 | Y185: 0 | Z185: 1 | AA185: 1 | AC185: F639 | AD185: 0 | AE185: 3 | AF185: 3
D186: F79 | E186: 3 | F186: 0 | G186: 3 | H186: X79 | I186: 1 | J186: 0 | K186: 1 | N186: F681 | O186: 0 | P186: 1 | Q186: 1 | S186: F148 | T186: 0 | U186: 1 | V186: 1 | X186: F148 | Y186: 0 | Z186: 1 | AA186: 1 | AC186: F138 | AD186: 2 | AE186: 1 | AF186: 3
D187: F22 | E187: 1 | F187: 0 | G187: 1 | H187: F419 | I187: 1 | J187: 0 | K187: 1 | N187: F4112 | O187: 1 | P187: 0 | Q187: 1 | S187: F949 | T187: 0 | U187: 1 | V187: 1 | X187: F949 | Y187: 0 | Z187: 1 | AA187: 1 | AC187: F142 | AD187: 3 | AE187: 0 | AF187: 3
D188: R463 | E188: 2 | F188: 1 | G188: 3 | H188: F480 | I188: 1 | J188: 0 | K188: 1 | N188: F159 | O188: 0 | P188: 1 | Q188: 1 | S188: F52 | T188: 0 | U188: 1 | V188: 1 | X188: F52 | Y188: 0 | Z188: 1 | AA188: 1 | AC188: F608 | AD188: 3 | AE188: 0 | AF188: 3
D189: F845 | E189: 0 | F189: 2 | G189: 2 | H189: F229 | I189: 0 | J189: 1 | K189: 1 | N189: F148 | O189: 0 | P189: 1 | Q189: 1 | S189: F158 | T189: 1 | U189: 0 | V189: 1 | X189: F158 | Y189: 1 | Z189: 0 | AA189: 1 | AC189: F632 | AD189: 2 | AE189: 1 | AF189: 3
D190: F313 | E190: 0 | F190: 2 | G190: 2 | H190: F451 | I190: 0 | J190: 1 | K190: 1 | N190: F949 | O190: 0 | P190: 1 | Q190: 1 | S190: F928 | T190: 0 | U190: 1 | V190: 1 | X190: F928 | Y190: 0 | Z190: 1 | AA190: 1 | AC190: F101 | AD190: 3 | AE190: 0 | AF190: 3
D191: F195 | E191: 1 | F191: 0 | G191: 1 | H191: F321 | I191: 0 | J191: 1 | K191: 1 | N191: F52 | O191: 0 | P191: 1 | Q191: 1 | S191: R460 | T191: 1 | U191: 0 | V191: 1 | X191: R460 | Y191: 1 | Z191: 0 | AA191: 1 | AC191: Z635 | AD191: 3 | AE191: 0 | AF191: 3
D192: F063 | E192: 0 | F192: 2 | G192: 2 | H192: F108 | I192: 1 | J192: 0 | K192: 1 | N192: F158 | O192: 1 | P192: 0 | Q192: 1 | S192: F65 | T192: 1 | U192: 1 | V192: 2 | X192: F65 | Y192: 1 | Z192: 1 | AA192: 2 | AC192: F14 | AD192: 3 | AE192: 0 | AF192: 3
D193: F340 | E193: 1 | F193: 0 | G193: 1 | H193: R95 | I193: 0 | J193: 1 | K193: 1 | N193: F928 | O193: 0 | P193: 1 | Q193: 1 | S193: R680 | T193: 1 | U193: 0 | V193: 1 | X193: R680 | Y193: 1 | Z193: 0 | AA193: 1 | AC193: F849 | AD193: 2 | AE193: 1 | AF193: 3
D194: F312 | E194: 0 | F194: 1 | G194: 1 | H194: F988 | I194: 0 | J194: 1 | K194: 1 | N194: R460 | O194: 1 | P194: 0 | Q194: 1 | S194: F511 | T194: 1 | U194: 0 | V194: 1 | X194: F511 | Y194: 1 | Z194: 0 | AA194: 1 | AC194: F94 | AD194: 0 | AE194: 3 | AF194: 3
D195: F401 | E195: 1 | F195: 1 | G195: 2 | H195: F989 | I195: 0 | J195: 1 | K195: 1 | N195: F65 | O195: 0 | P195: 1 | Q195: 1 | S195: F337 | T195: 0 | U195: 1 | V195: 1 | X195: F337 | Y195: 0 | Z195: 1 | AA195: 1 | AC195: F423 | AD195: 2 | AE195: 1 | AF195: 3
D196: F333 | E196: 1 | F196: 2 | G196: 3 | H196: F92 | I196: 1 | J196: 0 | K196: 1 | N196: R680 | O196: 1 | P196: 0 | Q196: 1 | S196: F123 | T196: 1 | U196: 0 | V196: 1 | X196: F123 | Y196: 1 | Z196: 0 | AA196: 1 | AC196: F64 | AD196: 2 | AE196: 1 | AF196: 3
D197: F03X | E197: 1 | F197: 0 | G197: 1 | H197: F23 | I197: 0 | J197: 1 | K197: 1 | N197: F511 | O197: 1 | P197: 0 | Q197: 1 | S197: F281 | T197: 1 | U197: 0 | V197: 1 | X197: F281 | Y197: 1 | Z197: 0 | AA197: 1 | AC197: F103 | AD197: 3 | AE197: 0 | AF197: 3
D198: F05 | E198: 0 | F198: 0 | G198: 0 | H198: F21 | I198: 1 | J198: 0 | K198: 1 | N198: F337 | O198: 0 | P198: 1 | Q198: 1 | S198: F141 | T198: 1 | U198: 0 | V198: 1 | X198: F141 | Y198: 1 | Z198: 0 | AA198: 1 | AC198: F503 | AD198: 0 | AE198: 3 | AF198: 3
D199: F510 | E199: 0 | F199: 0 | G199: 0 | H199: F345 | I199: 1 | J199: 0 | K199: 1 | N199: F123 | O199: 1 | P199: 0 | Q199: 1 | S199: F503 | T199: 0 | U199: 1 | V199: 1 | X199: F503 | Y199: 0 | Z199: 1 | AA199: 1 | AC199: F721 | AD199: 2 | AE199: 1 | AF199: 3
D200: F03 | E200: 0 | F200: 0 | G200: 0 | H200: F38 | I200: 0 | J200: 1 | K200: 1 | N200: F23 | O200: 1 | P200: 0 | Q200: 1 | S200: G049 | T200: 1 | U200: 0 | V200: 1 | X200: G049 | Y200: 1 | Z200: 0 | AA200: 1 | AC200: F105 | AD200: 3 | AE200: 0 | AF200: 3
... 295 more rows

Sheet CIE-X (hidden)
B1: C_Causa | C1: C_Descripcion
A2: =MID(B2,1,1) -> A | B2: A00 | C2: Colera
A3: =MID(B3,1,1) -> A | B3: A000 | C3: Colera debido a Vibrio cholerae 01, biotipo cholerae
A4: A | B4: A001 | C4: Colera debido a Vibrio cholerae 01, biotipo el Tor
A5: A | B5: A009 | C5: Colera, no especificado
A6: A | B6: A01 | C6: Fiebres tifoidea y paratifoidea
A7: A | B7: A010 | C7: Fiebre tifoidea
A8: A | B8: A011 | C8: Fiebre paratifoidea A
A9: A | B9: A012 | C9: Fiebre paratifoidea B
A10: A | B10: A013 | C10: Fiebre paratifoidea C
A11: A | B11: A014 | C11: Fiebre paratifoidea, no especificada
A12: A | B12: A02 | C12: Otras infecciones debidas a salmonella
A13: A | B13: A020 | C13: Enteritis debida a Salmonella
A14: A | B14: A021 | C14: Sepsis debida a Salmonella
A15: A | B15: A022 | C15: Infecciones localizadas debidas a Salmonella
A16: A | B16: A028 | C16: Otras infecciones especificadas como debidas a Salmonella
A17: A | B17: A029 | C17: Infeccion debida a Salmonella, no especificada
A18: A | B18: A03 | C18: Shigelosis
A19: A | B19: A030 | C19: Shigelosis debida a Shigella dysenteriae
A20: A | B20: A031 | C20: Shigelosis debida a Shigella flexneri
A21: A | B21: A032 | C21: Shigelosis debida a Shigella boydii
A22: A | B22: A033 | C22: Shigelosis debida a Shigella sonnei
A23: A | B23: A038 | C23: Otras shigelosis
A24: A | B24: A039 | C24: Shigelosis de tipo no especificado
A25: A | B25: A04 | C25: Otras infecciones intestinales bacterianas
A26: A | B26: A040 | C26: Infeccion debida a Escherichia coli enteropatogena
A27: A | B27: A041 | C27: Infeccion debida a Escherichia coli enterotoxigena
A28: A | B28: A042 | C28: Infeccion debida a Escherichia coli enteroinvasiva
A29: A | B29: A043 | C29: Infeccion debida a Escherichia coli enterohemorragica
A30: A | B30: A044 | C30: Otras infecciones intestinales debidas a Escherichia coli
A31: A | B31: A045 | C31: Enteritis debida a Campylobacter
A32: A | B32: A046 | C32: Enteritis debida a Yersinia enterocolitica
A33: A | B33: A047 | C33: Enterocolitis debida a Clostridium difficile
A34: A | B34: A048 | C34: Otras infecciones intestinales bacterianas especificadas
A35: A | B35: A049 | C35: Infeccion intestinal bacteriana, no especificada
A36: A | B36: A05 | C36: Otras intoxicaciones alimentarias bacterianas
A37: A | B37: A050 | C37: Intoxicacion alimentaria estafilococica
A38: A | B38: A051 | C38: Botulismo
A39: A | B39: A052 | C39: Intoxicacion alimentaria debida a Clostridium perfringens [Clostridium welchii]
A40: A | B40: A053 | C40: Intoxicacion alimentaria debida a Vibrio parahaemolyticus
A41: A | B41: A054 | C41: Intoxicacion alimentaria debida a Bacillus cereus
A42: A | B42: A058 | C42: Otras intoxicaciones alimentarias debidas a bacterias especificadas
A43: A | B43: A059 | C43: Intoxicacion alimentaria bacteriana, no especificada
A44: A | B44: A06 | C44: Amebiasis
A45: A | B45: A060 | C45: Disenteria amebiana aguda
A46: A | B46: A061 | C46: Amebiasis intestinal cronica
A47: A | B47: A062 | C47: Colitis amebiana no disenterica
A48: A | B48: A063 | C48: Ameboma intestinal
A49: A | B49: A064 | C49: Absceso amebiano del higado
A50: A | B50: A065 | C50: Absceso amebiano del pulmon
A51: A | B51: A066 | C51: Absceso amebiano del cerebro
A52: A | B52: A067 | C52: Amebiasis cutanea
A53: A | B53: A068 | C53: Infeccion amebiana de otras localizaciones
A54: A | B54: A069 | C54: Amebiasis, no especificada
A55: A | B55: A07 | C55: Otras enfermedades intestinales debidas a protozoarios
A56: A | B56: A070 | C56: Balantidiasis
A57: A | B57: A071 | C57: Giardiasis [lambliasis]
A58: A | B58: A072 | C58: Criptosporidiosis
A59: A | B59: A073 | C59: Isosporiasis
A60: A | B60: A078 | C60: Otras enfermedades intestinales especificadas debidas a protozoarios
A61: A | B61: A079 | C61: Enfermedad intestinal debida a protozoarios, no especificada
A62: A | B62: A08 | C62: Infecciones intestinales debidas a virus y otros organismos especificados
A63: A | B63: A080 | C63: Enteritis debida a rotavirus
A64: A | B64: A081 | C64: Gastroenteropatia aguda debida al agente de Norwalk
A65: A | B65: A082 | C65: Enteritis debida a adenovirus
A66: A | B66: A083 | C66: Otras enteritis virales
A67: =MID(B67,1,1) -> A | B67: A084 | C67: Infeccion intestinal viral, sin otra especificacion
A68: A | B68: A085 | C68: Otras infecciones intestinales especificadas
A69: A | B69: A09 | C69: Otras gastroenteritis y colitis de origen infeccioso y no especificado
A70: A | B70: A090 | C70: Otras gastroenteritis y colitis de origen infeccioso
A71: A | B71: A099 | C71: Gastroenteritis y colitis de origen no especificado
A72: A | B72: A15 | C72: Tuberculosis respiratoria, confirmada bacteriologica e histologicamente
A73: A | B73: A150 | C73: Tuberculosis del pulmon, confirmada por hallazgo microscopico del bacilo tuberculoso en esputo, con o sin cultivo
A74: A | B74: A151 | C74: Tuberculosis del pulmon, confirmada unicamente por cultivo
A75: A | B75: A152 | C75: Tuberculosis del pulmon, confirmada histologicamente
A76: A | B76: A153 | C76: Tuberculosis del pulmon, confirmada por medios no especificados
A77: A | B77: A154 | C77: Tuberculosis de ganglios linfaticos intratoracicos, confirmada bacteriologica e histologicamente
A78: A | B78: A155 | C78: Tuberculosis de laringe, traquea y bronquios, confirmada bacteriologica e histologicamente
A79: A | B79: A156 | C79: Pleuresia tuberculosa, confirmada bacteriologica e histologicamente
A80: A | B80: A157 | C80: Tuberculosis respiratoria primaria, confirmada bacteriologica e histologicamente
A81: A | B81: A158 | C81: Otras tuberculosis respiratorias, confirmadas bacteriologica e histologicamente
A82: A | B82: A159 | C82: Tuberculosis respiratoria no especificada, confirmada bacteriologica e histologicamente
A83: A | B83: A16 | C83: Tuberculosis respiratoria, no confirmada bacteriologica o histologicamente
A84: A | B84: A160 | C84: Tuberculosis del pulmon, con examen bacteriologico e histologico negativos
A85: A | B85: A161 | C85: Tuberculosis de pulmon, sin examen bacteriologico e histologico
A86: A | B86: A162 | C86: Tuberculosis de pulmon, sin mencion de confirmacion bacteriologica o histologica
A87: A | B87: A163 | C87: Tuberculosis de ganglios linfaticos intratoracicos, sin mencion de confirmacion bacteriologica o histologica
A88: A | B88: A164 | C88: Tuberculosis de laringe, traquea y bronquios, sin mencion de confirmacion bacteriologica o histologica
A89: A | B89: A165 | C89: Pleuresia tuberculosa, sin mencion de confirmacion bacteriologica o histologica
A90: A | B90: A167 | C90: Tuberculosis respiratoria primaria, sin mencion de confirmacion bacteriologica o histologica
A91: A | B91: A168 | C91: Otras tuberculosis respiratorias, sin mencion de confirmacion
A92: A | B92: A169 | C92: Tuberculosis respiratoria no especificada, sin mencion de confirmacion bacteriologica o histologica
A93: A | B93: A17 | C93: Tuberculosis del sistema nervioso
A94: A | B94: A170 | C94: Meningitis tuberculosa
A95: A | B95: A171 | C95: Tuberculoma meningeo
A96: A | B96: A178 | C96: Otras tuberculosis del sistema nervioso
A97: A | B97: A179 | C97: Tuberculosis del sistema nervioso, no especificada
A98: A | B98: A18 | C98: Tuberculosis de otros organos
A99: A | B99: A180 | C99: Tuberculosis de huesos y articulaciones
A100: A | B100: A181 | C100: Tuberculosis del aparato genitourinario
A101: A | B101: A182 | C101: Linfadenopatia periferica tuberculosa
A102: A | B102: A183 | C102: Tuberculosis de los intestinos, el peritoneo y los ganglios mesentericos
A103: A | B103: A184 | C103: Tuberculosis de la piel y el tejido subcutaneo
A104: A | B104: A185 | C104: Tuberculosis del ojo
A105: A | B105: A186 | C105: Tuberculosis del oido
A106: A | B106: A187 | C106: Tuberculosis de glandulas suprarrenales
A107: A | B107: A188 | C107: Tuberculosis de otros organos especificados
A108: A | B108: A19 | C108: Tuberculosis miliar
A109: A | B109: A190 | C109: Tuberculosis miliar aguda de un solo sitio especificado
A110: A | B110: A191 | C110: Tuberculosis miliar aguda de sitios multiples
A111: A | B111: A192 | C111: Tuberculosis miliar aguda, no especificada
A112: A | B112: A198 | C112: Otras tuberculosis miliares
A113: A | B113: A199 | C113: Tuberculosis miliar, sin otra especificacion
A114: A | B114: A20 | C114: Peste
A115: A | B115: A200 | C115: Peste bubonica
A116: A | B116: A201 | C116: Peste celulocutanea
A117: A | B117: A202 | C117: Peste neumonica
A118: A | B118: A203 | C118: Meningitis por peste
A119: A | B119: A207 | C119: Peste septicemica
A120: A | B120: A208 | C120: Otras formas de peste
A121: A | B121: A209 | C121: Peste, no especificada
A122: A | B122: A21 | C122: Tularemia
A123: A | B123: A210 | C123: Tularemia ulceroglandular
A124: A | B124: A211 | C124: Tularemia oculoglandular
A125: A | B125: A212 | C125: Tularemia pulmonar
A126: A | B126: A213 | C126: Tularemia gastrointestinal
A127: A | B127: A217 | C127: Tularemia generalizada
A128: A | B128: A218 | C128: Otras formas de tularemia
A129: A | B129: A219 | C129: Tularemia, no especificada
A130: A | B130: A22 | C130: Carbunco [antrax]
A131: =MID(B131,1,1) -> A | B131: A220 | C131: Carbunco cutaneo
A132: A | B132: A221 | C132: Carbunco pulmonar
A133: A | B133: A222 | C133: Carbunco gastrointestinal
A134: A | B134: A227 | C134: Carbunco septico
A135: A | B135: A228 | C135: Otras formas de carbunco
A136: A | B136: A229 | C136: Carbunco, no especificado
A137: A | B137: A23 | C137: Brucelosis
A138: A | B138: A230 | C138: Brucelosis debida a Brucella melitensis
A139: A | B139: A231 | C139: Brucelosis debida a Brucella abortus
A140: A | B140: A232 | C140: Brucelosis debida a Brucella suis
A141: A | B141: A233 | C141: Brucelosis debida a Brucella canis
A142: A | B142: A238 | C142: Otras brucelosis
A143: A | B143: A239 | C143: Brucelosis, no especificada
A144: A | B144: A24 | C144: Muermo y melioidosis
A145: A | B145: A240 | C145: Muermo
A146: A | B146: A241 | C146: Melioidosis aguda y fulminante
A147: A | B147: A242 | C147: Melioidosis subaguda y cronica
A148: A | B148: A243 | C148: Otras melioidosis
A149: A | B149: A244 | C149: Melioidosis, no especificada
A150: A | B150: A25 | C150: Fiebre por mordedura de rata
A151: A | B151: A250 | C151: Espirilosis
A152: A | B152: A251 | C152: Estreptobacilosis
A153: A | B153: A259 | C153: Fiebre por mordedura de rata, no especificada
A154: A | B154: A26 | C154: Erisipeloide
A155: A | B155: A260 | C155: Erisipeloide cutaneo
A156: A | B156: A267 | C156: Sepsis por Erysipelothrix
A157: A | B157: A268 | C157: Otras formas de erisipeloide
A158: A | B158: A269 | C158: Erisipeloide, no especificada
A159: A | B159: A27 | C159: Leptospirosis
A160: A | B160: A270 | C160: Leptospirosis icterohemorragica
A161: A | B161: A278 | C161: Otras formas de leptospirosis
A162: A | B162: A279 | C162: Leptospirosis, no especificada
A163: A | B163: A28 | C163: Otras enfermedades zoonoticas bacterianas, no clasificadas en otra parte
A164: A | B164: A280 | C164: Pasteurelosis
A165: A | B165: A281 | C165: Enfermedad por rasguño de gato
A166: A | B166: A282 | C166: Yersiniosis extraintestinal
A167: A | B167: A288 | C167: Otras enfermedades zoonoticas bacterianas especificadas, no clasificadas en otra parte
A168: A | B168: A289 | C168: Enfermedad zoonotica bacteriana, sin otra especificacion
A169: A | B169: A30 | C169: Lepra [enfermedad de Hansen]
A170: A | B170: A300 | C170: Lepra indeterminada
A171: A | B171: A301 | C171: Lepra tuberculoide
A172: A | B172: A302 | C172: Lepra tuberculoide limitrofe
A173: A | B173: A303 | C173: Lepra limitrofe
A174: A | B174: A304 | C174: Lepra lepromatosa limitrofe
A175: A | B175: A305 | C175: Lepra lepromatosa
A176: A | B176: A308 | C176: Otras formas de lepra
A177: A | B177: A309 | C177: Lepra, no especificada
A178: A | B178: A31 | C178: Infecciones debidas a otras micobacterias
A179: A | B179: A310 | C179: Infecciones por micobacterias pulmonares
A180: A | B180: A311 | C180: Infeccion cutanea por micobacterias
A181: A | B181: A318 | C181: Otras infecciones por micobacterias
A182: A | B182: A319 | C182: Infeccion por micobacteria, no especificada
A183: A | B183: A32 | C183: Listeriosis
A184: A | B184: A320 | C184: Listeriosis cutanea
A185: A | B185: A321 | C185: Meningitis y meningoencefalitis listeriana
A186: A | B186: A327 | C186: Sepsis listeriana
A187: A | B187: A328 | C187: Otras formas de listeriosis
A188: A | B188: A329 | C188: Listeriosis, no especificada
A189: A | B189: A33X | C189: Tetanos neonatal
A190: A | B190: A34X | C190: Tetanos obstetrico
A191: A | B191: A35X | C191: Otros tetanos
A192: A | B192: A36 | C192: Difteria
A193: A | B193: A360 | C193: Difteria faringea
A194: A | B194: A361 | C194: Difteria nasofaringea
A195: =MID(B195,1,1) -> A | B195: A362 | C195: Difteria laringea
A196: A | B196: A363 | C196: Difteria cutanea
A197: A | B197: A368 | C197: Otras difterias
A198: A | B198: A369 | C198: Difteria, no especificada
A199: A | B199: A37 | C199: Tos ferina [tos convulsiva]
A200: A | B200: A370 | C200: Tos ferina debida a Bordetella pertussis
... 14171 more rows

Sheet Lista CIE-10 (hidden)
A1: CLAVES CIE-10 | C1: DESCRIPCION
A2: 0 | B2: F000 | C2: Demencia en la enfermedad de Alzheimer, de comienzo temprano
A3: 0.1 | B3: F001 | C3: Demencia en la enfermedad de Alzheimer, de comienzo tardío
A4: 0.2 | B4: F002 | C4: Demencia en la enfermedad de Alzheimer, atípica o de tipo mixto
A5: 0.9 | B5: F009 | C5: Demencia en la enfermedad de Alzheimer, no especificada
A6: 1 | B6: F010 | C6: Demencia vascular de comienzo agudo
A7: 1.1 | B7: F011 | C7: Demencia vascular por infartos múltiples
A8: 1.2 | B8: F012 | C8: Demencia vascular subcortical
A9: 1.3 | B9: F013 | C9: Demencia vascular mixta, cortical y subcortical
A10: 1.8 | B10: F018 | C10: Otras demencia vasculares
A11: 1.9 | B11: F019 | C11: Demencia vascular, no especificada
A12: 2 | B12: F020 | C12: Demencia en la enfermedad de Pick
A13: 2.1 | B13: F021 | C13: Demencia en la enfermedad de Creutzfeldt-Jakob
A14: 2.2 | B14: F022 | C14: Demencia en la enfermedad de Huntington
A15: 2.3 | B15: F023 | C15: Demencia en la enfermedad de Parkinson
A16: 2.4 | B16: F024 | C16: Demencia en la enfermedad por virus de la inmunodeficiencia humana [VIH]
A17: 2.8 | B17: F028 | C17: Demencia en otras enfermedades especificadas clasificadas en otra parte
A18: 3 | B18: F03X | C18: Demencia , no especificada
A19: 4 | B19: F04 | C19: Síndrome amnésico orgánico, no inducido por alcohol o por otras sustancias psicoactivas
A20: 5 | B20: F050 | C20: Delirio no superpuesto a un cuadro de demencia, así descrito
A21: 5.1 | B21: F051 | C21: Delirio superpuesto a un cuadro de demencia
A22: 5.8 | B22: F058 | C22: Otros delirios
A23: 5.9 | B23: F059 | C23: Delirio, no especificado
A24: 6 | B24: F060 | C24: Alucinosis orgánica
A25: 6.1 | B25: F061 | C25: Trastorno catatónico, orgánico
A26: 6.2 | B26: F062 | C26: Trastorno delirante [esquizofreniforme], orgánico
A27: 6.3 | B27: F063 | C27: Trastornos del humor [afectivos], orgánicos
A28: 6.4 | B28: F064 | C28: Trastorno de ansiedad, orgánico
A29: 6.5 | B29: F065 | C29: Trastorno disociativo, orgánico
A30: 6.6 | B30: F066 | C30: Trastorno de labilidad emocional [asténico], orgánico
A31: 6.7 | B31: F067 | C31: Trastorno cognoscitivo leve
A32: 6.8 | B32: F068 | C32: Otros trastornos mentales especificados debidos a lesión y disfunción cerebral y a enfermedad física
A33: 6.9 | B33: F069 | C33: Trastorno mental no especificado debido a lesión y disfunción cerebral y a enfermedad física
A34: 7 | B34: F070 | C34: Trastorno de la personalidad, orgánico
A35: 7.1 | B35: F071 | C35: Síndrome postencefalítico
A36: 7.2 | B36: F072 | C36: Síndrome postconcusional
A37: 7.8 | B37: F078 | C37: Otros trastornos orgánicos de la personalidad y del comportamiento debidos a enfermedad, lesión y disfunción cerebrales
A38: 7.9 | B38: F079 | C38: Trastorno orgánico de la personalidad y del comportamiento, no especificado, debido a enfermedad, lesión y disfunción cerebral
A39: 9 | B39: F09 | C39: Trastorno mental orgánico o sintomático, no especificado
A40: 10 | B40: F100 | C40: Trastornos mentales y del comportamiento debidos al uso de alcohol, intoxicacion aguda.
A41: 10.1 | B41: F101 | C41: Trastornos mentales y del comportamiento debidos al uso de alcohol, uso nosivo
A42: 10.2 | B42: F102 | C42: Trastornos mentales y del comportamiento debidos al uso de alcohol, sindrome de dependencia.
A43: 10.3 | B43: F103 | C43: Trastornos mentales y del comportamiento debidos al uso de alcohol, estado de abstinencia
A44: 10.4 | B44: F104 | C44: Trastornos mentales y del comportamiento debidos al uso de alcohol, estado de abstinencia con delirium.
A45: 10.5 | B45: F105 | C45: Trastornos mentales y del comportamiento debidos al uso de alcohol, trastorno psicotico.
A46: 10.6 | B46: F106 | C46: Trastornos mentales y del comportamiento debidos al uso de alcohol, sindrome amnesico.
A47: 10.7 | B47: F107 | C47: Trastornos mentales y del comportamiento debidos al uso de alcohol, trastorno psicotico residual y de comienzo tardio.
A48: 10.8 | B48: F108 | C48: Trastornos mentales y del comportamiento debidos al uso de alcohol, otros trastornos mentales y del comportamiento.
A49: 10.9 | B49: F109 | C49: Trastornos mentales y del comportamiento debidos al uso de alcohol, trastorno mental y del comportamiento, no especificado.
A50: 11 | B50: F11 | C50: Trastornos mentales y del comportamiento debidos al uso de opiáceos, intoxicacion aguda.
A51: 11.1 | B51: F111 | C51: Trastornos mentales y del comportamiento debidos al uso de opiáceos, uso nocivo
A52: 11.2 | B52: F112 | C52: Trastornos mentales y del comportamiento debidos al uso de opiáceos, sindrome de dependencia.
A53: 11.3 | B53: F113 | C53: Trastornos mentales y del comportamiento debidos al uso de opiáceos, estado de abstinencia.
A54: 11.4 | B54: F114 | C54: Trastornos mentales y del comportamiento debidos al uso de opiáceos, estado de abstinencia con delirium.
A55: 11.5 | B55: F115 | C55: Trastornos mentales y del comportamiento debidos al uso de opiáceos, trastorno psicotico
A56: 11.6 | B56: F116 | C56: Trastornos mentales y del comportamiento debidos al uso de opiáceos, sindrome amnesico.
A57: 11.7 | B57: F117 | C57: Trastornos mentales y del comportamiento debidos al uso de opiáceos, trastorno psicotico residual y de comienzo tardio.
A58: 11.8 | B58: F118 | C58: Trastornos mentales y del comportamiento debidos al uso de opiáceos, otros trastornos mentales y del comportamiento.
A59: 11.9 | B59: F119 | C59: Trastornos mentales y del comportamiento debidos al uso de opiáceos, trastorno mental y del comportamiento, no especificado.
A60: 12 | B60: F120 | C60: Trastornos mentales y del comportamiento debidos al uso de cannabinoides, intoxicacion aguda.
A61: 12.1 | B61: F121 | C61: Trastornos mentales y del comportamiento debidos al uso de cannabinoides, uso nocivo
A62: 12.2 | B62: F122 | C62: Trastornos mentales y del comportamiento debidos al uso de cannabinoides, sindrome de dependencia.
A63: 12.3 | B63: F123 | C63: Trastornos mentales y del comportamiento debidos al uso de cannabinoides, estado de abstinencia.
A64: 12.4 | B64: F124 | C64: Trastornos mentales y del comportamiento debidos al uso de cannabinoides, estado de abstinencia con delirium.
A65: 12.5 | B65: F125 | C65: Trastornos mentales y del comportamiento debidos al uso de cannabinoides, trastorno psicotico.
A66: 12.6 | B66: F126 | C66: Trastornos mentales y del comportamiento debidos al uso de cannabinoides, sindrome amnesico.
A67: 12.7 | B67: F127 | C67: Trastornos mentales y del comportamiento debidos al uso de cannabinoides, trastorno psicotico residual y de comienzo tardio.
A68: 12.8 | B68: F128 | C68: Trastornos mentales y del comportamiento debidos al uso de cannabinoides, otros trastornos mentales y del comportamiento.
A69: 12.9 | B69: F129 | C69: Trastornos mentales y del comportamiento debidos al uso de cannabinoides, trastorno mental y del comportamiento, no especificado.
A70: 13 | B70: F130 | C70: Trastornos mentales y del comportamiento debidos al uso de sedantes o hipnóticos, intoxicacion aguda.
A71: 13.1 | B71: F131 | C71: Trastornos mentales y del comportamiento debidos al uso de sedantes o hipnóticos, uso nocivo
A72: 13.2 | B72: F132 | C72: Trastornos mentales y del comportamiento debidos al uso de sedantes o hipnóticos, sindrome de dependencia.
A73: 13.3 | B73: F133 | C73: Trastornos mentales y del comportamiento debidos al uso de sedantes o hipnóticos, estado de abstinencia.
A74: 13.4 | B74: F134 | C74: Trastornos mentales y del comportamiento debidos al uso de sedantes o hipnóticos, estado de abstinencia con delirium.
A75: 13.5 | B75: F135 | C75: Trastornos mentales y del comportamiento debidos al uso de sedantes o hipnóticos, trastorno psicotico.
A76: 13.6 | B76: F136 | C76: Trastornos mentales y del comportamiento debidos al uso de sedantes o hipnóticos, sindrome amnesico.
A77: 13.7 | B77: F137 | C77: Trastornos mentales y del comportamiento debidos al uso de sedantes o hipnóticos, trastorno psicotico residual y de comienzo tardio.
A78: 13.8 | B78: F138 | C78: Trastornos mentales y del comportamiento debidos al uso de sedantes o hipnóticos, otros trastornos mentales y del comportamiento.
A79: 13.9 | B79: F139 | C79: Trastornos mentales y del comportamiento debidos al uso de sedantes o hipnóticos, trastorno mental y del comportamiento, no especificado.
A80: 14 | B80: F140 | C80: Trastornos mentales y del comportamiento debidos al uso de cocaína, intoxicacion aguda.
A81: 14.1 | B81: F141 | C81: Trastornos mentales y del comportamiento debidos al uso de cocaína, uso nocivo
A82: 14.2 | B82: F142 | C82: Trastornos mentales y del comportamiento debidos al uso de cocaína, sindrome de dependencia
A83: 14.3 | B83: F143 | C83: Trastornos mentales y del comportamiento debidos al uso de cocaína, estado de abstinencia
A84: 14.4 | B84: F144 | C84: Trastornos mentales y del comportamiento debidos al uso de cocaína, estado de abstinencia con delirium.
A85: 14.5 | B85: F145 | C85: Trastornos mentales y del comportamiento debidos al uso de cocaína, trastorno psicotico.
A86: 14.6 | B86: F146 | C86: Trastornos mentales y del comportamiento debidos al uso de cocaína, sindrome amnesico.
A87: 14.7 | B87: F147 | C87: Trastornos mentales y del comportamiento debidos al uso de cocaína, trastorno psicotico residual y de comienzo tardio.
A88: 14.8 | B88: F148 | C88: Trastornos mentales y del comportamiento debidos al uso de cocaína, sindrome de dependencia, Otros trastornos mentales o del comportamiento inducido por alcohol u otras sustancias psicotropas.
A89: 14.9 | B89: F149 | C89: Trastornos mentales y del comportamiento debidos al uso de cocaína, trastorno mental y del comportamiento, no especificado.
A90: 15 | B90: F15 | C90: Trastornos mentales y del comportamiento debidos al uso de otros estimilantes, incluida la cafeína, intoxicacion aguda.
A91: 15.1 | B91: F151 | C91: Trastornos mentales y del comportamiento debidos al uso de otros estimilantes, uso nocivo
A92: 15.2 | B92: F152 | C92: Trastornos mentales y del comportamiento debidos al uso de otros estimilantes, sindrome de dependencia.
A93: 15.3 | B93: F153 | C93: Trastornos mentales y del comportamiento debidos al uso de otros estimilantes, estado de abstinencia.
A94: 15.4 | B94: F154 | C94: Trastornos mentales y del comportamiento debidos al uso de otros estimilantes, estado de abstinencia con delirium.
A95: 15.5 | B95: F155 | C95: Trastornos mentales y del comportamiento debidos al uso de otros estimilantes, trastorno psicotico.
A96: 15.6 | B96: F156 | C96: Trastornos mentales y del comportamiento debidos al uso de otros estimilantes, sindrome amnesico.
A97: 15.7 | B97: F157 | C97: Trastornos mentales y del comportamiento debidos al uso de otros estimilantes, trastorno psicotico residual y de comienzo tardio.
A98: 15.8 | B98: F158 | C98: Trastornos mentales y del comportamiento debidos al uso de otros estimilantes, otros trastornos mentales y del comportamiento.
A99: 15.9 | B99: F159 | C99: Trastornos mentales y del comportamiento debidos al uso de otros estimilantes, trastorno mental y del comportamiento, no especificado.
A100: 16 | B100: F16 | C100: Trastornos mentales y del comportamiento debidos al uso de alucinógenos, intoxicacion aguda.
A101: 16.1 | B101: F161 | C101: Trastornos mentales y del comportamiento debidos al uso de alucinógenos, uso nocivo
A102: 16.2 | B102: F162 | C102: Trastornos mentales y del comportamiento debidos al uso de alucinógenos, sindrome de dependencia.
A103: 16.3 | B103: F163 | C103: Trastornos mentales y del comportamiento debidos al uso de alucinógenos, estado de abstinencia.
A104: 16.4 | B104: F164 | C104: Trastornos mentales y del comportamiento debidos al uso de alucinógenos, estado de abstinencia con delirium.
A105: 16.5 | B105: F165 | C105: Trastornos mentales y del comportamiento debidos al uso de alucinógenos, trastorno psicotico.
A106: 16.6 | B106: F166 | C106: Trastornos mentales y del comportamiento debidos al uso de alucinógenos, sindrome amnesico.
A107: 16.7 | B107: F167 | C107: Trastornos mentales y del comportamiento debidos al uso de alucinógenos, trastorno psicotico residual y de comienzo tardio.
A108: 16.8 | B108: F168 | C108: Trastornos mentales y del comportamiento debidos al uso de alucinógenos, otros trastornos mentales y del comportamiento.
A109: 16.9 | B109: F169 | C109: Trastornos mentales y del comportamiento debidos al uso de alucinógenos, trastorno mental y del comportamiento, no especificado.
A110: 17 | B110: F17 | C110: Trastornos mentales y del comportamiento debidos al uso de tabaco, intoxicacion aguda.
A111: 17.1 | B111: F171 | C111: Trastornos mentales y del comportamiento debidos al uso de tabaco, uso nocivo
A112: 17.2 | B112: F172 | C112: Trastornos mentales y del comportamiento debidos al uso de tabaco, sindrome de dependencia.
A113: 17.3 | B113: F173 | C113: Trastornos mentales y del comportamiento debidos al uso de tabaco, estado de abstinencia.
A114: 17.4 | B114: F174 | C114: Trastornos mentales y del comportamiento debidos al uso de tabaco, estado de abstinencia con delirium.
A115: 17.5 | B115: F175 | C115: Trastornos mentales y del comportamiento debidos al uso de tabaco, trastorno psicotico.
A116: 17.6 | B116: F176 | C116: Trastornos mentales y del comportamiento debidos al uso de tabaco, sindrome amnesico.
A117: 17.7 | B117: F177 | C117: Trastornos mentales y del comportamiento debidos al uso de tabaco, trastorno psicotico residual y de comienzo tardio.
A118: 17.8 | B118: F178 | C118: Trastornos mentales y del comportamiento debidos al uso de tabaco, otros trastornos mentales y del comportamiento.
A119: 17.9 | B119: F179 | C119: Trastornos mentales y del comportamiento debidos al uso de tabaco, trastorno mental y del comportamiento, no especificado.
A120: 18 | B120: F180 | C120: Trastornos mentales y del comportamiento debidos al uso de disolventes volátiles, intoxicacion aguda.
A121: 18.1 | B121: F181 | C121: Trastornos mentales y del comportamiento debidos al uso de disolventes volátiles, uso nocivo
A122: 18.2 | B122: F182 | C122: Trastornos mentales y del comportamiento debidos al uso de disolventes volátiles, sindrome de dependencia.
A123: 18.3 | B123: F183 | C123: Trastornos mentales y del comportamiento debidos al uso de disolventes volátiles, estado de abstinencia.
A124: 18.4 | B124: F184 | C124: Trastornos mentales y del comportamiento debidos al uso de disolventes volátiles, estado de abstinencia con delirium.
A125: 18.5 | B125: F185 | C125: Trastornos mentales y del comportamiento debidos al uso de disolventes volátiles, trastorno psicotico.
A126: 18.6 | B126: F186 | C126: Trastornos mentales y del comportamiento debidos al uso de disolventes volátiles, sindrome amnesico.
A127: 18.7 | B127: F187 | C127: Trastornos mentales y del comportamiento debidos al uso de disolventes volátiles, trastorno psicotico residual y de comienzo tardio.
A128: 18.8 | B128: F188 | C128: Trastornos mentales y del comportamiento debidos al uso de disolventes volátiles, otros trastornos mentales y del comportamiento.
A129: 18.9 | B129: F189 | C129: Trastornos mentales y del comportamiento debidos al uso de disolventes volátiles, trastorno mental y del comportamiento, no especificado.
A130: 19 | B130: F190 | C130: Trastornos mentales y del comportamiento debidos al uso de múltiples drogas y al uso de otras sustancias psicoactivas, intoxicacion aguda.
A131: 19.1 | B131: F191 | C131: Trastornos mentales y del comportamiento debidos al uso de múltiples drogas y al uso de otras sustancias psicoactivas, uso nocivo
A132: 19.2 | B132: F192 | C132: Trastornos mentales y del comportamiento debidos al uso de múltiples drogas y al uso de otras sustancias psicoactivas, sindrome de dependencia.
A133: 19.3 | B133: F193 | C133: Trastornos mentales y del comportamiento debidos al uso de múltiples drogas y al uso de otras sustancias psicoactivas, estado de abstinencia.
A134: 19.4 | B134: F194 | C134: Trastornos mentales y del comportamiento debidos al uso de múltiples drogas y al uso de otras sustancias psicoactivas, estado de abstinencia con delirium.
A135: 19.5 | B135: F195 | C135: Trastornos mentales y del comportamiento debidos al uso de múltiples drogas y al uso de otras sustancias psicoactivas, trastorno psicotico
A136: 19.6 | B136: F196 | C136: Trastornos mentales y del comportamiento debidos al uso de múltiples drogas y al uso de otras sustancias psicoactivas, sindrome amnesico.
A137: 19.7 | B137: F197 | C137: Trastornos mentales y del comportamiento debidos al uso de múltiples drogas y al uso de otras sustancias psicoactivas, trastorno psicotico residual y de comienzo tardio.
A138: 19.8 | B138: F198 | C138: Trastornos mentales y del comportamiento debidos al uso de múltiples drogas y al uso de otras sustancias psicoactivas, otros trastornos mentales y del comportamiento.
A139: 19.9 | B139: F199 | C139: Trastornos mentales y del comportamiento debidos al uso de múltiples drogas y al uso de otras sustancias psicoactivas, trastorno mental y del comportamiento, no especificado.
A140: 20 | B140: F200 | C140: Esquizofrenia paranoide
A141: 20.1 | B141: F201 | C141: Esquizofrenia hebefrénica
A142: 20.2 | B142: F202 | C142: Esquizofrenia catatónica
A143: 20.3 | B143: F203 | C143: Esquizofrenia indiferenciada
A144: 20.4 | B144: F204 | C144: Depresión postesquizofrénica
A145: 20.5 | B145: F205 | C145: Esquizofrenia residual
A146: 20.6 | B146: F206 | C146: Esquizofrenia simple
A147: 20.8 | B147: F208 | C147: Otras esquizofrenias
A148: 20.9 | B148: F209 | C148: Esquizofrenia, no especificada
A149: 21 | B149: F21 | C149: Trastorno esquizotípico
A150: 22 | B150: F220 | C150: Trastorno delirante
A151: 22.8 | B151: F228 | C151: Otros trastornos delirantes persistentes
A152: 22.9 | B152: F229 | C152: Trastornos delirante persistente, no especificado
A153: 23 | B153: F230 | C153: Trastorno psicótico agudo polimorfo, sin síntomas de esquizofrenia
A154: 23.1 | B154: F231 | C154: Trastorno psicótico agudo polimorfo, con síntomas de esquizofrenia
A155: 23.2 | B155: F232 | C155: Trastorno psicótico agudo de tipo esquizofrénico
A156: 23.3 | B156: F233 | C156: Otro trastorno psicótico agudo, con predominio de ideas delirantes | J156: Cuenta de FECHA | K156: Subse | L156: SEXO
A157: 23.8 | B157: F238 | C157: Otros trastornos psicóticos agudos y transitorios | K157: Primera Vez | M157: Total Primera Vez | N157: Subse | P157: Total Subse | Q157: Total general
A158: 23.9 | B158: F239 | C158: Trastorno psicótico agudo y transitorio, no especificado | J158: CIE-10 | K158: Masculino | L158: Femenino | N158: Masculino | O158: Femenino
A159: 24 | B159: F24 | C159: Trastorno delirante inducido | I159: =VLOOKUP(J159,A2:C446,3,0) -> Trastornos hipercinéticos | J159: 90 | K159: 32 | L159: 4 | M159: 36 | N159: 97 | O159: 18 | P159: 115 | Q159: 151
A160: 25 | B160: F250 | C160: Trastorno esquizoafectivo de tipo maníaco | I160: =VLOOKUP(J160,A3:C447,3,0) -> Trastorno depresivo recurrente, episodio leve presente | J160: 33 | K160: 10 | L160: 30 | M160: 40 | N160: 26 | O160: 85 | P160: 111 | Q160: 151
A161: 25.1 | B161: F251 | C161: Trastorno esquizoafectivo de tipo depresivo | I161: Trastorno de pánico [ansiedad paroxística episódica] | J161: 41 | K161: 1 | L161: 12 | M161: 13 | N161: 46 | O161: 85 | P161: 131 | Q161: 144
A162: 25.2 | B162: F252 | C162: Trastorno esquizoafectivo de tipo mixto | I162: Episodio depresivo leve | J162: 32 | K162: 14 | L162: 24 | M162: 38 | N162: 23 | O162: 38 | P162: 61 | Q162: 99
A163: 25.8 | B163: F258 | C163: Otros trastornos esquizoafectivos | I163: Trastorno de ansiedad generalizada | J163: 41.1 | K163: 8 | L163: 8 | M163: 16 | N163: 37 | O163: 45 | P163: 82 | Q163: 98
A164: 25.9 | B164: F259 | C164: Trastorno esquizoafectivo, no especificado | I164: Episodio depresivo moderado | J164: 32.1 | K164: 13 | L164: 27 | M164: 40 | N164: 6 | O164: 39 | P164: 45 | Q164: 85
A165: 28 | B165: F28 | C165: Otros trastornos psicóticos de origen no orgánico | I165: Trastorno depresivo recurrente, episodio moderado presente | J165: 33.1 | K165: 1 | L165: 12 | M165: 13 | N165: 8 | O165: 37 | P165: 45 | Q165: 58
A166: 29 | B166: F29X | C166: Psicosis de origen no orgánico, no especificada | I166: Trastorno de la personalidad emocionalmente inestable | J166: 60.3 | L166: 6 | M166: 6 | N166: 7 | O166: 38 | P166: 45 | Q166: 51
A167: 30 | B167: F300 | C167: Hipomanía | I167: Trastorno afectivo bipolar, episodio hipomaníaco presente | J167: 31 | K167: 1 | L167: 3 | M167: 4 | N167: 11 | O167: 29 | P167: 40 | Q167: 44
A168: 30.1 | B168: F301 | C168: Manía sin síntomas psicóticos | I168: Esquizofrenia paranoide | J168: 20 | K168: 4 | L168: 1 | M168: 5 | N168: 9 | O168: 7 | P168: 16 | Q168: 21
A169: 30.2 | B169: F302 | C169: Manía con síntomas psicóticos | I169: Trastornos de adaptación | J169: 43.2 | K169: 5 | L169: 10 | M169: 15 | N169: 3 | O169: 3 | P169: 6 | Q169: 21
A170: 30.8 | B170: F308 | C170: Otros episodios maníacos | I170: Episodio depresivo grave sin síntomas psicóticos | J170: 32.2 | K170: 1 | L170: 5 | M170: 6 | N170: 6 | O170: 9 | P170: 15 | Q170: 21
A171: 30.9 | B171: F309 | C171: Episodio maníaco, no especificado | I171: Trastorno mixto de ansiedad y depresión | J171: 41.2 | K171: 3 | L171: 1 | M171: 4 | N171: 4 | O171: 12 | P171: 16 | Q171: 20
A172: 31 | B172: F310 | C172: Trastorno afectivo bipolar, episodio hipomaníaco presente | I172: Predominio de pensamientos o rumiaciones obsesivas | J172: 42 | K172: 1 | L172: 3 | M172: 4 | N172: 3 | O172: 9 | P172: 12 | Q172: 16
A173: 31.1 | B173: F311 | C173: Trastorno afectivo bipolar, episodio maníaco presente sin síntomas psicóticos | I173: Trastornos del humor [afectivos], orgánicos | J173: 6.3 | K173: 3 | L173: 1 | M173: 4 | N173: 6 | O173: 6 | P173: 12 | Q173: 16
A174: 31.2 | B174: F312 | C174: Trastorno afectivo bipolar, episodio maníaco presente con síntomas psicóticos | I174: Reacción al estrés agudo | J174: 43 | K174: 1 | L174: 4 | M174: 5 | N174: 4 | O174: 4 | P174: 8 | Q174: 13
A175: 31.3 | B175: F313 | C175: Trastorno afectivo bipolar, episodio depresivo presente leve o moderado | I175: Trastorno esquizoafectivo de tipo maníaco | J175: 25 | N175: 4 | O175: 9 | P175: 13 | Q175: 13
A176: 31.4 | B176: F314 | C176: Trastorno afectivo bipolar, episodio depresivo grave presente sin síntomas psicóticos | I176: Trastorno afectivo bipolar, actualmente en remisión | J176: 31.7 | N176: 7 | O176: 6 | P176: 13 | Q176: 13
A177: 31.5 | B177: F315 | C177: Trastorno afectivo bipolar, episodio depresivo grave presente con síntomas psicóticos | I177: Distimia | J177: 34.1 | L177: 6 | M177: 6 | N177: 1 | O177: 3 | P177: 4 | Q177: 10
A178: 31.6 | B178: F316 | C178: Trastorno afectivo bipolar, episodio mixto presente | I178: Ciclotimia | J178: 34 | K178: 2 | L178: 2 | M178: 4 | N178: 1 | O178: 5 | P178: 6 | Q178: 10
A179: 31.7 | B179: F317 | C179: Trastorno afectivo bipolar, actualmente en remisión | I179: Trastorno afectivo bipolar, episodio maníaco presente sin síntomas psicóticos | J179: 31.1 | K179: 2 | M179: 2 | N179: 2 | O179: 5 | P179: 7 | Q179: 9
A180: 31.8 | B180: F318 | C180: Otros trastornos afectivos bipolares | I180: Retraso mental leve, deterioro del comportamiento nulo o mínimo | J180: 70 | K180: 1 | M180: 1 | N180: 6 | P180: 6 | Q180: 7
A181: 31.9 | B181: F319 | C181: Trastorno afectivo bipolar, no especificado | I181: Anorexia nerviosa | J181: 50 | L181: 2 | M181: 2 | O181: 5 | P181: 5 | Q181: 7
A182: 32 | B182: F320 | C182: Episodio depresivo leve | I182: Trastorno de ansiedad de separación en la niñez | J182: 93 | K182: 4 | L182: 2 | M182: 6 | N182: 1 | P182: 1 | Q182: 7
A183: 32.1 | B183: F321 | C183: Episodio depresivo moderado | I183: Trastornos mentales y del comportamiento debidos al uso de sedantes o hipnóticos, sindrome de dependencia. | J183: 13.2 | K183: 4 | M183: 4 | N183: 2 | O183: 1 | P183: 3 | Q183: 7
A184: 32.2 | B184: F322 | C184: Episodio depresivo grave sin síntomas psicóticos | J184: 3 | K184: 2 | L184: 4 | M184: 6 | O184: 1 | P184: 1 | Q184: 7
A185: 32.3 | B185: F323 | C185: Episodio depresivo grave con síntomas psicóticos | I185: Trastorno mental, no especificado | J185: 99 | K185: 1 | L185: 2 | M185: 3 | N185: 2 | O185: 2 | P185: 4 | Q185: 7
A186: 32.8 | B186: F328 | C186: Otros episodios depresivos | I186: Autismo en la niñez | J186: 84 | K186: 1 | M186: 1 | N186: 5 | P186: 5 | Q186: 6
A187: 32.9 | B187: F329 | C187: Episodio depresivo, no especificado | I187: Juego patológico | J187: 63 | L187: 3 | M187: 3 | N187: 2 | O187: 1 | P187: 3 | Q187: 6
A188: 33 | B188: F330 | C188: Trastorno depresivo recurrente, episodio leve presente | I188: Otros trastornos mentales especificados debidos a lesión y disfunción cerebral y a enfermedad física | J188: 6.8 | K188: 1 | M188: 1 | N188: 1 | O188: 4 | P188: 5 | Q188: 6
A189: 33.1 | B189: F331 | C189: Trastorno depresivo recurrente, episodio moderado presente | I189: Episodio depresivo, no especificado | J189: 32.9 | L189: 2 | M189: 2 | O189: 4 | P189: 4 | Q189: 6
A190: 33.2 | B190: F332 | C190: Trastorno depresivo recurrente, episodio depresivo grave presente sin síntomas psicóticos | I190: Agorafobia | J190: 40 | K190: 1 | L190: 2 | M190: 3 | N190: 2 | O190: 1 | P190: 3 | Q190: 6
A191: 33.3 | B191: F333 | C191: Trastorno depresivo recurrente, episodio depresivo grave presente, con síntomas psicóticos | I191: Observacion por sospecha de tumor maligno | J191: Z03.1 | K191: 2 | L191: 4 | M191: 6 | Q191: 6
A192: 33.4 | B192: F334 | C192: Trastorno depresivo recurrente actualmente en remisión | I192: Episodio depresivo grave con síntomas psicóticos | J192: 32.3 | L192: 1 | M192: 1 | O192: 5 | P192: 5 | Q192: 6
A193: 33.8 | B193: F338 | C193: Otros trastornos depresivos recurrentes | I193: Psicosis de origen no orgánico, no especificada | J193: 29 | K193: 3 | M193: 3 | N193: 2 | P193: 2 | Q193: 5
A194: 33.9 | B194: F339 | C194: Trastorno depresivo recurrente, no especificado | I194: Trastorno afectivo bipolar, episodio depresivo grave presente sin síntomas psicóticos | J194: 31.4 | N194: 1 | O194: 4 | P194: 5 | Q194: 5
A195: 34 | B195: F340 | C195: Ciclotimia | I195: Trastorno delirante | J195: 22 | K195: 1 | L195: 1 | M195: 2 | N195: 2 | O195: 1 | P195: 3 | Q195: 5
A196: 34.1 | B196: F341 | C196: Distimia | I196: Trastorno asocial de la personalidad | J196: 60.2 | K196: 3 | M196: 3 | N196: 1 | O196: 1 | P196: 2 | Q196: 5
A197: 34.8 | B197: F348 | C197: Otros trastornos del humor [afectivos] persistentes | I197: Trastorno de estrés postraumático | J197: 43.1 | K197: 2 | L197: 3 | M197: 5 | Q197: 5
A198: 34.9 | B198: F349 | C198: Trastorno persistente del humor [afectivo], no especificado | J198: 6 | K198: 1 | L198: 2 | M198: 3 | N198: 1 | P198: 1 | Q198: 4
A199: 38 | B199: F380 | C199: Otros trastornos del humor [afectivos], aislados | I199: Trastorno de ansiedad, no especificado | J199: 41.9 | N199: 3 | O199: 1 | P199: 4 | Q199: 4
A200: 38.1 | B200: F381 | C200: Otros trastornos del humor [afectivos], recurrentes | I200: Trastornos mentales y del comportamiento debidos al uso de cannabinoides, sindrome de dependencia. | J200: 12.2 | K200: 4 | M200: 4 | Q200: 4
... 246 more rows
